Workbook

Sheet README
A1: Column number | B1: Column title | C1: Description (where appropriate)
A2: 1 | B2: Assembly name | C2: The short name used in the Assemblathon 2 manuscript to refer to assemblies from different teams. Entries which include one or more asterisks as suffixes refer to evaluation entries (1 asterisk = first evaluation entry, 2 asterisks = second evaluation entry). All other entries are competitive entries.
A3: 2 | B3: Assembly ID | C3: Internal tracking identifier used during Assemblathon 2 evaluation. The ‘C’ or ‘E’ suffix distinguishes between Competitive and Evaluation entries.
A4: 3 | B4: Team name | C4: Name used to refer to participating teams (which often submitted more than one assembly). Full details of institutional affiliations are provided in Table 1 of manuscript.
A5: 4 | B5: Number of full-length 458 CEGs present in assembly | C5: Primary output of CEGMA program which find candidate orthologs for a set of 458 highly-conserved Core Eukaryotics Genes (CEGs). Resulting CEGMA predictions may not always be entirely full-length, but usually represent >70% of the length of the expected protein. CEGMA was run against scaffold sequences and only finds CEGs that are wholly contained within an individual scaffold sequence. CEGMA publication is available here: http://bioinformatics.oxfordjournals.org/content/23/9/1061.full
A6: 5 | B6: % of all possible CEGs present | C6: No single assembly was found to contain all possible 458 CEGs. This column shows the number of CEGs that were detected as a percentage of the maximum number of CEGs that were found across all assemblies for each species (442, 455, and 454 for bird, fish, and snake respectively).
A7: 6 | B7: Number of full-length 248 highly conserved CEGs present | C7: Results from using a different published set of CEGs, which correspond to the 248 most-highly conserved, and least paralagous from the original set of 458. Publication available here: http://www.ncbi.nlm.nih.gov/pmc/articles/PMC2615622/
A8: 7 | B8: Number of partial + full-length 248 highly conserved CEGs present | C8: For the subset of 248 CEGs, the CEGMA tool also counts partial matches as well as full-length (or nearly full-length) matches. This column indicates the total number of the 248 CEGs that are wholly, or partially found within scaffolds of an assembly.
A9: 8 | B9: Average number of orthologs per highly conserved CEG | C9: The CEGMA tool also counts how many secondary matches were found for each of the subset of highly conserved CEGs. In most cases, these CEGs are expected to be single-copy in most species. Values higher than 1 might indicate that CEGs tended to have paralogs present in the genome assembly (which might be artifacts of the genome assembly, rather than representing true paralogs).
A10: 9 | B10: % of 248 CEGs with more than 1 ortholog | C10: Similar to the previous metric. In the published set of 248 CEGs (derived from six model organisms), CEGs were found to be single copy in approximately 90% of cases. In light of this, values in this column that are notably higher than 10% possibly reflect duplications within the assembly (which may simply reflect both alleles of a gene being present on different scaffolds).
A11: 10 | B11: Sum length of scaffolds used for analysis | C11: Input scaffold sequences for optical map analysis needed to exceed a minimum length and possess a minimum number of restriction sites to be suitable for analysis. This length represents the subset of total assembly length that was suitable for optical map analysis.
A12: 11 | B12: % of all available scaffold sequence | C12: Reflects, as a percentage, the previous metric divided by the total assembly size
A13: 12 | B13: Level 1: sum length of alignments | C13: A result from the optical map analysis which records what amount of the input scaffold sequence (in bp) could be aligned globally to the optical map.
A14: 13 | B14: Level 1 or 2: sum length of alignments | C14: As per the previous metrics, but also includes ‘level 2’ optical map alignments. These still represent global alignments, but use a more permissive threshold than the previous ‘level 1’ metric.
A15: 14 | B15: Level 3: sum length of alignments | C15: Represents the amount of scaffold sequence that could not be aligned globally to the optical, but could be aligned locally.
A16: 15 | B16: Sum length of all alignments | C16: Sum of optical map alignments at levels 1–3.
A17: 16 | B17: % of input sequence aligned | C17: Previous metric as a percentage of the total amount of scaffold sequence available for optical map analysis (column 10).
A18: 17 | B18: Number of 100 nt validated Fosmid region tags (VFRTs | C18: Fosmid sequences were assembled for the bird and snake genome. These were then aligned to the assemblies to ascertain which portions of the Fosmids could be treated as verifiable sequence. These ‘Validated’ Fosmid Regions (VFRs) were used for various analyses by which to assess the quality of a genome assembly. One such analysis involved dividing the VFRs into contiguous (but non-overlapping) 1,000 nt sequences, and then then extracting pairs of 100 nt ‘tag’ sequences (VFRTs) from each end of the 1,000 bp fragment (to approximate a paired-read).
A19: 18 | B19: Number of VFRTs that match any contig | C19: VFRTs were matched to contig sequences from each assembly (using BLASTN). To count as a match, the VFRT sequence had to match at least 95% identity across at least 95% of it’s length.
A20: 19 | B20: Number of VFRTs that match uniquely to a contig | C20: Many VFRTs matched more than one contig (as might be expected if the VFR tag sequence derives from a repetitive region). This metric counts how many VFRTs matched only one contig.
A21: 20 | B21: Number of tag pairs that match the same contig | C21: Both members of a tag pair must match the same contig (at any distance apart), but can still match other contigs too.
A22: 21 | B22: Number of tag pairs that match uniquely to the same contig | C22: Same as previous metric with added restriction that both tag sequences only match the same contig.
A23: 22 | B23: Number of tag pairs that match uniquely to the same contig at expected distance +/- 2 bp | C23: Expected distance between start coordinates a pair of two tag sequences would be 900 nt. We counted matches at 900 nt apart, but also allowed for +/- 2 nt to account for indel errors.
A24: 23 | B24: Unique VFRTs pairs matching same contig at expected distance as percentage of those that uniquely matched contig | C24: Column 22 divided by column 19. When a scaffold in an assembly contains both members of a tag pair, how often are they placed the expected distance apart?
A25: 24 | B25: VFRT contig summary score | C25: The product of columns 20 and 23. Provides an overall evaluation of short-scale accuracy of contig sequences as assessed by a small portion of known reference sequence (Validated Fosmid Regions).
A26: 25 | B26: Number of VFRTs that match any scaffold | C26: Columns 25–31 are calculated in the same way as columns 18–24, with the only difference that scaffold sequences, rather than contigs, were used as the input.
A27: 26 | B27: Number of VFRTs that match uniquely to a scaffold | C27: Columns 25–31 are calculated in the same way as columns 18–24, with the only difference that scaffold sequences, rather than contigs, were used as the input.
A28: 27 | B28: Number of tag pairs that match the same scaffold | C28: Columns 25–31 are calculated in the same way as columns 18–24, with the only difference that scaffold sequences, rather than contigs, were used as the input.
A29: 28 | B29: Number of tag pairs that match uniquely to the same scaffold | C29: Columns 25–31 are calculated in the same way as columns 18–24, with the only difference that scaffold sequences, rather than contigs, were used as the input.
A30: 29 | B30: Number of tag pairs that match uniquely to the same scaffold at expected distance +/- 2 bp | C30: Columns 25–31 are calculated in the same way as columns 18–24, with the only difference that scaffold sequences, rather than contigs, were used as the input.
A31: 30 | B31: Unique VFRTs pairs matching same scaffold at expected distance as percentage of those that uniquely matched scaffold | C31: Columns 25–31 are calculated in the same way as columns 18–24, with the only difference that scaffold sequences, rather than contigs, were used as the input.
A32: 31 | B32: VFRT scaffold summary score | C32: Columns 25–31 are calculated in the same way as columns 18–24, with the only difference that scaffold sequences, rather than contigs, were used as the input.
A33: 32 | B33: COMPASS - coverage | C33: The coverage of the Validated Fosmid Regions (VFRs; see column 17 for details) by scaffolds from each assembly was assessed using a software tool COMPASS. The values reflect the fraction of the reference sequence (VFRs) that was covered by alignments from the scaffolds.
A34: 33 | B34: COMPASS - validity | C34: This is the reverse of column 32. Validity, measured by the COMPASS tool, calculates what fraction of the assembly (set of scaffold sequences) can be validated by the reference sequence.
A35: 34 | B35: COMPASS - multiplicity | C35: The third COMPASS metric takes the sum of alignment lengths of scaffolds to the reference (VFRs), and divides by the coverage (column 32). Values higher than 1 indicate that regions of the reference are present in multiple scaffolds (which may simply be due to heterozygosity in the genome being resolved into separate contigs and scaffolds).
A36: 35 | B36: COMPASS - parsimony | C36: The final COMPASS statistic reflects the the value of multiplicity (column 34) divided by validity (column 33). In this sense the measure captures ‘the cost’ of assembly (number of bases that had to be assembled for each base of validated sequence).
A37: 36 | B37: Number of gaps detected by REAPR | C37: REAPR is a software tool (http://www.sanger.ac.uk/resources/software/reapr/) that uses paired-read information to recognize errors in assemblies. A subset of reads from short-insert libraries were aligned to scaffolds from assemblies. These alignments are used to identify various sequence and scaffolding errors. Gaps correspond to stretches of ambiguous bases (Ns) between contigs in a single scaffold.
A38: 37 | B38: Total gap length | C38: The total length of gaps (ambiguous bases, Ns) detected by REAPR (see column 36).
A39: 38 | B39: Number of contig errors | C39: Errors detected by REAPR in contig sequences.
A40: 39 | B40: Number of gaps broken | C40: The number of times REAPR identified a scaffolding error within a gap region.
A41: 40 | B41: % gaps broken | C41: Column 39 divided by column 36.
A42: 41 | B42: Longest scaffold after breaking | C42: After REAPR breaks scaffolds which contain scaffolding errors in gap region, it recalculates lengths of new scaffolds.
A43: 42 | B43: N50 after breaking | C43: The N50 scaffold length of scaffolds in an assembly, after certain scaffolds have been broken at scaffolding errors in gaps.
A44: 43 | B44: Number of error free bases | C44: Determined from alignment of reads to assembly.
A45: 44 | B45: % error free bases | C45: Column 43 divided by column 49 (total size of assembly).
A46: 45 | B46: scaffold N50 after breaking / scaffold N50 | C46: The ratio of how scaffold N50 length changes after breaking scaffolds.
A47: 46 | B47: OLD Summary score | C47: Initially, REAPR calculated a final summary statistic that was a product of the number of error free bases (column 43) and the ratio of scaffold N50 length before/after breaking (column 45). This was then replaced by a modified calculation (see column 47).
A48: 47 | B48: Summary score | C48: A slight variant of the initial summary score which squares the scaffold N50 length after breaking. I.e. REAPR Summary Score = Number of error free bases * (broken N50)^2 / (original N50)
A49: 48 | B49: Number of scaffolds
A50: 49 | B50: Total size of scaffolds
A51: 50 | B51: CEGs per MB of assembly | C51: Derived from columns 4 and 49.
A52: 51 | B52: Total scaffold length as percentage of estimated genome size | C52: Estimates of genome size for bird, fish, and snake were taken as 1.2 Gbp, 1.0 Gbp, and 1.6 Gbp respectively.
A53: 52 | B53: Useful amount of scaffold sequence (scaffolds >= 25K nt | C53: Sum length of scaffolds that were 25 Kbp or longer.
A54: 53 | B54: % of estimated genome size that is useful | C54: Column 52 divided by estimated genome size (see column 51).
A55: 54 | B55: Longest scaffold
A56: 55 | B56: Shortest scaffold
A57: 56 | B57: Number of scaffolds > 1K nt
A58: 57 | B58: Percentage of scaffolds > 1K nt
A59: 58 | B59: Number of scaffolds > 10K nt
A60: 59 | B60: Percentage of scaffolds > 10K nt
A61: 60 | B61: Number of scaffolds > 100K nt
A62: 61 | B62: Percentage of scaffolds > 100K nt
A63: 62 | B63: Number of scaffolds > 1M nt
A64: 63 | B64: Percentage of scaffolds > 1M nt
A65: 64 | B65: Number of scaffolds > 10M nt
A66: 65 | B66: Percentage of scaffolds > 10M nt
A67: 66 | B67: Mean scaffold size
A68: 67 | B68: Median scaffold size
A69: 68 | B69: N50 scaffold length | C69: The length of scaffold which takes the sum length (summing from longest to shortest scaffold) past 50% of the total assembly size.
A70: 69 | B70: L50 scaffold count | C70: How many scaffolds are counted in reaching the N50 threshold.
A71: 70 | B71: NG50 scaffold length | C71: As for column 68, but the estimated genome size is used rather than the assembly size. This aids comparison between assemblies that are different sizes.
A72: 71 | B72: LG50 scaffold count | C72: How many scaffolds are counted in reaching the NG50 threshold.
A73: 72 | B73: N50 scaffold - NG50 scaffold length difference | C73: Difference between columns 68 and 70.
A74: 73 | B74: scaffold %N | C74: Percentage of ambiguous bases (Ns) in scaffold sequences.
A75: 74 | B75: scaffold %non-ACGTN | C75: Percentage of IUPAC nucleotide ambiguity codes used in scaffold sequences (excluding N).
A76: 75 | B76: Number of scaffold non-ACGTN nt
A77: 76 | B77: Percentage of assembly in scaffolded contigs | C77: Contigs may be joined into scaffolds (using a series of at least 25 consecutive N characters to denote gap between contigs) or remain unscaffolded. Each submitted set of scaffolds includes both scaffolded and unscaffolded contigs. This statistics indicates how much of the assembly is represented by scaffolded contigs.
A78: 77 | B78: Percentage of assembly in unscaffolded contigs | C78: The opposite of column 76.
A79: 78 | B79: Average number of contigs per scaffold
A80: 79 | B80: Average length of break (>25 Ns | C80: A minimum of 25 Ns was used to denote breaks between contigs within a scaffold but teams could insert longer runs if they knew the approximate length of the gap.
A81: 80 | B81: Number of contigs
A82: 81 | B82: Number of contigs in scaffolds | C82: I.e. scaffolded contigs, see column 76.
A83: 82 | B83: Number of contigs not in scaffolds | C83: These are unscaffolded contigs, see column 76.
A84: 83 | B84: Total size of contigs
A85: 84 | B85: Longest contig
A86: 85 | B86: Shortest contig
A87: 86 | B87: Number of contigs > 1K nt
A88: 87 | B88: Percentage of contigs > 1K nt
A89: 88 | B89: Number of contigs > 10K nt
A90: 89 | B90: Percentage of contigs > 10K nt
A91: 90 | B91: Number of contigs > 100K nt
A92: 91 | B92: Percentage of contigs > 100K nt
A93: 92 | B93: Number of contigs > 1M nt
A94: 93 | B94: Percentage of contigs > 1M nt
A95: 94 | B95: Number of contigs > 10M nt
A96: 95 | B96: Percentage of contigs > 10M nt
A97: 96 | B97: Mean contig size
A98: 97 | B98: Median contig size
A99: 98 | B99: N50 contig length | C99: Calculated as per column 68, but for contigs rather than scaffolds.
A100: 99 | B100: L50 contig count | C100: Calculated as per column 69, but for contigs rather than scaffolds.
A101: 100 | B101: NG50 contig length | C101: Calculated as per column 70, but for contigs rather than scaffolds.
A102: 101 | B102: LG50 contig count | C102: Calculated as per column 71, but for contigs rather than scaffolds.
A103: 102 | B103: N50 contig - NG50 contig length difference | C103: Calculated as per column 72, but for contigs rather than scaffolds.
A104: 103 | B104: contig %N | C104: Calculated as per column 73, but for contigs rather than scaffolds.
A105: 104 | B105: contig %non-ACGTN | C105: Calculated as per column 74, but for contigs rather than scaffolds.
A106: 105 | B106: Number of contig non-ACGTN nt | C106: Calculated as per column 75, but for contigs rather than scaffolds.

Sheet All results
A1: Assembly name | B1: Assembly ID | C1: Team name | D1: Number of full-length 458 CEGs present in assembly | E1: % of all possible CEGs present | F1: Number of full-length 248 highly conserved CEGs present | G1: Number of partial + full-length 248 highly conserved CEGs present | H1: Average number of orthologs per highly conserved CEG | I1: % of 248 CEGs with more than 1 ortholog | J1: Sum length of scaffolds used for analysis | K1: % of all available scaffold sequence | L1: Level 1: sum length of alignments | M1: Level 1 or 2: sum length of alignments | N1: Level 3: sum length of alignments | O1: Sum length of all alignments | P1: % of input sequence aligned | Q1: Number of 100 nt validated Fosmid region tags (VFRTs) | R1: Number of VFRTs that match any contig | S1: Number of VFRTs that match uniquely to a contig | T1: Number of tag pairs that match the same contig | U1: Number of tag pairs that match uniquely to the same contig | V1: Number of tag pairs that match uniquely to the same contig at expected distance +/- 2 bp | W1: Unique VFRTs pairs matching same contig at expected distance as percentage of those that uniquely matched contig | X1: VFRT contig summary score | Y1: Number of VFRTs that match any scaffold | Z1: Number of VFRTs that match uniquely to a scaffold | AA1: Number of tag pairs that match the same scaffold | AB1: Number of tag pairs that match uniquely to the same scaffold | AC1: Number of tag pairs that match uniquely to the same scaffold at expected distance +/- 2 bp | AD1: Unique VFRTs pairs matching same scaffold at expected distance as percentage of those that uniquely matched scaffold | AE1: VFRT scaffold summary score | AF1: COMPASS - coverage | AG1: COMPASS - validity | AH1: COMPASS - multiplicity | AI1: COMPASS - parsimony | AJ1: Number of gaps detected by REAPR | AK1: Total gap length | AL1: Number of contig errors | AM1: Number of gaps broken | AN1: % gaps broken | AO1: Longest scaffold after breaking | AP1: N50 after breaking | AQ1: Number of error free bases | AR1: % error free bases | AS1: scaffold N50 after breaking / scaffold N50 | AT1: OLD Summary score | AU1: Summary score | AV1: Number of scaffolds | AW1: Total size of scaffolds | AX1: CEGs per MB of assembly | AY1: Total scaffold length as percentage of estimated genome size | AZ1: Useful amount of scaffold sequence (scaffolds >= 25K nt) | BA1: % of estimated genome size that is useful | BB1: Longest scaffold | BC1: Shortest scaffold | BD1: Number of scaffolds > 1K nt | BE1: Percentage of scaffolds > 1K nt | BF1: Number of scaffolds > 10K nt | BG1: Percentage of scaffolds > 10K nt | BH1: Number of scaffolds > 100K nt | BI1: Percentage of scaffolds > 100K nt | BJ1: Number of scaffolds > 1M nt | BK1: Percentage of scaffolds > 1M nt | BL1: Number of scaffolds > 10M nt | BM1: Percentage of scaffolds > 10M nt | BN1: Mean scaffold size | BO1: Median scaffold size | BP1: N50 scaffold length | BQ1: L50 scaffold count | BR1: NG50 scaffold length | BS1: LG50 scaffold count | BT1: N50 scaffold - NG50 scaffold length difference | BU1: scaffold %N | BV1: scaffold %non-ACGTN | BW1: Number of scaffold non-ACGTN nt | BX1: Percentage of assembly in scaffolded contigs | BY1: Percentage of assembly in unscaffolded contigs | BZ1: Average number of contigs per scaffold | CA1: Average length of break (>25 Ns) between contigs in scaffold | CB1: Number of contigs | CC1: Number of contigs in scaffolds | CD1: Number of contigs not in scaffolds | CE1: Total size of contigs | CF1: Longest contig | CG1: Shortest contig | CH1: Number of contigs > 1K nt | CI1: Percentage of contigs > 1K nt | CJ1: Number of contigs > 10K nt | CK1: Percentage of contigs > 10K nt | CL1: Number of contigs > 100K nt | CM1: Percentage of contigs > 100K nt | CN1: Number of contigs > 1M nt | CO1: Percentage of contigs > 1M nt | CP1: Number of contigs > 10M nt | CQ1: Percentage of contigs > 10M nt | CR1: Mean contig size | CS1: Median contig size | CT1: N50 contig length | CU1: L50 contig count | CV1: NG50 contig length | CW1: LG50 contig count | CX1: N50 contig - NG50 contig length difference | CY1: contig %N | CZ1: contig %non-ACGTN | DA1: Number of contig non-ACGTN nt
A2: PHUS | B2: bird_1C | C2: Phusion | D2: 391 | E2: 0.8846153846 | F2: 176 | G2: 217 | H2: 1.29 | I2: 0.25 | J2: 892537000 | K2: 0.6497371666 | L2: 387603000 | M2: 569729000 | N2: 60222000 | O2: 629951000 | P2: 0.705798191 | Q2: 1976 | R2: 1892 | S2: 1468 | T2: 823 | U2: 585 | V2: 528 | W2: 0.90256 | X2: 742.80688 | Y2: 1892 | Z2: 1468 | AA2: 827 | AB2: 585 | AC2: 528 | AD2: 0.90256 | AE2: 746.41712 | AF2: 0.375555 | AG2: 0.000287662 | AH2: 1.01649 | AI2: 3533.62 | AJ2: 64980 | AK2: 62113012 | AL2: 684 | AM2: 5060 | AN2: 7.787011388 | AO2: 18775448 | AP2: 245315 | AQ2: 861920537 | AR2: 62.74494027 | AS2: 0.2708310793 | AT2: 233434869.3 | AU2: 5.726507497e+13 | AV2: 293817 | AW2: 1373689310 | AX2: =D2/(AW2/1000000) -> 0.2846349587 | AY2: 114.5 | AZ2: 1089206827 | BA2: 90.8 | BB2: 19403401 | BC2: 300 | BD2: 66754 | BE2: 22.7 | BF2: 5329 | BG2: 1.8 | BH2: 1315 | BI2: 0.4 | BJ2: 244 | BK2: 0.1 | BL2: 7 | BM2: 0 | BN2: 4675 | BO2: 644 | BP2: 905786 | BQ2: 284 | BR2: 1223532 | BS2: 200 | BT2: 317746 | BU2: 4.52 | BV2: 0 | BW2: 0 | BX2: 82.4 | BY2: 17.6 | BZ2: 1.2 | CA2: 1151.548017 | CB2: 347746 | CC2: 64648 | CD2: 283098 | CE2: 1311587477 | CF2: 1468603 | CG2: 5 | CH2: 108929 | CI2: 31.3 | CJ2: 19079 | CK2: 5.5 | CL2: 2303 | CM2: 0.7 | CN2: 4 | CO2: 0 | CP2: 0 | CQ2: 0 | CR2: 3772 | CS2: 720 | CT2: 50960 | CU2: 5357 | CV2: 61840 | CW2: 4363 | CX2: 10880 | CY2: 0 | CZ2: 0 | DA2: 0
A3: BCM | B3: bird_2C | C3: BCM-HGSC | D3: 420 | E3: 0.9502262443 | F3: 197 | G3: 235 | H3: 1.21 | I3: 0.1827 | J3: 1087328000 | K3: 0.817421852 | L3: 680718000 | M3: 832708000 | N3: 49459000 | O3: 882168000 | P3: 0.8113172842 | Q3: 1976 | R3: 1891 | S3: 1688 | T3: 882 | U3: 769 | V3: 711 | W3: 0.92458 | X3: 815.47956 | Y3: 1891 | Z3: 1688 | AA3: 892 | AB3: 769 | AC3: 711 | AD3: 0.92458 | AE3: 824.72536 | AF3: 0.316204 | AG3: 0.000248312 | AH3: 1.0079 | AI3: 4059.02 | AJ3: 57786 | AK3: 153048141 | AL3: 441 | AM3: 3681 | AN3: 6.370055031 | AO3: 16268730 | AP3: 1973953 | AQ3: 921285264 | AR3: 69.25957087 | AS3: 0.1512768213 | AT3: 139369106.3 | AU3: 2.751080654e+14 | AV3: 56982 | AW3: 1330191990 | AX3: 0.315743895 | AY3: 110.8 | AZ3: 1254643149 | BA3: 104.6 | BB3: 68648150 | BC3: 46 | BD3: 15692 | BE3: 27.5 | BF3: 4198 | BG3: 7.4 | BH3: 535 | BI3: 0.9 | BJ3: 104 | BK3: 0.2 | BL3: 38 | BM3: 0.1 | BN3: 23344 | BO3: 444 | BP3: 13048615 | BQ3: 26 | BR3: 16233753 | BS3: 22 | BT3: 3185138 | BU3: 11.51 | BV3: 0 | BW3: 0 | BX3: 97.3 | BY3: 2.7 | BZ3: 1.8 | CA3: 3348.922393 | CB3: 102648 | CC3: 54284 | CD3: 48364 | CE3: 1177260100 | CF3: 2740970 | CG3: 46 | CH3: 43152 | CI3: 42 | CJ3: 11320 | CK3: 11 | CL3: 2760 | CM3: 2.7 | CN3: 60 | CO3: 0.1 | CP3: 0 | CQ3: 0 | CR3: 11469 | CS3: 732 | CT3: 192005 | CU3: 1391 | CV3: 184984 | CW3: 1451 | CX3: 7021 | CY3: 0.01 | CZ3: 0 | DA3: 0
A4: BCM* | B4: bird_3E | C4: BCM-HGSC | D4: 420 | E4: 0.9502262443 | F4: 197 | G4: 234 | H4: 1.2 | I4: 0.1726 | J4: 1088322000 | K4: 0.8175079928 | L4: 684353000 | M4: 835698000 | N4: 47314000 | O4: 883012000 | P4: 0.8113517874 | Q4: 1976 | R4: 1892 | S4: 1688 | T4: 882 | U4: 769 | V4: 711 | W4: 0.92458 | X4: 815.47956 | Y4: 1892 | Z4: 1688 | AA4: 892 | AB4: 769 | AC4: 711 | AD4: 0.92458 | AE4: 824.72536 | AF4: 0.454888 | AG4: 0.000356643 | AH4: 1.00709 | AI4: 2823.81 | AJ4: 63260 | AK4: 155045974 | AL4: 429 | AM4: 3942 | AN4: 6.231425862 | AO4: 16176370 | AP4: 1703658 | AQ4: 919363613 | AR4: 69.05925837 | AS4: 0.1305135121 | AT4: 119989374.1 | AU4: 2.04420857e+14 | AV4: 56982 | AW4: 1331267718 | AX4: 0.3154887588 | AY4: 110.9 | AZ4: 1255741347 | BA4: 104.6 | BB4: 68694673 | BC4: 46 | BD4: 15692 | BE4: 27.5 | BF4: 4197 | BG4: 7.4 | BH4: 535 | BI4: 0.9 | BJ4: 104 | BK4: 0.2 | BL4: 38 | BM4: 0.1 | BN4: 23363 | BO4: 444 | BP4: 13053499 | BQ4: 26 | BR4: 16248487 | BS4: 22 | BT4: 3194988 | BU4: 11.65 | BV4: 0 | BW4: 0 | BX4: 97.3 | BY4: 2.7 | BZ4: 1.9 | CA4: 3137.399121 | CB4: 106358 | CC4: 58048 | CD4: 48310 | CE4: 1176355499 | CF4: 1818675 | CG4: 46 | CH4: 46819 | CI4: 44 | CJ4: 13593 | CK4: 12.8 | CL4: 3051 | CM4: 2.9 | CN4: 18 | CO4: 0 | CP4: 0 | CQ4: 0 | CR4: 11060 | CS4: 785 | CT4: 134384 | CU4: 2168 | CV4: 129582 | CW4: 2258 | CX4: 4802 | CY4: 0.01 | CZ4: 0 | DA4: 0
A5: RAY | B5: bird_4C | C5: Ray | D5: 404 | E5: 0.9140271493 | F5: 190 | G5: 222 | H5: 1.44 | I5: 0.3053 | J5: 871794000 | K5: 0.6859141573 | L5: 139999000 | M5: 313789000 | N5: 236150000 | O5: 549939000 | P5: 0.6308130132 | Q5: 1976 | R5: 1886 | S5: 1667 | T5: 893 | U5: 750 | V5: 695 | W5: 0.92667 | X5: 827.51631 | Y5: 1886 | Z5: 1667 | AA5: 902 | AB5: 758 | AC5: 695 | AD5: 0.91689 | AE5: 827.03478 | AF5: 0.301658 | AG5: 0.000249868 | AH5: 1.01591 | AI5: 4065.8 | AJ5: 41516 | AK5: 102193279 | AL5: 1128 | AM5: 719 | AN5: 1.731862414 | AO5: 2834935 | AP5: 473928 | AQ5: 902228277 | AR5: 70.98593799 | AS5: 0.8356676218 | AT5: 753962958.5 | AU5: 357324157014994 | AV5: 47279 | AW5: 1270995781 | AX5: 0.3178610079 | AY5: 105.9 | AZ5: 1190704701 | BA5: 99.2 | BB5: 3236250 | BC5: 100 | BD5: 20980 | BE5: 44.4 | BF5: 5893 | BG5: 12.5 | BH5: 2441 | BI5: 5.2 | BJ5: 229 | BK5: 0.5 | BL5: 0 | BM5: 0 | BN5: 26883 | BO5: 725 | BP5: 567125 | BQ5: 631 | BR5: 609121 | BS5: 571 | BT5: 41996 | BU5: 8.04 | BV5: 0 | BW5: 0 | BX5: 95.6 | BY5: 4.4 | BZ5: 1.9 | CA5: 2469.397651 | CB5: 88662 | CC5: 49125 | CD5: 39537 | CE5: 1168804698 | CF5: 465622 | CG5: 100 | CH5: 60847 | CI5: 68.6 | CJ5: 28948 | CK5: 32.6 | CL5: 1115 | CM5: 1.3 | CN5: 0 | CO5: 0 | CP5: 0 | CQ5: 0 | CR5: 13183 | CS5: 3388 | CT5: 41118 | CU5: 8258 | CV5: 39832 | CW5: 8643 | CX5: 1286 | CY5: 0 | CZ5: 0 | DA5: 0
A6: MLK | B6: bird_5C | C6: MLK Group | D6: 401 | E6: 0.907239819 | F6: 181 | G6: 222 | H6: 1.77 | I6: 0.4586 | J6: 395682000 | K6: 0.1978479685 | L6: 336108000 | M6: 356777000 | N6: 588000 | O6: 357365000 | P6: 0.9031621353 | Q6: 1976 | R6: 1906 | S6: 1229 | T6: 848 | U6: 561 | V6: 537 | W6: 0.95722 | X6: 811.72256 | Y6: 1906 | Z6: 1229 | AA6: 870 | AB6: 572 | AC6: 537 | AD6: 0.93881 | AE6: 816.7647 | AF6: 0.36499 | AG6: 0.000225669 | AH6: 1.12458 | AI6: 4983.31 | AJ6: 58194 | AK6: 38207313 | AL6: - | AM6: - | AN6: - | AO6: - | AQ6: - | AR6: - | AS6: - | AT6: - | AV6: 1295897 | AW6: 1999929557 | AX6: 0.2005070622 | AY6: 166.7 | AZ6: 1180972764 | BA6: 98.4 | BB6: 4710042 | BC6: 75 | BD6: 97219 | BE6: 7.5 | BF6: 42632 | BG6: 3.3 | BH6: 1946 | BI6: 0.2 | BJ6: 90 | BK6: 0 | BL6: 0 | BM6: 0 | BN6: 1543 | BO6: 93 | BP6: 34998 | BQ6: 9035 | BR6: 113799 | BS6: 1701 | BT6: 78801 | BU6: 1.91 | BV6: 0 | BW6: 61168 | BX6: 43.3 | BY6: 56.7 | BZ6: 1 | CA6: 803.6048394 | CB6: 1343341 | CC6: 61642 | CD6: 1281699 | CE6: 1961803329 | CF6: 424740 | CG6: 74 | CH6: 134796 | CI6: 10 | CJ6: 57219 | CK6: 4.3 | CL6: 625 | CM6: 0 | CN6: 0 | CO6: 0 | CP6: 0 | CQ6: 0 | CR6: 1460 | CS6: 95 | CT6: 22094 | CU6: 24175 | CV6: 35883 | CW6: 10459 | CX6: 13789 | CY6: 0 | CZ6: 0 | DA6: 61168
A7: MERAC | B7: bird_6C | C7: meraculous | D7: 393 | E7: 0.8891402715 | F7: 189 | G7: 211 | H7: 1.15 | I7: 0.1323 | J7: 1044868000 | K7: 0.9580042909 | L7: 835668000 | M7: 908221000 | N7: 4262000 | O7: 912484000 | P7: 0.8733007423 | Q7: 1976 | R7: 1813 | S7: 1763 | T7: 828 | U7: 806 | V7: 744 | W7: 0.92308 | X7: 764.31024 | Y7: 1813 | Z7: 1763 | AA7: 840 | AB7: 810 | AC7: 745 | AD7: 0.91975 | AE7: 772.59 | AF7: 0.301993 | AG7: 0.000291719 | AH7: 1.01307 | AI7: 3472.76 | AJ7: 63972 | AK7: 46857057 | AL7: 42 | AM7: 831 | AN7: 1.299005815 | AO7: 19112073 | AP7: 3855619 | AQ7: 933271292 | AR7: 85.56850266 | AS7: 0.3920513695 | AT7: 365890288.1 | AU7: 1.410733547e+15 | AV7: 60117 | AW7: 1090671524 | AX7: 0.3603284686 | AY7: 90.9 | AZ7: 1068014254 | BA7: 89 | BB7: 51442002 | BC7: 59 | BD7: 3551 | BE7: 5.9 | BF7: 589 | BG7: 1 | BH7: 313 | BI7: 0.5 | BJ7: 167 | BK7: 0.3 | BL7: 32 | BM7: 0.1 | BN7: 18142 | BO7: 153 | BP7: 9834474 | BQ7: 33 | BR7: 7539259 | BS7: 40 | BT7: 2295215 | BU7: 4.3 | BV7: 0 | BW7: 0 | BX7: 98.7 | BY7: 1.3 | BZ7: 2.1 | CA7: 732.4619677 | CB7: 124089 | CC7: 68487 | CD7: 55602 | CE7: 1043814467 | CF7: 554547 | CG7: 59 | CH7: 51852 | CI7: 41.8 | CJ7: 26344 | CK7: 21.2 | CL7: 1106 | CM7: 0.9 | CN7: 0 | CO7: 0 | CP7: 0 | CQ7: 0 | CR7: 8412 | CS7: 387 | CT7: 39050 | CU7: 7234 | CV7: 32067 | CW7: 9439 | CX7: 6983 | CY7: 0 | CZ7: 0 | DA7: 0
A8: NEWB | B8: bird_7C | C8: Newbler-454 | D8: 380 | E8: 0.8597285068 | F8: 179 | G8: 208 | H8: 1.13 | I8: 0.1061 | J8: 1060580000 | K8: 0.9491767456 | L8: 739939000 | M8: 843687000 | N8: 32845000 | O8: 876532000 | P8: 0.8264647646 | Q8: 1976 | R8: 1843 | S8: 1773 | T8: 848 | U8: 802 | V8: 736 | W8: 0.91771 | X8: 778.21808 | Y8: 1843 | Z8: 1773 | AA8: 859 | AB8: 811 | AC8: 736 | AD8: 0.90752 | AE8: 779.55968 | AF8: 0.418758 | AG8: 0.00038909 | AH8: 1.00297 | AI8: 2577.74 | AJ8: 32210 | AK8: 55559963 | AL8: 442 | AM8: 2577 | AN8: 8.000620925 | AO8: 18681064 | AP8: 1513543 | AQ8: 890817109 | AR8: 79.72457377 | AS8: 0.1344742455 | AT8: 119791958.6 | AU8: 1.813102804e+14 | AV8: 8062 | AW8: 1117368293 | AX8: 0.3400848247 | AY8: 93.1 | AZ8: 1084552351 | BA8: 90.4 | BB8: 51782236 | BC8: 1786 | BD8: 8062 | BE8: 100 | BF8: 561 | BG8: 7 | BH8: 316 | BI8: 3.9 | BJ8: 158 | BK8: 2 | BL8: 26 | BM8: 0.3 | BN8: 138597 | BO8: 3763 | BP8: 11255263 | BQ8: 25 | BR8: 9041501 | BS8: 29 | BT8: 2213762 | BU8: 4.97 | BV8: 0 | BW8: 0 | BX8: 97.4 | BY8: 2.6 | BZ8: 4.7 | CA8: 1876.426641 | CB8: 37670 | CC8: 30601 | CD8: 7069 | CE8: 1061811053 | CF8: 671541 | CG8: 490 | CH8: 37300 | CI8: 99 | CJ8: 20090 | CK8: 53.3 | CL8: 2326 | CM8: 6.2 | CN8: 0 | CO8: 0 | CP8: 0 | CQ8: 0 | CR8: 28187 | CS8: 11545 | CT8: 67833 | CU8: 4312 | CV8: 57469 | CW8: 5420 | CX8: 10364 | CY8: 0 | CZ8: 0 | DA8: 0
A9: COBIG | B9: bird_8C | C9: CoBig2 | D9: 0 | E9: 0 | F9: 0 | G9: 0 | H9: 0 | I9: 0 | J9: 0 | K9: 0 | L9: 0 | M9: 0 | N9: 0 | O9: 0 | P9: 0 | Q9: 1976 | R9: 28 | S9: 8 | T9: 1 | U9: 0 | V9: 0 | W9: 0 | X9: 0 | Y9: 28 | Z9: 8 | AA9: 1 | AB9: 0 | AC9: 0 | AD9: 0 | AE9: 0 | AF9: 0.00220262 | AG9: 0.000217612 | AH9: 1.06623 | AI9: 4899.68 | AJ9: 2533 | AK9: 9060132 | AL9: 0 | AM9: 24 | AN9: 0.9474930912 | AO9: 66393 | AP9: 6500 | AQ9: 765298 | AR9: 6.850516032 | AS9: 1 | AT9: 765298 | AU9: 4974437000 | AV9: 1542 | AW9: 11171392 | AX9: 0 | AY9: 0.9 | AZ9: 699258 | BA9: 0.1 | BB9: 66393 | BC9: 31 | BD9: 1533 | BE9: 99.4 | BF9: 81 | BG9: 5.3 | BH9: 0 | BI9: 0 | BJ9: 0 | BK9: 0 | BL9: 0 | BM9: 0 | BN9: 7245 | BO9: 6500 | BP9: 6500 | BQ9: 659 | BR9: 0 | BS9: 0 | BT9: 6500 | BU9: 81.1 | BV9: 0.02 | BW9: 2329 | BX9: 93.2 | BY9: 6.8 | BZ9: 2 | CA9: 6035.33511 | CB9: 3043 | CC9: 2962 | CD9: 81 | CE9: 2112354 | CF9: 51181 | CG9: 22 | CH9: 299 | CI9: 9.8 | CJ9: 44 | CK9: 1.4 | CL9: 0 | CM9: 0 | CN9: 0 | CO9: 0 | CP9: 0 | CQ9: 0 | CR9: 694 | CS9: 101 | CT9: 6717 | CU9: 69 | CV9: 0 | CW9: 0 | CX9: 6717 | CY9: 0.05 | CZ9: 0.11 | DA9: 2329
A10: CBCB | B10: bird_9C | C10: CBCB | D10: 403 | E10: 0.9117647059 | F10: 197 | G10: 218 | H10: 1.2 | I10: 0.1675 | J10: 985442000 | K10: 0.8083144381 | L10: 703651000 | M10: 825153000 | N10: 26580000 | O10: 851733000 | P10: 0.8643157081 | Q10: 1976 | R10: 1913 | S10: 1720 | T10: 903 | U10: 784 | V10: 721 | W10: 0.91964 | X10: 830.43492 | Y10: 1913 | Z10: 1720 | AA10: 910 | AB10: 785 | AC10: 721 | AD10: 0.91847 | AE10: 835.8077 | AF10: 0.341271 | AG10: 0.000293445 | AH10: 1.0127 | AI10: 3451.09 | AJ10: 26444 | AK10: 29030335 | AL10: 142 | AM10: 1602 | AN10: 6.05808501 | AO10: 6821342 | AP10: 931690 | AQ10: 883167968 | AR10: 72.44235783 | AS10: 0.5462051612 | AT10: 482390902.4 | AU10: 4.494387798e+14 | AV10: 54668 | AW10: 1219132003 | AX10: 0.3305630555 | AY10: 101.6 | AZ10: 1116443664 | BA10: 93 | BB10: 11564683 | BC10: 119 | BD10: 54513 | BE10: 99.7 | BF10: 3277 | BG10: 6 | BH10: 1020 | BI10: 1.9 | BJ10: 326 | BK10: 0.6 | BL10: 5 | BM10: 0 | BN10: 22301 | BO10: 1420 | BP10: 1705751 | BQ10: 183 | BR10: 1758729 | BS10: 177 | BT10: 52978 | BU10: 2.38 | BV10: 0 | BW10: 0 | BX10: 90.8 | BY10: 9.2 | BZ10: 1.4 | CA10: 1268.208625 | CB10: 77556 | CC10: 25627 | CD10: 51929 | CE10: 1190105244 | CF10: 849044 | CG10: 66 | CH10: 76963 | CI10: 99.2 | CJ10: 15132 | CK10: 19.5 | CL10: 3283 | CM10: 4.2 | CN10: 0 | CO10: 0 | CP10: 0 | CQ10: 0 | CR10: 15345 | CS10: 1673 | CT10: 102885 | CU10: 3166 | CV10: 101602 | CW10: 3214 | CX10: 1283 | CY10: 0 | CZ10: 0 | DA10: 0
A11: SGA | B11: bird_10C | C11: SGA | D11: 371 | E11: 0.8393665158 | F11: 169 | G11: 209 | H11: 1.19 | I11: 0.1598 | J11: 876297000 | K11: 0.760299344 | L11: 746803000 | M11: 788553000 | N11: 3598000 | O11: 792152000 | P11: 0.9039766198 | Q11: 1976 | R11: 1825 | S11: 1753 | T11: 765 | U11: 748 | V11: 706 | W11: 0.94385 | X11: 722.04525 | Y11: 1825 | Z11: 1753 | AA11: 802 | AB11: 771 | AC11: 709 | AD11: 0.91958 | AE11: 737.50316 | AF11: 0.295288 | AG11: 0.00026683 | AH11: 1.00615 | AI11: 3770.74 | AJ11: 98258 | AK11: 85913636 | AL11: 54 | AM11: 2223 | AN11: 2.262411203 | AO11: 9505409 | AP11: 1289339 | AQ11: 900311663 | AR11: 78.11351252 | AS11: 0.4603261423 | AT11: 414436994.7 | AU11: 5.343497803e+14 | AV11: 92853 | AW11: 1152568402 | AX11: 0.3218897892 | AY11: 96 | AZ11: 1045597539 | BA11: 87.1 | BB11: 34038032 | BC11: 500 | BD11: 17827 | BE11: 19.2 | BF11: 3995 | BG11: 4.3 | BH11: 966 | BI11: 1 | BJ11: 199 | BK11: 0.2 | BL11: 13 | BM11: 0 | BN11: 12413 | BO11: 695 | BP11: 2800925 | BQ11: 87 | BR11: 2518389 | BS11: 96 | BT11: 282536 | BU11: 7.45 | BV11: 0 | BW11: 0 | BX11: 94 | BY11: 6 | BZ11: 2.1 | CA11: 874.3678479 | CB11: 191111 | CC11: 104797 | CD11: 86314 | CE11: 1066654766 | CF11: 235482 | CG11: 111 | CH11: 106827 | CI11: 55.9 | CJ11: 31686 | CK11: 16.6 | CL11: 144 | CM11: 0.1 | CN11: 0 | CO11: 0 | CP11: 0 | CQ11: 0 | CR11: 5581 | CS11: 1210 | CT11: 18175 | CU11: 16267 | CV11: 15382 | CW11: 20253 | CX11: 2793 | CY11: 0 | CZ11: 0 | DA11: 0
A12: ALLP | B12: bird_11C | C12: Allpaths | D12: 408 | E12: 0.9230769231 | F12: 199 | G12: 223 | H12: 1.19 | I12: 0.1608 | J12: 1070378000 | K12: 0.9322356535 | L12: 773652000 | M12: 870619000 | N12: 21467000 | O12: 892087000 | P12: 0.8334317409 | Q12: 1976 | R12: 1865 | S12: 1772 | T12: 862 | U12: 807 | V12: 755 | W12: 0.93556 | X12: 806.45272 | Y12: 1865 | Z12: 1772 | AA12: 882 | AB12: 817 | AC12: 757 | AD12: 0.92656 | AE12: 817.22592 | AF12: 0.321648 | AG12: 0.000291962 | AH12: 1.00684 | AI12: 3448.55 | AJ12: 50439 | AK12: 48948495 | AL12: 114 | AM12: 1773 | AN12: 3.515137096 | AO12: 55565849 | AP12: 4236736 | AQ12: 732448353 | AR12: 63.79190052 | AS12: 0.2834240075 | AT12: 207593447.5 | AU12: 8.795186322e+14 | AV12: 4341 | AW12: 1148183934 | AX12: 0.3553437632 | AY12: 95.7 | AZ12: 1127619690 | BA12: 94 | BB12: 65896851 | BC12: 959 | BD12: 4335 | BE12: 99.9 | BF12: 1505 | BG12: 34.7 | BH12: 456 | BI12: 10.5 | BJ12: 144 | BK12: 3.3 | BL12: 29 | BM12: 0.7 | BN12: 264498 | BO12: 4739 | BP12: 14948402 | BQ12: 19 | BR12: 14454701 | BS12: 20 | BT12: 493701 | BU12: 4.26 | BV12: 0.29 | BW12: 3373027 | BX12: 99.2 | BY12: 0.8 | BZ12: 12.5 | CA12: 978.2256446 | CB12: 54371 | CC12: 51986 | CD12: 2385 | CE12: 1099243305 | CF12: 714557 | CG12: 9 | CH12: 51956 | CI12: 95.6 | CJ12: 22757 | CK12: 41.9 | CL12: 2022 | CM12: 3.7 | CN12: 0 | CO12: 0 | CP12: 0 | CQ12: 0 | CR12: 20217 | CS12: 6914 | CT12: 57060 | CU12: 4867 | CV12: 49570 | CW12: 5814 | CX12: 7490 | CY12: 0 | CZ12: 0.31 | DA12: 3373027
A13: SOAP | B13: bird_12C | C13: SOAPdenovo | D13: 416 | E13: 0.9411764706 | F13: 202 | G13: 229 | H13: 1.18 | I13: 0.1436 | J13: 1115467000 | K13: 0.9509649063 | L13: 660526000 | M13: 864771000 | N13: 49950000 | O13: 914721000 | P13: 0.8200341202 | Q13: 1976 | R13: 1877 | S13: 1763 | T13: 849 | U13: 780 | V13: 719 | W13: 0.92179 | X13: 782.59971 | Y13: 1877 | Z13: 1763 | AA13: 876 | AB13: 798 | AC13: 719 | AD13: 0.901 | AE13: 789.276 | AF13: 0.292512 | AG13: 0.000276327 | AH13: 1.05384 | AI13: 3813.72 | AJ13: 95880 | AK13: 38938722 | AL13: 103 | AM13: 3870 | AN13: 4.036295369 | AO13: 3732952 | AP13: 485252 | AQ13: 840012709 | AR13: 71.61328906 | AS13: 0.03594260909 | AT13: 30192248.43 | AU13: 1.465084894e+13 | AV13: 151393 | AW13: 1172984400 | AX13: 0.3546509229 | AY13: 97.7 | AZ13: 1142533623 | BA13: 95.2 | BB13: 66719718 | BC13: 100 | BD13: 1994 | BE13: 1.3 | BF13: 563 | BG13: 0.4 | BH13: 216 | BI13: 0.1 | BJ13: 127 | BK13: 0.1 | BL13: 35 | BM13: 0 | BN13: 7748 | BO13: 140 | BP13: 13500745 | BQ13: 24 | BR13: 13157455 | BS13: 25 | BT13: 343290 | BU13: 3.32 | BV13: 0 | BW13: 0 | BX13: 97.9 | BY13: 2.1 | BZ13: 1.6 | CA13: 412.1865367 | CB13: 245857 | CC13: 96263 | CD13: 149594 | CE13: 1134047611 | CF13: 666285 | CG13: 2 | CH13: 65777 | CI13: 26.8 | CJ13: 26707 | CK13: 10.9 | CL13: 1255 | CM13: 0.5 | CN13: 0 | CO13: 0 | CP13: 0 | CQ13: 0 | CR13: 4613 | CS13: 167 | CT13: 38139 | CU13: 7787 | CV13: 34710 | CW13: 8694 | CX13: 3429 | CY13: 0 | CZ13: 0 | DA13: 0
A14: SOAP* | B14: bird_13E | C14: SOAPdenovo | D14: 415 | E14: 0.9389140271 | F14: 202 | G14: 229 | H14: 1.18 | I14: 0.144 | J14: 1112499000 | K14: 0.9510215112 | L14: 667070000 | M14: 864402000 | N14: 48590000 | O14: 912992000 | P14: 0.820667704 | Q14: 1976 | R14: 1879 | S14: 1765 | T14: 864 | U14: 793 | V14: 726 | W14: 0.91551 | X14: 791.00064 | Y14: 1879 | Z14: 1765 | AA14: 878 | AB14: 800 | AC14: 726 | AD14: 0.9075 | AE14: 796.785 | AF14: 0.291943 | AG14: 0.000276139 | AH14: 1.05225 | AI14: 3810.59 | AJ14: 62822 | AK14: 38078660 | AL14: 122 | AM14: 3466 | AN14: 5.517175512 | AO14: 3929582 | AP14: 582278 | AQ14: 857698933 | AR14: 73.32052752 | AS14: 0.0431355188 | AT14: 36997288.45 | AU14: 2.154270712e+13 | AV14: 151393 | AW14: 1169793729 | AX14: 0.3547633995 | AY14: 97.5 | AZ14: 1139369769 | BA14: 94.9 | BB14: 66552409 | BC14: 100 | BD14: 1990 | BE14: 1.3 | BF14: 563 | BG14: 0.4 | BH14: 216 | BI14: 0.1 | BJ14: 127 | BK14: 0.1 | BL14: 35 | BM14: 0 | BN14: 7727 | BO14: 140 | BP14: 13498806 | BQ14: 24 | BR14: 13114357 | BS14: 25 | BT14: 384449 | BU14: 3.26 | BV14: 0 | BW14: 0 | BX14: 97.8 | BY14: 2.2 | BZ14: 1.4 | CA14: 620.0912466 | CB14: 212798 | CC14: 63090 | CD14: 149708 | CE14: 1131717026 | CF14: 666285 | CG14: 2 | CH14: 45391 | CI14: 21.3 | CJ14: 24025 | CK14: 11.3 | CL14: 1745 | CM14: 0.8 | CN14: 0 | CO14: 0 | CP14: 0 | CQ14: 0 | CR14: 5318 | CS14: 155 | CT14: 52272 | CU14: 6138 | CV14: 48709 | CW14: 6814 | CX14: 3563 | CY14: 0 | CZ14: 0 | DA14: 0
A15: SOAP** | B15: bird_14E | C15: SOAPdenovo | D15: 412 | E15: 0.9321266968 | F15: 201 | G15: 228 | H15: 1.18 | I15: 0.1443 | J15: 1112612000 | K15: 0.9510634616 | L15: 666201000 | M15: 865921000 | N15: 50604000 | O15: 916525000 | P15: 0.8237597653 | Q15: 1976 | R15: 1878 | S15: 1764 | T15: 860 | U15: 789 | V15: 724 | W15: 0.91762 | X15: 789.1532 | Y15: 1878 | Z15: 1764 | AA15: 876 | AB15: 798 | AC15: 724 | AD15: 0.90727 | AE15: 794.76852 | AF15: 0.381532 | AG15: 0.000358963 | AH15: 1.04673 | AI15: 2915.98 | AJ15: 60810 | AK15: 37893222 | AL15: 121 | AM15: 3732 | AN15: 6.137148495 | AO15: 3732307 | AP15: 514558 | AQ15: 843542356 | AR15: 72.10620712 | AS15: 0.03812382006 | AT15: 32159057 | AU15: 1.654770005e+13 | AV15: 151393 | AW15: 1169860945 | AX15: 0.3521786087 | AY15: 97.5 | AZ15: 1139433377 | BA15: 95 | BB15: 66566469 | BC15: 100 | BD15: 1986 | BE15: 1.3 | BF15: 563 | BG15: 0.4 | BH15: 216 | BI15: 0.1 | BJ15: 127 | BK15: 0.1 | BL15: 35 | BM15: 0 | BN15: 7727 | BO15: 140 | BP15: 13497021 | BQ15: 24 | BR15: 13115626 | BS15: 25 | BT15: 381395 | BU15: 3.24 | BV15: 0 | BW15: 0 | BX15: 97.8 | BY15: 2.2 | BZ15: 1.4 | CA15: 623.1412926 | CB15: 212203 | CC15: 62331 | CD15: 149872 | CE15: 1131967723 | CF15: 500974 | CG15: 31 | CH15: 46822 | CI15: 22.1 | CJ15: 24404 | CK15: 11.5 | CL15: 1716 | CM15: 0.8 | CN15: 0 | CO15: 0 | CP15: 0 | CQ15: 0 | CR15: 5334 | CS15: 157 | CT15: 51034 | CU15: 6296 | CV15: 47356 | CW15: 6988 | CX15: 3678 | CY15: 0 | CZ15: 0 | DA15: 0
A16: ABL | B16: bird_15C | C16: ABL | D16: 229 | E16: 0.5180995475 | F16: 61 | G16: 132 | H16: 2.36 | I16: 0.6885 | J16: 0 | K16: 0 | L16: 0 | M16: 0 | N16: 0 | O16: 0 | P16: 0 | Q16: 1976 | R16: 1768 | S16: 1695 | T16: 577 | U16: 577 | V16: 552 | W16: 0.95667 | X16: 551.99859 | Y16: 1768 | Z16: 1695 | AA16: 577 | AB16: 577 | AC16: 552 | AD16: 0.95667 | AE16: 551.99859 | AF16: 0.201308 | AG16: 0.000208964 | AH16: 1.01252 | AI16: 4845.4 | AJ16: 0 | AK16: 0 | AL16: - | AM16: - | AN16: - | AO16: - | AP16: - | AQ16: - | AR16: - | AS16: - | AT16: - | AV16: 2044334 | AW16: 1155594232 | AX16: 0.1981664443 | AY16: 96.3 | AZ16: 32652633 | BA16: 2.7 | BB16: 203381 | BC16: 59 | BD16: 287546 | BE16: 14.1 | BF16: 8588 | BG16: 0.4 | BH16: 2 | BI16: 0 | BJ16: 0 | BK16: 0 | BL16: 0 | BM16: 0 | BN16: 565 | BO16: 117 | BP16: 2759 | BQ16: 104059 | BR16: 2611 | BS16: 112330 | BT16: 148 | BU16: 0 | BV16: 0 | BW16: 0 | BX16: 0 | BY16: 100 | BZ16: 1 | CA16: 0 | CB16: 2044334 | CC16: 0 | CD16: 2044334 | CE16: 1155594232 | CF16: 203381 | CG16: 59 | CH16: 287546 | CI16: 14.1 | CJ16: 8588 | CK16: 0.4 | CL16: 2 | CM16: 0 | CN16: 0 | CO16: 0 | CP16: 0 | CQ16: 0 | CR16: 565 | CS16: 117 | CT16: 2759 | CU16: 104059 | CV16: 2611 | CW16: 112330 | CX16: 148 | CY16: 0 | CZ16: 0 | DA16: 0
A17: BCM | B17: fish_1C | C17: BCM-HGSC | D17: 434 | E17: 0.9538461538 | F17: 228 | G17: 233 | H17: 1.33 | I17: 0.2456 | J17: 816544000 | K17: 0.9224970552 | L17: 2554000 | M17: 54292000 | N17: 235062000 | O17: 289355000 | P17: 0.354365472 | AJ17: 73953 | AK17: 125122987 | AL17: 8027 | AM17: 4868 | AN17: 6.582559193 | AO17: 3321451 | AP17: 392921 | AQ17: 655446116 | AR17: 74.0495444 | AS17: 0.07911920406 | AT17: 51858375 | AU17: 2.037624456e+13 | AV17: 84294 | AW17: 885145373 | AX17: 0.4903149395 | AY17: 88.5 | AZ17: 848881124 | BA17: 84.9 | BB17: 21930816 | BC17: 39 | BD17: 3783 | BE17: 4.5 | BF17: 1195 | BG17: 1.4 | BH17: 371 | BI17: 0.4 | BJ17: 178 | BK17: 0.2 | BL17: 15 | BM17: 0 | BN17: 10501 | BO17: 221 | BP17: 4966190 | BQ17: 49 | BR17: 4373261 | BS17: 61 | BT17: 592929 | BU17: 14.14 | BV17: 0 | BW17: 0 | BX17: 97.4 | BY17: 2.6 | BZ17: 1.7 | CA17: 1990.063246 | CB17: 147112 | CC17: 65102 | CD17: 82010 | CE17: 760133580 | CF17: 300452 | CG17: 1 | CH17: 52169 | CI17: 35.5 | CJ17: 19274 | CK17: 13.1 | CL17: 557 | CM17: 0.4 | CN17: 0 | CO17: 0 | CP17: 0 | CQ17: 0 | CR17: 5167 | CS17: 407 | CT17: 31673 | CU17: 6488 | CV17: 19381 | CW17: 11316 | CX17: 12292 | CY17: 0.01 | CZ17: 0 | DA17: 0
A18: CTD* | B18: fish_2E | C18: CTD | D18: 169 | E18: 0.3714285714 | F18: 25 | G18: 107 | H18: 2.92 | I18: 0.96 | J18: 0 | K18: 0 | L18: 0 | M18: 0 | N18: 0 | O18: 0 | P18: 0 | AJ18: 0 | AK18: 0 | AL18: - | AM18: - | AN18: - | AO18: - | AP18: - | AQ18: - | AR18: - | AS18: - | AT18: - | AV18: 2998798 | AW18: 1502852872 | AX18: 0.1124527911 | AY18: 150.3 | AZ18: 0 | BA18: 0 | BB18: 14443 | BC18: 101 | BD18: 286536 | BE18: 9.6 | BF18: 2 | BG18: 0 | BH18: 0 | BI18: 0 | BJ18: 0 | BK18: 0 | BL18: 0 | BM18: 0 | BN18: 501 | BO18: 371 | BP18: 638 | BQ18: 721259 | BR18: 883 | BS18: 384664 | BT18: 245 | BU18: 0 | BV18: 0 | BW18: 0 | BX18: 0 | BY18: 100 | BZ18: 1 | CA18: 0 | CB18: 2998798 | CC18: 0 | CD18: 2998798 | CE18: 1502852872 | CF18: 14443 | CG18: 101 | CH18: 286536 | CI18: 9.6 | CJ18: 2 | CK18: 0 | CL18: 0 | CM18: 0 | CN18: 0 | CO18: 0 | CP18: 0 | CQ18: 0 | CR18: 501 | CS18: 371 | CT18: 638 | CU18: 721259 | CV18: 883 | CW18: 384664 | CX18: 245 | CY18: 0 | CZ18: 0 | DA18: 0
A19: SGA | B19: fish_3C | C19: SGA | D19: 423 | E19: 0.9296703297 | F19: 207 | G19: 234 | H19: 1.41 | I19: 0.285 | J19: 159806000 | K19: 0.19674734 | L19: 15378000 | M19: 52416000 | N19: 24075000 | O19: 76491000 | P19: 0.478649112 | AJ19: 78326 | AK19: 140242907 | AL19: 5033 | AM19: 4401 | AN19: 5.61882389 | AO19: 965483 | AP19: 72361 | AQ19: 615818744 | AR19: 75.81736592 | AS19: 0.6585037357 | AT19: 405518943.4 | AU19: 2.934375626e+13 | AV19: 90811 | AW19: 812239698 | AX19: 0.5207822285 | AY19: 81.2 | AZ19: 663780109 | BA19: 66.4 | BB19: 1760697 | BC19: 500 | BD19: 44894 | BE19: 49.4 | BF19: 9103 | BG19: 10 | BH19: 1974 | BI19: 2.2 | BJ19: 6 | BK19: 0 | BL19: 0 | BM19: 0 | BN19: 8944 | BO19: 992 | BP19: 109887 | BQ19: 1746 | BR19: 73332 | BS19: 2793 | BT19: 36555 | BU19: 17.27 | BV19: 0 | BW19: 0 | BX19: 88.9 | BY19: 11.1 | BZ19: 1.9 | CA19: 1790.502604 | CB19: 169137 | CC19: 89899 | CD19: 79238 | CE19: 671996791 | CF19: 111299 | CG19: 103 | CH19: 122963 | CI19: 72.7 | CJ19: 16554 | CK19: 9.8 | CL19: 2 | CM19: 0 | CN19: 0 | CO19: 0 | CP19: 0 | CQ19: 0 | CR19: 3973 | CS19: 1943 | CT19: 7954 | CU19: 23520 | CV19: 3755 | CW19: 53355 | CX19: 4199 | CY19: 0 | CZ19: 0 | DA19: 0
A20: RAY | B20: fish_4C | C20: Ray | D20: 435 | E20: 0.956043956 | F20: 210 | G20: 236 | H20: 1.64 | I20: 0.381 | J20: 10290000 | K20: 0.01293514588 | L20: 1879000 | M20: 4965000 | N20: 1477000 | O20: 6442000 | P20: 0.6260447036 | AJ20: 55359 | AK20: 56468502 | AL20: 3598 | AM20: 2720 | AN20: 4.913383551 | AO20: 408139 | AP20: 40349 | AQ20: 645338349 | AR20: 81.12289297 | AS20: 0.8548516949 | AT20: 551668581.4 | AU20: 2.225927559e+13 | AV20: 126254 | AW20: 795507070 | AX20: 0.5468210358 | AY20: 79.6 | AZ20: 536091861 | BA20: 53.6 | BB20: 520692 | BC20: 100 | BD20: 67419 | BE20: 53.4 | BF20: 14733 | BG20: 11.7 | BH20: 1244 | BI20: 1 | BJ20: 0 | BK20: 0 | BL20: 0 | BM20: 0 | BN20: 6301 | BO20: 1125 | BP20: 47200 | BQ20: 4420 | BR20: 30463 | BS20: 7108 | BT20: 16737 | BU20: 7.1 | BV20: 0 | BW20: 0 | BX20: 80.8 | BY20: 19.2 | BZ20: 1.4 | CA20: 1026.492837 | CB20: 181260 | CC20: 73478 | CD20: 107782 | CE20: 739043805 | CF20: 87518 | CG20: 100 | CH20: 119684 | CI20: 66 | CJ20: 20233 | CK20: 11.2 | CL20: 0 | CM20: 0 | CN20: 0 | CO20: 0 | CP20: 0 | CQ20: 0 | CR20: 4077 | CS20: 1864 | CT20: 9105 | CU20: 23583 | CV20: 5860 | CW20: 41449 | CX20: 3245 | CY20: 0 | CZ20: 0 | DA20: 0
A21: SYM | B21: fish_5C | C21: Symbiose | D21: 428 | E21: 0.9406593407 | F21: 221 | G21: 237 | H21: 1.3 | I21: 0.2308 | J21: 786574000 | K21: 0.6873967166 | L21: 0 | M21: 1382000 | N21: 144821000 | O21: 146204000 | P21: 0.1858744378 | AJ21: 58723 | AK21: 224521104 | AL21: 8234 | AM21: 2538 | AN21: 4.321986275 | AO21: 2780186 | AP21: 294522 | AQ21: 519263773 | AR21: 45.37910134 | AS21: 0.2373179355 | AT21: 123230606.6 | AU21: 3.629412472e+13 | AV21: 319367 | AW21: 1144279542 | AX21: 0.374034477 | AY21: 114.4 | AZ21: 881017133 | BA21: 88.1 | BB21: 9708937 | BC21: 27 | BD21: 79672 | BE21: 24.9 | BF21: 2490 | BG21: 0.8 | BH21: 781 | BI21: 0.2 | BJ21: 274 | BK21: 0.1 | BL21: 0 | BM21: 0 | BN21: 3583 | BO21: 386 | BP21: 1241044 | BQ21: 220 | BR21: 1532535 | BS21: 169 | BT21: 291491 | BU21: 19.62 | BV21: 0 | BW21: 0 | BX21: 83.6 | BY21: 16.4 | BZ21: 1.2 | CA21: 4116.684417 | CB21: 371994 | CC21: 79461 | CD21: 292533 | CE21: 919780274 | CF21: 400522 | CG21: 1 | CH21: 99211 | CI21: 26.7 | CJ21: 16738 | CK21: 4.5 | CL21: 948 | CM21: 0.3 | CN21: 0 | CO21: 0 | CP21: 0 | CQ21: 0 | CR21: 2473 | CS21: 426 | CT21: 30868 | CU21: 7067 | CV21: 25525 | CW21: 8497 | CX21: 5343 | CY21: 0 | CZ21: 0 | DA21: 0
A22: ALLP | B22: fish_6C | C22: Allpaths | D22: 430 | E22: 0.9450549451 | F22: 225 | G22: 234 | H22: 1.31 | I22: 0.24 | J22: 808810000 | K22: 0.9561715384 | L22: 2559000 | M22: 60787000 | N22: 226351000 | O22: 287138000 | P22: 0.3550129202 | AJ22: 67600 | AK22: 127082466 | AL22: 7677 | AM22: 4326 | AN22: 6.399408284 | AO22: 3163263 | AP22: 359395 | AQ22: 608366501 | AR22: 71.92081368 | AS22: 0.08953294492 | AT22: 54468844.43 | AU22: 1.957583034e+13 | AV22: 2806 | AW22: 845883785 | AX22: 0.5083440629 | AY22: 84.6 | AZ22: 837139691 | BA22: 83.7 | BB22: 20142773 | BC22: 959 | BD22: 2801 | BE22: 99.8 | BF22: 791 | BG22: 28.2 | BH22: 443 | BI22: 15.8 | BJ22: 200 | BK22: 7.1 | BL22: 11 | BM22: 0.4 | BN22: 301455 | BO22: 3268 | BP22: 4014109 | BQ22: 57 | BR22: 3050429 | BS22: 78 | BT22: 963680 | BU22: 15.02 | BV22: 0.09 | BW22: 746531 | BX22: 99.6 | BY22: 0.4 | BZ22: 25 | CA22: 1887.205637 | CB22: 70143 | CC22: 68593 | CD22: 1550 | CE22: 718805019 | CF22: 213789 | CG22: 40 | CH22: 68503 | CI22: 97.7 | CJ22: 22612 | CK22: 32.2 | CL22: 86 | CM22: 0.1 | CN22: 0 | CO22: 0 | CP22: 0 | CQ22: 0 | CR22: 10248 | CS22: 5446 | CT22: 20130 | CU22: 10140 | CV22: 11902 | CW22: 19236 | CX22: 8228 | CY22: 0 | CZ22: 0.1 | DA22: 746531
A23: ABYSS | B23: fish_7C | C23: ABySS | D23: 431 | E23: 0.9472527473 | F23: 224 | G23: 236 | H23: 1.29 | I23: 0.2143 | J23: 666130000 | K23: 0.7608674185 | L23: 578000 | M23: 41930000 | N23: 157680000 | O23: 199611000 | P23: 0.2996577245 | AJ23: 143574 | AK23: 170580835 | AL23: 5844 | AM23: 7392 | AN23: 5.148564503 | AO23: 1026805 | AP23: 125381 | AQ23: 623657275 | AR23: 71.23541964 | AS23: 0.1174095931 | AT23: 73223346.88 | AU23: 9.180816456e+12 | AV23: 141476 | AW23: 875487613 | AX23: 0.4922970852 | AY23: 87.5 | AZ23: 757370463 | BA23: 75.7 | BB23: 6408114 | BC23: 185 | BD23: 23110 | BE23: 16.3 | BF23: 2949 | BG23: 2.1 | BH23: 918 | BI23: 0.6 | BJ23: 230 | BK23: 0.2 | BL23: 0 | BM23: 0 | BN23: 6188 | BO23: 318 | BP23: 1067894 | BQ23: 208 | BR23: 847430 | BS23: 273 | BT23: 220464 | BU23: 19.48 | BV23: 0 | BW23: 231 | BX23: 92.1 | BY23: 7.9 | BZ23: 2 | CA23: 1207.468528 | CB23: 282744 | CC23: 149937 | CD23: 132807 | CE23: 704910949 | CF23: 62602 | CG23: 56 | CH23: 141361 | CI23: 50 | CJ23: 13241 | CK23: 4.7 | CL23: 0 | CM23: 0 | CN23: 0 | CO23: 0 | CP23: 0 | CQ23: 0 | CR23: 2493 | CS23: 1000 | CT23: 5960 | CU23: 33472 | CV23: 3333 | CW23: 66474 | CX23: 2627 | CY23: 0 | CZ23: 0 | DA23: 231
A24: MERAC | B24: fish_8C | C24: meraculous | D24: 426 | E24: 0.9362637363 | F24: 216 | G24: 237 | H24: 1.26 | I24: 0.2083 | J24: 618448000 | K24: 0.7375395574 | L24: 3895000 | M24: 55354000 | N24: 145532000 | O24: 200886000 | P24: 0.3248227822 | AJ24: 133116 | AK24: 155715633 | AL24: 6141 | AM24: 6746 | AN24: 5.06776045 | AO24: 1134202 | AP24: 126149 | AQ24: 598036713 | AR24: 71.3197767 | AS24: 0.1430560832 | AT24: 85552789.77 | AU24: 1.079239888e+13 | AV24: 242819 | AW24: 838528583 | AX24: 0.5080327715 | AY24: 83.9 | AZ24: 729158110 | BA24: 72.9 | BB24: 7462314 | BC24: 57 | BD24: 17641 | BE24: 7.3 | BF24: 2602 | BG24: 1.1 | BH24: 1066 | BI24: 0.4 | BJ24: 200 | BK24: 0.1 | BL24: 0 | BM24: 0 | BN24: 3453 | BO24: 193 | BP24: 881815 | BQ24: 238 | BR24: 613236 | BS24: 347 | BT24: 268579 | BU24: 18.57 | BV24: 0 | BW24: 0 | BX24: 91.1 | BY24: 8.9 | BZ24: 1.5 | CA24: 1169.773979 | CB24: 375935 | CC24: 147219 | CD24: 228716 | CE24: 682812950 | CF24: 76409 | CG24: 57 | CH24: 124828 | CI24: 33.2 | CJ24: 14410 | CK24: 3.8 | CL24: 0 | CM24: 0 | CN24: 0 | CO24: 0 | CP24: 0 | CQ24: 0 | CR24: 1816 | CS24: 364 | CT24: 6587 | CU24: 28383 | CV24: 3056 | CW24: 63220 | CX24: 3531 | CY24: 0 | CZ24: 0 | DA24: 0
A25: CTD | B25: fish_9C | C25: CTD | D25: 350 | E25: 0.7692307692 | F25: 103 | G25: 199 | H25: 3.4 | I25: 0.9223 | J25: 0 | K25: 0 | L25: 0 | M25: 0 | N25: 0 | O25: 0 | P25: 0 | AJ25: 0 | AK25: 0 | AL25: - | AM25: - | AN25: - | AO25: - | AP25: - | AQ25: - | AR25: - | AS25: - | AT25: - | AV25: 895482 | AW25: 1385606557 | AX25: 0.2525969571 | AY25: 138.6 | AZ25: 0 | BA25: 0 | BB25: 24847 | BC25: 121 | BD25: 486226 | BE25: 54.3 | BF25: 1510 | BG25: 0.2 | BH25: 0 | BI25: 0 | BJ25: 0 | BK25: 0 | BL25: 0 | BM25: 0 | BN25: 1547 | BO25: 1106 | BP25: 2250 | BQ25: 186966 | BR25: 2954 | BS25: 111980 | BT25: 704 | BU25: 0 | BV25: 0 | BW25: 0 | BX25: 0 | BY25: 100 | BZ25: 1 | CA25: 0 | CB25: 895482 | CC25: 0 | CD25: 895482 | CE25: 1385606557 | CF25: 24847 | CG25: 121 | CH25: 486226 | CI25: 54.3 | CJ25: 1510 | CK25: 0.2 | CL25: 0 | CM25: 0 | CN25: 0 | CO25: 0 | CP25: 0 | CQ25: 0 | CR25: 1547 | CS25: 1106 | CT25: 2250 | CU25: 186966 | CV25: 2954 | CW25: 111980 | CX25: 704 | CY25: 0 | CZ25: 0 | DA25: 0
A26: CTD** | B26: fish_10E | C26: CTD | D26: 207 | E26: 0.4549450549 | F26: 41 | G26: 130 | H26: 2.98 | I26: 0.9512 | J26: 0 | K26: 0 | L26: 0 | M26: 0 | N26: 0 | O26: 0 | P26: 0 | AJ26: 0 | AK26: 0 | AL26: - | AM26: - | AN26: - | AO26: - | AP26: - | AQ26: - | AR26: - | AS26: - | AT26: - | AV26: 1814638 | AW26: 1267700232 | AX26: 0.1632878142 | AY26: 126.8 | AZ26: 0 | BA26: 0 | BB26: 14470 | BC26: 47 | BD26: 378911 | BE26: 20.9 | BF26: 3 | BG26: 0 | BH26: 0 | BI26: 0 | BJ26: 0 | BK26: 0 | BL26: 0 | BM26: 0 | BN26: 699 | BO26: 498 | BP26: 974 | BQ26: 395968 | BR26: 1203 | BS26: 272085 | BT26: 229 | BU26: 0 | BV26: 0 | BW26: 0 | BX26: 0 | BY26: 100 | BZ26: 1 | CA26: 0 | CB26: 1814638 | CC26: 0 | CD26: 1814638 | CE26: 1267700232 | CF26: 14470 | CG26: 47 | CH26: 378911 | CI26: 20.9 | CJ26: 3 | CK26: 0 | CL26: 0 | CM26: 0 | CN26: 0 | CO26: 0 | CP26: 0 | CQ26: 0 | CR26: 699 | CS26: 498 | CT26: 974 | CU26: 395968 | CV26: 1203 | CW26: 272085 | CX26: 229 | CY26: 0 | CZ26: 0 | DA26: 0
A27: SOAP* | B27: fish_11E | C27: SOAPdenovo | D27: 436 | E27: 0.9582417582 | F27: 225 | G27: 241 | H27: 1.33 | I27: 0.2489 | J27: 882332000 | K27: 0.8035112725 | L27: 0 | M27: 525000 | N27: 67196000 | O27: 67721000 | P27: 0.07675228825 | AJ27: 205649 | AK27: 276688417 | AL27: 6082 | AM27: 8117 | AN27: 3.947016518 | AO27: 1845362 | AP27: 184279 | AQ27: 622379904 | AR27: 56.67812894 | AS27: 0.138917137 | AT27: 86459234.39 | AU27: 1.593262125e+13 | AV27: 250916 | AW27: 1098095360 | AX27: 0.3970511268 | AY27: 109.8 | AZ27: 988908263 | BA27: 98.9 | BB27: 9691671 | BC27: 100 | BD27: 15050 | BE27: 6 | BF27: 3398 | BG27: 1.4 | BH27: 1101 | BI27: 0.4 | BJ27: 301 | BK27: 0.1 | BL27: 0 | BM27: 0 | BN27: 4376 | BO27: 130 | BP27: 1326539 | BQ27: 219 | BR27: 1468157 | BS27: 184 | BT27: 141618 | BU27: 25.2 | BV27: 0 | BW27: 0 | BX27: 95.7 | BY27: 4.3 | BZ27: 1.8 | CA27: 1345.440129 | CB27: 456565 | CC27: 216466 | CD27: 240099 | CE27: 821406943 | CF27: 87527 | CG27: 8 | CH27: 128981 | CI27: 28.3 | CJ27: 20549 | CK27: 4.5 | CL27: 0 | CM27: 0 | CN27: 0 | CO27: 0 | CP27: 0 | CQ27: 0 | CR27: 1799 | CS27: 229 | CT27: 8152 | CU27: 27928 | CV27: 6001 | CW27: 40685 | CX27: 2151 | CY27: 0 | CZ27: 0 | DA27: 0
A28: CSHL | B28: fish_12C | C28: CSHL | D28: 436 | E28: 0.9582417582 | F28: 227 | G28: 236 | H28: 1.33 | I28: 0.2555 | J28: 809184000 | K28: 0.9575130878 | L28: 3087000 | M28: 58688000 | N28: 227765000 | O28: 286453000 | P28: 0.3540023036 | AJ28: 67315 | AK28: 125951143 | AL28: 7658 | AM28: 4307 | AN28: 6.398276759 | AO28: 3159939 | AP28: 362909 | AQ28: 621900980 | AR28: 73.58997801 | AS28: 0.09784065714 | AT28: 60847200.56 | AU28: 2.208199671e+13 | AV28: 3188 | AW28: 845089232 | AX28: 0.51592185 | AY28: 84.5 | AZ28: 835721259 | BA28: 83.6 | BB28: 25478728 | BC28: 935 | BD28: 3180 | BE28: 99.7 | BF28: 785 | BG28: 24.6 | BH28: 443 | BI28: 13.9 | BJ28: 208 | BK28: 6.5 | BL28: 10 | BM28: 0.3 | BN28: 265084 | BO28: 2399 | BP28: 3709184 | BQ28: 57 | BR28: 2945418 | BS28: 81 | BT28: 763766 | BU28: 14.9 | BV28: 0.09 | BW28: 720817 | BX28: 99.5 | BY28: 0.5 | BZ28: 18.8 | CA28: 2215.289663 | CB28: 60030 | CC28: 58093 | CD28: 1937 | CE28: 719167737 | CF28: 278774 | CG28: 40 | CH28: 58778 | CI28: 97.9 | CJ28: 21161 | CK28: 35.3 | CL28: 229 | CM28: 0.4 | CN28: 0 | CO28: 0 | CP28: 0 | CQ28: 0 | CR28: 11980 | CS28: 6011 | CT28: 25190 | CU28: 7978 | CV28: 14402 | CW28: 15352 | CX28: 10788 | CY28: 0 | CZ28: 0.1 | DA28: 720817
A29: IOB | B29: fish_13C | C29: IOBUGA | D29: 387 | E29: 0.8505494505 | F29: 163 | G29: 222 | H29: 1.23 | I29: 0.184 | J29: 415843000 | K29: 0.5034725492 | L29: 0 | M29: 0 | N29: 6047000 | O29: 6047000 | P29: 0.01454154573 | AJ29: 182004 | AK29: 302147903 | AL29: 5043 | AM29: 14002 | AN29: 7.693237511 | AO29: 403314 | AP29: 51636 | AQ29: 425019877 | AR29: 51.45832464 | AS29: 0.1702057526 | AT29: 72340828.05 | AU29: 3.735390997e+12 | AV29: 15892 | AW29: 825949698 | AX29: 0.4685515364 | AY29: 82.6 | AZ29: 777006592 | BA29: 77.7 | BB29: 2055511 | BC29: 883 | BD29: 15724 | BE29: 98.9 | BF29: 5665 | BG29: 35.6 | BH29: 2230 | BI29: 14 | BJ29: 46 | BK29: 0.3 | BL29: 0 | BM29: 0 | BN29: 51973 | BO29: 2727 | BP29: 303374 | BQ29: 779 | BR29: 229222 | BS29: 1111 | BT29: 74152 | BU29: 36.58 | BV29: 0 | BW29: 0 | BX29: 98.2 | BY29: 1.8 | BZ29: 12.4 | CA29: 1664.116846 | CB29: 197453 | CC29: 188723 | CD29: 8730 | CE29: 523805987 | CF29: 42428 | CG29: 0 | CH29: 193997 | CI29: 98.2 | CJ29: 2132 | CK29: 1.1 | CL29: 0 | CM29: 0 | CN29: 0 | CO29: 0 | CP29: 0 | CQ29: 0 | CR29: 2653 | CS29: 2026 | CT29: 3126 | CU29: 51074 | CV29: 1180 | CW29: 175037 | CX29: 1946 | CY29: 0 | CZ29: 0 | DA29: 0
A30: CSHL* | B30: fish_14E | C30: CSHL | D30: 436 | E30: 0.9582417582 | F30: 227 | G30: 236 | H30: 1.33 | I30: 0.2511 | J30: 809280000 | K30: 0.9581158283 | L30: 3088000 | M30: 58693000 | N30: 227394000 | O30: 286087000 | P30: 0.3535080565 | AJ30: 67583 | AK30: 126079002 | AL30: 7673 | AM30: 4359 | AN30: 6.449846855 | AO30: 3159939 | AP30: 356878 | AQ30: 623699474 | AR30: 73.84049255 | AS30: 0.09619309022 | AT30: 59995579.77 | AU30: 2.141110252e+13 | AV30: 2791 | AW30: 844657792 | AX30: 0.5161853761 | AY30: 84.5 | AZ30: 835818738 | BA30: 83.6 | BB30: 25479815 | BC30: 935 | BD30: 2787 | BE30: 99.9 | BF30: 785 | BG30: 28.1 | BH30: 443 | BI30: 15.9 | BJ30: 208 | BK30: 7.5 | BL30: 10 | BM30: 0.4 | BN30: 302636 | BO30: 3312 | BP30: 3710017 | BQ30: 57 | BR30: 2946467 | BS30: 81 | BT30: 763550 | BU30: 14.93 | BV30: 0.09 | BW30: 721024 | BX30: 99.6 | BY30: 0.4 | BZ30: 21.6 | CA30: 2195.758091 | CB30: 60197 | CC30: 58661 | CD30: 1536 | CE30: 718608103 | CF30: 278774 | CG30: 40 | CH30: 58928 | CI30: 97.9 | CJ30: 21248 | CK30: 35.3 | CL30: 223 | CM30: 0.4 | CN30: 0 | CO30: 0 | CP30: 0 | CQ30: 0 | CR30: 11938 | CS30: 6059 | CT30: 24856 | CU30: 8078 | CV30: 14238 | CW30: 15558 | CX30: 10618 | CY30: 0 | CZ30: 0.1 | DA30: 721024
A31: CSHL** | B31: fish_15E | C31: CSHL | D31: 307 | E31: 0.6747252747 | F31: 86 | G31: 178 | H31: 2.47 | I31: 0.7326 | J31: 0 | K31: 0 | L31: 0 | M31: 0 | N31: 0 | O31: 0 | P31: 0 | AJ31: 28421 | AK31: 52764 | AL31: 1 | AM31: 6 | AN31: 0.02111115021 | AO31: 42820 | AP31: 2818 | AQ31: 484796226 | AR31: 88.83374773 | AS31: 1 | AT31: 484796226 | AU31: 1366155764868 | AV31: 218643 | AW31: 545734294 | AX31: 0.5625448197 | AY31: 54.6 | AZ31: 269356 | BA31: 0 | BB31: 42820 | BC31: 1000 | BD31: 218479 | BE31: 99.9 | BF31: 1431 | BG31: 0.7 | BH31: 0 | BI31: 0 | BJ31: 0 | BK31: 0 | BL31: 0 | BM31: 0 | BN31: 2496 | BO31: 1956 | BP31: 2818 | BQ31: 59772 | BR31: 1301 | BS31: 178732 | BT31: 1517 | BU31: 0.01 | BV31: 0 | BW31: 0 | BX31: 0 | BY31: 100 | BZ31: 1 | CA31: 0 | CB31: 218643 | CC31: 0 | CD31: 218643 | CE31: 545734294 | CF31: 42820 | CG31: 1000 | CH31: 218479 | CI31: 99.9 | CJ31: 1431 | CK31: 0.7 | CL31: 0 | CM31: 0 | CN31: 0 | CO31: 0 | CP31: 0 | CQ31: 0 | CR31: 2496 | CS31: 1956 | CT31: 2818 | CU31: 59772 | CV31: 1301 | CW31: 178732 | CX31: 1517 | CY31: 0.01 | CZ31: 0 | DA31: 0
A32: IOB* | B32: fish_16E | C32: IOBUGA | D32: 83 | E32: 0.1824175824 | F32: 16 | G32: 77 | H32: 1.19 | I32: 0.125 | J32: 0 | K32: 0 | L32: 0 | M32: 0 | N32: 0 | O32: 0 | P32: 0 | AJ32: 442223 | AK32: 1638127934 | AL32: 769 | AM32: 20167 | AN32: 4.560368864 | AO32: 181669 | AP32: 13340 | AQ32: 348700177 | AR32: 14.19522319 | AS32: 0.6446312941 | AT32: 224783046.4 | AU32: 2.998605838e+12 | AV32: 1771927 | AW32: 2456461390 | AX32: 0.0337884407 | AY32: 245.6 | AZ32: 1124232749 | BA32: 112.4 | BB32: 257230 | BC32: 100 | BD32: 151311 | BE32: 8.5 | BF32: 61850 | BG32: 3.5 | BH32: 645 | BI32: 0 | BJ32: 0 | BK32: 0 | BL32: 0 | BM32: 0 | BN32: 1386 | BO32: 128 | BP32: 20694 | BQ32: 28259 | BR32: 49719 | BS32: 7070 | BT32: 29025 | BU32: 66.69 | BV32: 0 | BW32: 0 | BX32: 85.2 | BY32: 14.8 | BZ32: 1.2 | CA32: 3712.632479 | CB32: 2212339 | CC32: 575194 | CD32: 1637145 | CE32: 818340274 | CF32: 15078 | CG32: 0 | CH32: 172912 | CI32: 7.8 | CJ32: 15 | CK32: 0 | CL32: 0 | CM32: 0 | CN32: 0 | CO32: 0 | CP32: 0 | CQ32: 0 | CR32: 370 | CS32: 174 | CT32: 659 | CU32: 327162 | CV32: 474 | CW32: 489859 | CX32: 185 | CY32: 0 | CZ32: 0 | DA32: 0
A33: BCM | B33: snake_1C | C33: BCM-HGSC | D33: 434 | E33: 0.9559471366 | F33: 214 | G33: 234 | H33: 1.19 | I33: 0.1542 | J33: 1343790000 | K33: 0.9221061843 | L33: 61989000 | M33: 322144000 | N33: 358644000 | O33: 680789000 | P33: 0.5066185937 | Q33: 700 | R33: 662 | S33: 609 | T33: 267 | U33: 258 | V33: 240 | W33: 0.93023 | X33: 248.37141 | Y33: 662 | Z33: 609 | AA33: 278 | AB33: 266 | AC33: 240 | AD33: 0.90226 | AE33: 250.82828 | AF33: 0.495555 | AG33: 0.000130506 | AH33: 1.01191 | AI33: 7753.76 | AJ33: 186655 | AK33: 110523261 | AL33: 1554 | AM33: 7903 | AN33: 4.234014626 | AO33: 2518727 | AP33: 307148 | AQ33: 1175620107 | AR33: 80.67083183 | AS33: 0.2013415868 | AT33: 236701217.8 | AU33: 7.270230564e+13 | AV33: 80257 | AW33: 1457305051 | AX33: 0.2978099882 | AY33: 91.1 | AZ33: 1430432433 | BA33: 89.4 | BB33: 7189042 | BC33: 60 | BD33: 2672 | BE33: 3.3 | BF33: 1889 | BG33: 2.4 | BH33: 1465 | BI33: 1.8 | BJ33: 507 | BK33: 0.6 | BL33: 0 | BM33: 0 | BN33: 18158 | BO33: 253 | BP33: 1525507 | BQ33: 298 | BR33: 1403225 | BS33: 347 | BT33: 122282 | BU33: 7.58 | BV33: 0 | BW33: 0 | BX33: 98.4 | BY33: 1.6 | BZ33: 2.9 | CA33: 719.8021376 | CB33: 233323 | CC33: 155259 | CD33: 78064 | CE33: 1347127817 | CF33: 172797 | CG33: 60 | CH33: 127750 | CI33: 54.8 | CJ33: 44123 | CK33: 18.9 | CL33: 44 | CM33: 0 | CN33: 0 | CO33: 0 | CP33: 0 | CQ33: 0 | CR33: 5774 | CS33: 1409 | CT33: 17553 | CU33: 22547 | CV33: 14038 | CW33: 30596 | CX33: 3515 | CY33: 0.03 | CZ33: 0 | DA33: 0
A34: RAY | B34: snake_2C | C34: Ray | D34: 422 | E34: 0.9295154185 | F34: 194 | G34: 236 | H34: 1.37 | I34: 0.2835 | J34: 219798000 | K34: 0.1422836571 | L34: 7988000 | M34: 33118000 | N34: 29491000 | O34: 62609000 | P34: 0.2848479058 | Q34: 700 | R34: 675 | S34: 590 | T34: 309 | U34: 264 | V34: 256 | W34: 0.9697 | X34: 299.6373 | Y34: 675 | Z34: 590 | AA34: 317 | AB34: 268 | AC34: 256 | AD34: 0.95522 | AE34: 302.80474 | AF34: 0.584228 | AG34: 0.00014615 | AH34: 1.01585 | AI34: 6950.75 | AJ34: 88963 | AK34: 125192965 | AL34: 3133 | AM34: 1638 | AN34: 1.841214887 | AO34: 1147836 | AP34: 123598 | AQ34: 1074709926 | AR34: 69.57008644 | AS34: 0.9335830985 | AT34: 1003331023 | AU34: 1.240097078e+14 | AV34: 142691 | AW34: 1544787395 | AX34: 0.27317675 | AY34: 96.5 | AZ34: 1388131192 | BA34: 86.6 | BB34: 1147836 | BC34: 100 | BD34: 40016 | BE34: 28 | BF34: 17013 | BG34: 11.9 | BH34: 4960 | BI34: 3.5 | BJ34: 1 | BK34: 0 | BL34: 0 | BM34: 0 | BN34: 10826 | BO34: 214 | BP34: 132391 | BQ34: 3441 | BR34: 127253 | BS34: 3654 | BT34: 5138 | BU34: 8.1 | BV34: 0 | BW34: 0 | BX34: 94 | BY34: 6 | BZ34: 1.6 | CA34: 1411.589067 | CB34: 231377 | CC34: 108495 | CD34: 122882 | CE34: 1419599207 | CF34: 145383 | CG34: 100 | CH34: 125068 | CI34: 54.1 | CJ34: 49439 | CK34: 21.4 | CL34: 35 | CM34: 0 | CN34: 0 | CO34: 0 | CP34: 0 | CQ34: 0 | CR34: 6135 | CS34: 1496 | CT34: 18313 | CU34: 23620 | CV34: 16009 | CW34: 28885 | CX34: 2304 | CY34: 0 | CZ34: 0 | DA34: 0
A35: CURT | B35: snake_3C | C35: Curtain | D35: 360 | E35: 0.7929515419 | F35: 91 | G35: 223 | H35: 1.35 | I35: 0.2967 | J35: 3342000 | K35: 0.002216159047 | L35: 0 | M35: 0 | N35: 0 | O35: 0 | P35: 0 | Q35: 700 | R35: 653 | S35: 593 | T35: 258 | U35: 240 | V35: 223 | W35: 0.92917 | X35: 239.72586 | Y35: 653 | Z35: 593 | AA35: 275 | AB35: 253 | AC35: 223 | AD35: 0.88142 | AE35: 242.3905 | AF35: 0.289783 | AG35: 7.39087e-05 | AH35: 1.0148 | AI35: 13730.5 | AJ35: 450447 | AK35: 174169194 | AL35: 1236 | AM35: 20589 | AN35: 4.570793012 | AO35: 248832 | AP35: 36423 | AQ35: 1126935719 | AR35: 74.72976629 | AS35: 0.6447347459 | AT35: 726574614.4 | AU35: 2.646402718e+13 | AV35: 115349 | AW35: 1508014510 | AX35: 0.2387244934 | AY35: 94.3 | AZ35: 1285079597 | BA35: 80.3 | BB35: 405663 | BC35: 149 | BD35: 47406 | BE35: 41.1 | BF35: 30845 | BG35: 26.7 | BH35: 2080 | BI35: 1.8 | BJ35: 0 | BK35: 0 | BL35: 0 | BM35: 0 | BN35: 13073 | BO35: 734 | BP35: 56493 | BQ35: 8614 | BR35: 53529 | BS35: 9450 | BT35: 2964 | BU35: 11.55 | BV35: 0 | BW35: 0 | BX35: 94.8 | BY35: 5.2 | BZ35: 2.3 | CA35: 1109.134038 | CB35: 269686 | CC35: 193564 | CD35: 76122 | CE35: 1336834090 | CF35: 120393 | CG35: 52 | CH35: 158027 | CI35: 58.6 | CJ35: 43432 | CK35: 16.1 | CL35: 7 | CM35: 0 | CN35: 0 | CO35: 0 | CP35: 0 | CQ35: 0 | CR35: 4957 | CS35: 1641 | CT35: 13812 | CU35: 28946 | CV35: 10833 | CW35: 39703 | CX35: 2979 | CY35: 0.22 | CZ35: 0 | DA35: 0
A36: GAM | B36: snake_4C | C36: GAM | D36: 415 | E36: 0.9140969163 | F36: 157 | G36: 237 | H36: 1.56 | I36: 0.3822 | J36: 314000 | K36: 0.0002250526853 | L36: 300000 | M36: 300000 | N36: 0 | O36: 300000 | P36: 0.9554140127 | Q36: 700 | R36: 636 | S36: 591 | T36: 238 | U36: 226 | V36: 209 | W36: 0.92478 | X36: 220.09764 | Y36: 631 | Z36: 588 | AA36: 252 | AB36: 238 | AC36: 213 | AD36: 0.89496 | AE36: 225.52992 | AF36: 0.341708 | AG36: 9.33381e-05 | AH36: 1.00773 | AI36: 10796.6 | AJ36: 749607 | AK36: 32716648 | AL36: 55 | AM36: 19131 | AN36: 2.55213732 | AO36: 313720 | AP36: 19311 | AQ36: 556812824 | AR36: 39.90835072 | AS36: 0.9702069936 | AT36: 540223696 | AU36: 1.043225979e+13 | AV36: 248607 | AW36: 1395228853 | AX36: 0.2974422433 | AY36: 87.2 | AZ36: 546866427 | BA36: 34.2 | BB36: 313720 | BC36: 200 | BD36: 116188 | BE36: 46.7 | BF36: 45783 | BG36: 18.4 | BH36: 125 | BI36: 0.1 | BJ36: 0 | BK36: 0 | BL36: 0 | BM36: 0 | BN36: 5612 | BO36: 846 | BP36: 19904 | BQ36: 20705 | BR36: 16883 | BS36: 26292 | BT36: 3021 | BU36: 2.34 | BV36: 0 | BW36: 0 | BX36: 81.1 | BY36: 18.9 | BZ36: 1.8 | CA36: 140.2434173 | CB36: 447081 | CC36: 290727 | CD36: 156354 | CE36: 1367394181 | CF36: 136983 | CG36: 10 | CH36: 221959 | CI36: 49.6 | CJ36: 35865 | CK36: 8 | CL36: 4 | CM36: 0 | CN36: 0 | CO36: 0 | CP36: 0 | CQ36: 0 | CR36: 3058 | CS36: 979 | CT36: 8360 | CU36: 48396 | CV36: 6872 | CW36: 63740 | CX36: 1488 | CY36: 0.36 | CZ36: 0 | DA36: 0
A37: PHUS | B37: snake_5C | C37: Phusion | D37: 435 | E37: 0.9581497797 | F37: 214 | G37: 236 | H37: 1.22 | I37: 0.1869 | J37: 1407260000 | K37: 0.9150266687 | L37: 114725000 | M37: 638829000 | N37: 204594000 | O37: 843423000 | P37: 0.5993370095 | Q37: 700 | R37: 687 | S37: 596 | T37: 331 | U37: 265 | V37: 241 | W37: 0.90943 | X37: 301.02133 | Y37: 687 | Z37: 596 | AA37: 336 | AB37: 266 | AC37: 241 | AD37: 0.90602 | AE37: 304.42272 | AF37: 0.419587 | AG37: 0.000110122 | AH37: 1.0673 | AI37: 9691.99 | AJ37: 48879 | AK37: 37282965 | AL37: 1336 | AM37: 4029 | AN37: 8.242803658 | AO37: 4436035 | AP37: 643203 | AQ37: 1295401528 | AR37: 84.22942063 | AS37: 0.1581832133 | AT37: 204910776.2 | AU37: 1.31799226e+14 | AV37: 108639 | AW37: 1537944246 | AX37: 0.2828451039 | AY37: 96.1 | AZ37: 1443267172 | BA37: 90.2 | BB37: 17562670 | BC37: 300 | BD37: 27451 | BE37: 25.3 | BF37: 1402 | BG37: 1.3 | BH37: 651 | BI37: 0.6 | BJ37: 359 | BK37: 0.3 | BL37: 18 | BM37: 0 | BN37: 14156 | BO37: 626 | BP37: 4066190 | BQ37: 109 | BR37: 3846246 | BS37: 116 | BT37: 219944 | BU37: 2.42 | BV37: 0 | BW37: 0 | BX37: 94.6 | BY37: 5.4 | BZ37: 1.4 | CA37: 795.9323427 | CB37: 155430 | CC37: 50355 | CD37: 105075 | CE37: 1500663571 | CF37: 523686 | CG37: 3 | CH37: 64549 | CI37: 41.5 | CJ37: 24052 | CK37: 15.5 | CL37: 3573 | CM37: 2.3 | CN37: 0 | CO37: 0 | CP37: 0 | CQ37: 0 | CR37: 9655 | CS37: 797 | CT37: 73165 | CU37: 5974 | CV37: 67973 | CW37: 6680 | CX37: 5192 | CY37: 0 | CZ37: 0 | DA37: 0
A38: MERAC | B38: snake_6C | C38: meraculous | D38: 430 | E38: 0.9471365639 | F38: 217 | G38: 235 | H38: 1.21 | I38: 0.1797 | J38: 1279176000 | K38: 0.8910131627 | L38: 279552000 | M38: 710900000 | N38: 93569000 | O38: 804469000 | P38: 0.6288962582 | Q38: 700 | R38: 680 | S38: 617 | T38: 316 | U38: 276 | V38: 264 | W38: 0.95652 | X38: 302.26032 | Y38: 680 | Z38: 617 | AA38: 320 | AB38: 277 | AC38: 264 | AD38: 0.95307 | AE38: 304.9824 | AF38: 0.323923 | AG38: 8.6546e-05 | AH38: 1.01159 | AI38: 11688.5 | AJ38: 75368 | AK38: 51177562 | AL38: 380 | AM38: 1919 | AN38: 2.546173442 | AO38: 3946141 | AP38: 779536 | AQ38: 1293918005 | AR38: 90.12817422 | AS38: 0.6298135693 | AT38: 814927117 | AU38: 635265025113520 | AV38: 54424 | AW38: 1435642091 | AX38: 0.2995175488 | AY38: 89.7 | AZ38: 1404357245 | BA38: 87.8 | BB38: 6640199 | BC38: 82 | BD38: 7078 | BE38: 13 | BF38: 2621 | BG38: 4.8 | BH38: 1699 | BI38: 3.1 | BJ38: 442 | BK38: 0.8 | BL38: 0 | BM38: 0 | BN38: 26379 | BO38: 232 | BP38: 1237725 | BQ38: 332 | BR38: 1058023 | BS38: 405 | BT38: 179702 | BU38: 3.56 | BV38: 0 | BW38: 0 | BX38: 98.6 | BY38: 1.4 | BZ38: 2.4 | CA38: 679.0356915 | CB38: 129792 | CC38: 82133 | CD38: 47659 | CE38: 1384464529 | CF38: 388005 | CG38: 82 | CH38: 69059 | CI38: 53.2 | CJ38: 38207 | CK38: 29.4 | CL38: 918 | CM38: 0.7 | CN38: 0 | CO38: 0 | CP38: 0 | CQ38: 0 | CR38: 10667 | CS38: 1475 | CT38: 35624 | CU38: 11423 | CV38: 29995 | CW38: 14720 | CX38: 5629 | CY38: 0 | CZ38: 0 | DA38: 0
A39: SGA | B39: snake_7C | C39: SGA | D39: 433 | E39: 0.9537444934 | F39: 218 | G39: 235 | H39: 1.22 | I39: 0.1835 | J39: 1373016000 | K39: 0.9515470059 | L39: 226840000 | M39: 709090000 | N39: 152209000 | O39: 861300000 | P39: 0.6273051443 | Q39: 700 | R39: 684 | S39: 616 | T39: 312 | U39: 278 | V39: 265 | W39: 0.95324 | X39: 297.41088 | Y39: 684 | Z39: 616 | AA39: 323 | AB39: 281 | AC39: 265 | AD39: 0.94306 | AE39: 304.60838 | AF39: 0.539414 | AG39: 0.000144114 | AH39: 1.01935 | AI39: 7073.22 | AJ39: 91075 | AK39: 55688379 | AL39: 342 | AM39: 2384 | AN39: 2.617622838 | AO39: 10308271 | AP39: 1295013 | AQ39: 1323517151 | AR39: 91.72426121 | AS39: 0.2874483125 | AT39: 380442771.7 | AU39: 4.926783351e+14 | AV39: 19927 | AW39: 1442930293 | AX39: 0.3000837962 | AY39: 90.2 | AZ39: 1420775968 | BA39: 88.8 | BB39: 22376278 | BC39: 500 | BD39: 4735 | BE39: 23.8 | BF39: 1234 | BG39: 6.2 | BH39: 662 | BI39: 3.3 | BJ39: 330 | BK39: 1.7 | BL39: 18 | BM39: 0.1 | BN39: 72411 | BO39: 711 | BP39: 4505203 | BQ39: 90 | BR39: 3803459 | BS39: 109 | BT39: 701744 | BU39: 3.86 | BV39: 0 | BW39: 0 | BX39: 99 | BY39: 1 | BZ39: 5.6 | CA39: 611.4562613 | CB39: 111002 | CC39: 94237 | CD39: 16765 | CE39: 1387241914 | CF39: 265251 | CG39: 84 | CH39: 83686 | CI39: 75.4 | CJ39: 42084 | CK39: 37.9 | CL39: 436 | CM39: 0.4 | CN39: 0 | CO39: 0 | CP39: 0 | CQ39: 0 | CR39: 12497 | CS39: 5667 | CT39: 29326 | CU39: 14156 | CV39: 24787 | CW39: 18099 | CX39: 4539 | CY39: 0 | CZ39: 0 | DA39: 0
A40: SYMB | B40: snake_8C | C40: Symbiose | D40: 436 | E40: 0.9603524229 | F40: 209 | G40: 236 | H40: 1.26 | I40: 0.201 | J40: 1378170000 | K40: 0.6806749856 | L40: 52316000 | M40: 358861000 | N40: 350508000 | O40: 709369000 | P40: 0.5147180682 | Q40: 700 | R40: 680 | S40: 553 | T40: 301 | U40: 224 | V40: 196 | W40: 0.875 | X40: 263.375 | Y40: 680 | Z40: 553 | AA40: 304 | AB40: 224 | AC40: 196 | AD40: 0.875 | AE40: 266 | AF40: 0.414381 | AG40: 8.12028e-05 | AH40: 1.04506 | AI40: 12869.7 | AJ40: 71760 | AK40: 270942525 | AL40: 3525 | AM40: 5014 | AN40: 6.987179487 | AO40: 6212715 | AP40: 525029 | AQ40: 1215773281 | AR40: 60.04676205 | AS40: 0.4569403225 | AT40: 555535835.2 | AU40: 2.91672424e+14 | AV40: 303359 | AW40: 2024710808 | AX40: 0.2153393948 | AY40: 126.5 | AZ40: 1515599019 | BA40: 94.7 | BB40: 9614433 | BC40: 50 | BD40: 95928 | BE40: 31.6 | BF40: 23038 | BG40: 7.6 | BH40: 1367 | BI40: 0.5 | BJ40: 507 | BK40: 0.2 | BL40: 0 | BM40: 0 | BN40: 6674 | BO40: 585 | BP40: 1149010 | BQ40: 452 | BR40: 1615595 | BS40: 297 | BT40: 466585 | BU40: 13.38 | BV40: 0 | BW40: 0 | BX40: 89.4 | BY40: 10.6 | BZ40: 1.2 | CA40: 3847.235569 | CB40: 373780 | CC40: 101544 | CD40: 272236 | CE40: 1753784632 | CF40: 578805 | CG40: 1 | CH40: 143655 | CI40: 38.4 | CJ40: 23752 | CK40: 6.4 | CL40: 3780 | CM40: 1 | CN40: 0 | CO40: 0 | CP40: 0 | CQ40: 0 | CR40: 4692 | CS40: 726 | CT40: 65989 | CU40: 7038 | CV40: 75015 | CW40: 5945 | CX40: 9026 | CY40: 0 | CZ40: 0 | DA40: 0
A41: ABYSS | B41: snake_9C | C41: ABySS | D41: 429 | E41: 0.9449339207 | F41: 208 | G41: 233 | H41: 1.24 | I41: 0.2019 | J41: 1045141000 | K41: 0.6824651225 | L41: 191799000 | M41: 515629000 | N41: 87973000 | O41: 603602000 | P41: 0.5775316441 | Q41: 700 | R41: 693 | S41: 618 | T41: 318 | U41: 277 | V41: 266 | W41: 0.96029 | X41: 305.37222 | Y41: 693 | Z41: 618 | AA41: 323 | AB41: 281 | AC41: 266 | AD41: 0.94662 | AE41: 305.75826 | AF41: 0.417712 | AG41: 0.000104487 | AH41: 1.01292 | AI41: 9694.18 | AJ41: 84816 | AK41: 51219067 | AL41: 1119 | AM41: 3911 | AN41: 4.611158272 | AO41: 2044777 | AP41: 284562 | AQ41: 1221610794 | AR41: 79.76978802 | AS41: 0.6069205864 | AT41: 741420739.5 | AU41: 2.109801685e+14 | AV41: 103933 | AW41: 1531420384 | AX41: 0.2801320947 | AY41: 95.7 | AZ41: 1447039703 | BA41: 90.4 | BB41: 2973150 | BC41: 150 | BD41: 19029 | BE41: 18.3 | BF41: 6704 | BG41: 6.5 | BH41: 3338 | BI41: 3.2 | BJ41: 196 | BK41: 0.2 | BL41: 0 | BM41: 0 | BN41: 14735 | BO41: 250 | BP41: 468862 | BQ41: 960 | BR41: 448896 | BS41: 1034 | BT41: 19966 | BU41: 3.34 | BV41: 0 | BW41: 11553 | BX41: 94.4 | BY41: 5.6 | BZ41: 1.7 | CA41: 668.7593725 | CB41: 180487 | CC41: 83062 | CD41: 97425 | CE41: 1480224179 | CF41: 221195 | CG41: 80 | CH41: 91344 | CI41: 50.6 | CJ41: 45625 | CK41: 25.3 | CL41: 348 | CM41: 0.2 | CN41: 0 | CO41: 0 | CP41: 0 | CQ41: 0 | CR41: 8201 | CS41: 1052 | CT41: 27894 | CU41: 15951 | CV41: 25646 | CW41: 18189 | CX41: 2248 | CY41: 0 | CZ41: 0 | DA41: 11553
A42: CRACS | B42: snake_10C | C42: CRACS | D42: 438 | E42: 0.9647577093 | F42: 211 | G42: 238 | H42: 1.23 | I42: 0.1943 | J42: 1185651000 | K42: 0.7781093619 | L42: 89879000 | M42: 387277000 | N42: 201507000 | O42: 588784000 | P42: 0.4965913241 | Q42: 700 | R42: 680 | S42: 618 | T42: 298 | U42: 272 | V42: 254 | W42: 0.93382 | X42: 278.27836 | Y42: 680 | Z42: 619 | AA42: 306 | AB42: 279 | AC42: 254 | AD42: 0.91039 | AE42: 278.57934 | AF42: 0.491319 | AG42: 0.000122577 | AH42: 1.00521 | AI42: 8200.63 | AJ42: 182354 | AK42: 118206193 | AL42: 927 | AM42: 10564 | AN42: 5.793127653 | AO42: 1395410 | AP42: 190535 | AQ42: 1155225428 | AR42: 75.81419158 | AS42: 0.2761028682 | AT42: 318961054.1 | AU42: 6.077324444e+13 | AV42: 73335 | AW42: 1523758816 | AX42: 0.2874470654 | AY42: 95.2 | AZ42: 1430445129 | BA42: 89.4 | BB42: 3380167 | BC42: 200 | BD42: 21054 | BE42: 28.7 | BF42: 5904 | BG42: 8.1 | BH42: 2599 | BI42: 3.5 | BJ42: 332 | BK42: 0.5 | BL42: 0 | BM42: 0 | BN42: 20778 | BO42: 477 | BP42: 690087 | BQ42: 665 | BR42: 647986 | BS42: 722 | BT42: 42101 | BU42: 7.76 | BV42: 0 | BW42: 69523 | BX42: 96 | BY42: 4 | BZ42: 2.4 | CA42: 1141.686112 | CB42: 176512 | CC42: 111740 | CD42: 64772 | CE42: 1405963068 | CF42: 197247 | CG42: 64 | CH42: 109957 | CI42: 62.3 | CJ42: 46621 | CK42: 26.4 | CL42: 115 | CM42: 0.1 | CN42: 0 | CO42: 0 | CP42: 0 | CQ42: 0 | CR42: 7965 | CS42: 2525 | CT42: 21557 | CU42: 19513 | CV42: 18533 | CW42: 24369 | CX42: 3024 | CY42: 0.03 | CZ42: 0 | DA42: 69523
A43: SOAP | B43: snake_11C | C43: SOAPdenovo | D43: 428 | E43: 0.9427312775 | F43: 209 | G43: 233 | H43: 1.22 | I43: 0.1818 | J43: 1503653000 | K43: 0.9301448789 | L43: 12442000 | M43: 64230000 | N43: 140267000 | O43: 204497000 | P43: 0.1360001277 | Q43: 700 | R43: 688 | S43: 570 | T43: 324 | U43: 244 | V43: 226 | W43: 0.92623 | X43: 300.09852 | Y43: 688 | Z43: 570 | AA43: 334 | AB43: 251 | AC43: 226 | AD43: 0.9004 | AE43: 300.7336 | AF43: 0.44645 | AG43: 0.00011587 | AH43: 1.10593 | AI43: 9544.56 | AJ43: 132514 | AK43: 106148165 | AL43: 444 | AM43: 5550 | AN43: 4.188236715 | AO43: 3562143 | AP43: 396733 | AQ43: 1252805510 | AR43: 77.49731018 | AS43: 0.2238415737 | AT43: 280429957 | AU43: 1.112558181e+14 | AV43: 56400 | AW43: 1616579346 | AX43: 0.2647565683 | AY43: 101 | AZ43: 1597838711 | BA43: 99.9 | BB43: 9404725 | BC43: 96 | BD43: 3615 | BE43: 6.4 | BF43: 2233 | BG43: 4 | BH43: 1500 | BI43: 2.7 | BJ43: 520 | BK43: 0.9 | BL43: 0 | BM43: 0 | BN43: 28663 | BO43: 125 | BP43: 1772383 | BQ43: 260 | BR43: 1805615 | BS43: 256 | BT43: 33232 | BU43: 6.57 | BV43: 0 | BW43: 0 | BX43: 99.3 | BY43: 0.7 | BZ43: 3.3 | CA43: 801.0335889 | CB43: 188914 | CC43: 136811 | CD43: 52103 | CE43: 1510431181 | CF43: 153304 | CG43: 8 | CH43: 122401 | CI43: 64.8 | CJ43: 53504 | CK43: 28.3 | CL43: 36 | CM43: 0 | CN43: 0 | CO43: 0 | CP43: 0 | CQ43: 0 | CR43: 7995 | CS43: 4592 | CT43: 17869 | CU43: 25713 | CV43: 16821 | CW43: 28296 | CX43: 1048 | CY43: 0 | CZ43: 0 | DA43: 0
A44: PRICE | B44: snake_12C | C44: PRICE | D44: 332 | E44: 0.731277533 | F44: 116 | G44: 196 | H44: 2.22 | I44: 0.6379 | J44: 0 | K44: 0 | L44: 0 | M44: 0 | N44: 0 | O44: 0 | P44: 0 | Q44: 700 | R44: 115 | S44: 64 | T44: 37 | U44: 24 | V44: 24 | W44: 1 | X44: 37 | Y44: 115 | Z44: 64 | AA44: 37 | AB44: 24 | AC44: 24 | AD44: 1 | AE44: 37 | AF44: 0.0933747 | AG44: 0.00011516 | AH44: 1.01968 | AI44: 8854.46 | AJ44: 331 | AK44: 331 | AL44: 22 | AM44: 4 | AN44: 1.208459215 | AO44: 42551 | AP44: 6608 | AQ44: 98167628 | AR44: 31.39558895 | AS44: 1 | AT44: 98167628 | AU44: 648691685824 | AV44: 58489 | AW44: 312679683 | AX44: 1.061789486 | AY44: 19.5 | AZ44: 3011097 | BA44: 0.2 | BB44: 42551 | BC44: 150 | BD44: 56190 | BE44: 96.1 | BF44: 5273 | BG44: 9 | BH44: 0 | BI44: 0 | BJ44: 0 | BK44: 0 | BL44: 0 | BM44: 0 | BN44: 5346 | BO44: 4640 | BP44: 6608 | BQ44: 15904 | BR44: 0 | BS44: 0 | BT44: 6608 | BU44: 0 | BV44: 0 | BW44: 0 | BX44: 0 | BY44: 100 | BZ44: 1 | CA44: 0 | CB44: 58489 | CC44: 0 | CD44: 58489 | CE44: 312679683 | CF44: 42551 | CG44: 150 | CH44: 56190 | CI44: 96.1 | CJ44: 5273 | CK44: 9 | CL44: 0 | CM44: 0 | CN44: 0 | CO44: 0 | CP44: 0 | CQ44: 0 | CR44: 5346 | CS44: 4640 | CT44: 6608 | CU44: 15904 | CV44: 0 | CW44: 0 | CX44: 6608 | CY44: 0 | CZ44: 0 | DA44: 0
A47: Key
A48: Core genes analysis (CEGMA)
A49: Optical map analysis
A50: Validated Fosmid Region Tags analysis
A51: Fosmid COMPASS analysis
A52: REAPR analysis
A53: Basic statistical metrics

Sheet z-score rankings
A1: Bird Assembly | B1: Assembly ID | C1: Team name | D1: Number of 458 CEGs present in assembly | E1: z-score | F1: COMPASS - coverage | G1: z-score | H1: COMPASS - validity | I1: z-score | J1: Level 1: sum length of alignments | K1: z-score | L1: Levels 1-3: Sum length of all alignments | M1: z-score | N1: VFRT scaffold summary score | O1: z-score | P1: Useful amount of scaffold sequence (scaffolds >= 25K nt) | Q1: Difference from estimated genome size | R1: z-score | S1: NG50 scaffold length | T1: z-score | U1: NG50 contig length | V1: z-score | W1: REAPR Summary score | X1: z-score | Y1: Sum z-score | Z1: Team | AA1: Min error bar | AB1: Max error bar | AC1: No CEGMA | AD1: No Coverage | AE1: No Validity | AF1: No Level1 | AG1: No Level1-3 | AH1: No VFRTs | AI1: No scaffolds >=25 kbp | AJ1: no scaffold NG50 | AK1: no contig NG50 | AL1: no REAPR
A2: BCM* | B2: 3E | C2: BCM-HGSC | D2: 420 | E2: =(D2-AVERAGE(D$2:D$15))/STDEVP(D$2:D$15) -> 0.6351742531 | F2: 0.454888 | G2: =(F2-AVERAGE(F$2:F$15))/STDEVP(F$2:F$15) -> 2.004512701 | H2: 0.000356643 | I2: =(H2-AVERAGE(H$2:H$15))/STDEVP(H$2:H$15) -> 1.409968735 | J2: 684353000 | K2: =(J2-AVERAGE(J$2:J$15))/STDEVP(J$2:J$15) -> 0.454536408 | L2: 883012 | M2: =(L2-AVERAGE(L$2:L$15))/STDEVP(L$2:L$15) -> 0.5426052685 | N2: 824.72536 | O2: =(N2-AVERAGE(N$2:N$15))/STDEVP(N$2:N$15) -> 0.64848617 | P2: 1255741347 | Q2: =ABS(1200000000-P2) -> 55741347 | R2: =-(Q2-AVERAGE(Q$2:Q$15))/STDEVP(Q$2:Q$15) -> 0.3455120867 | S2: 16248487 | T2: =(S2-AVERAGE(S$2:S$15))/STDEVP(S$2:S$15) -> 1.34524117 | U2: 129582 | V2: =(U2-AVERAGE(U$2:U$15))/STDEVP(U$2:U$15) -> 1.493437948 | W2: 2.04420857e+14 | X2: =(W2-AVERAGE(W$2:W$15))/STDEVP(W$2:W$15) -> -0.2808032863 | Y2: =E2+G2+I2+K2+M2+O2+R2+V2+X2+T2 -> 8.598671454 | Z2: BCM-HGSC | AA2: =IF(Y2-MIN(AC2:AL2)<0,0,(Y2-MIN(AC2:AL2))) -> 2.004512701 | AB2: =IF(MAX(AC2:AL2)-Y2 < 0, 0, MAX(AC2:AL2)-Y2) -> 0.2808032863 | AC2: =$G2+$I2+$K2+$M2+$O2+$R2+$T2+$V2+$X2 -> 7.963497201 | AD2: =$E2+$I2+$K2+$M2+$O2+$R2+$T2+$V2+$X2 -> 6.594158753 | AE2: =$E2+$G2+$K2+$M2+$O2+$R2+$T2+$V2+$X2 -> 7.188702719 | AF2: =$E2+$G2+$I2+$M2+$O2+$R2+$T2+$V2+$X2 -> 8.144135046 | AG2: =$E2+$G2+$I2+$K2+$O2+$R2+$T2+$V2+$X2 -> 8.056066186 | AH2: =$E2+$G2+$I2+$K2+$M2+$R2+$T2+$V2+$X2 -> 7.950185284 | AI2: =$E2+$G2+$I2+$K2+$M2+$O2+$T2+$V2+$X2 -> 8.253159367 | AJ2: =$E2+$G2+$I2+$K2+$M2+$O2+$R2+$V2+$X2 -> 7.253430284 | AK2: =$E2+$G2+$I2+$K2+$M2+$O2+$R2+$T2+$X2 -> 7.105233506 | AL2: =$E2+$G2+$I2+$K2+$M2+$O2+$R2+$T2+$V2 -> 8.87947474
A3: BCM | B3: 2C | C3: BCM-HGSC | D3: 420 | E3: 0.6351742531 | F3: 0.316204 | G3: -0.2729465952 | H3: 0.000248312 | I3: -0.7913764475 | J3: 680718000 | K3: 0.4396957812 | L3: 882168 | M3: 0.5393842681 | N3: 824.72536 | O3: 0.64848617 | P3: 1254643149 | Q3: 54643149 | R3: 0.3493813797 | S3: 16233753 | T3: 1.342896456 | U3: 184984 | V3: 2.684483239 | W3: 2.751080654e+14 | X3: -0.1003933138 | Y3: 5.474785191 | Z3: BCM-HGSC + PacBio | AA3: 2.684483239 | AB3: 0.7913764475 | AC3: 4.839610938 | AD3: 5.747731786 | AE3: 6.266161639 | AF3: 5.03508941 | AG3: 4.935400923 | AH3: 4.826299021 | AI3: 5.125403811 | AJ3: 4.131888735 | AK3: 2.790301952 | AL3: 5.575178505
A4: ALLP | B4: 11C | C4: Allpaths | D4: 408 | E4: 0.3792767123 | F4: 0.321648 | G4: -0.1835455943 | H4: 0.000291962 | I4: 0.09561543121 | J4: 773652000 | K4: 0.8191177375 | L4: 892087 | M4: 0.5772386555 | N4: 817.22592 | O4: 0.5405798927 | P4: 1127619690 | Q4: 72380310 | R4: 0.2868878468 | S4: 14454701 | T4: 1.059784802 | U4: 49570 | V4: -0.2266789398 | W4: 8.795186322e+14 | X4: 1.442201113 | Y4: 4.790477657 | Z4: Allpaths | AA4: 1.442201113 | AB4: 0.2266789398 | AC4: 4.411200945 | AD4: 4.974023251 | AE4: 4.694862226 | AF4: 3.971359919 | AG4: 4.213239001 | AH4: 4.249897764 | AI4: 4.50358981 | AJ4: 3.730692855 | AK4: 5.017156597 | AL4: 3.348276544
A5: NEWB | B5: 7C | C5: Newbler-454 | D5: 380 | E5: -0.2178175496 | F5: 0.418758 | G5: 1.411188277 | H5: 0.00038909 | I5: 2.069309525 | J5: 739939000 | K5: 0.6814775583 | L5: 876532 | M5: 0.5178753128 | N5: 779.55968 | O5: -0.001383739268 | P5: 1084552351 | Q5: 115447649 | R5: 0.1351482214 | S5: 9041501 | T5: 0.1983484836 | U5: 57469 | V5: -0.05686437077 | W5: 1.813102804e+14 | X5: -0.3397867797 | Y5: 4.397494939 | Z5: Newbler-454 | AA5: 2.069309525 | AB5: 0.3397867797 | AC5: 4.615312489 | AD5: 2.986306662 | AE5: 2.328185414 | AF5: 3.716017381 | AG5: 3.879619627 | AH5: 4.398878679 | AI5: 4.262346718 | AJ5: 4.199146456 | AK5: 4.45435931 | AL5: 4.737281719
A6: SOAP** | B6: 14E | C6: SOAPdenovo | D6: 412 | E6: 0.4645758925 | F6: 0.381532 | G6: 0.7998654156 | H6: 0.000358963 | I6: 1.457112404 | J6: 666201000 | K6: 0.3804271762 | L6: 916525 | M6: 0.6705026459 | N6: 794.76852 | O6: 0.2174498413 | P6: 1139433377 | Q6: 60566623 | R6: 0.3285111391 | S6: 13115626 | T6: 0.8466894357 | U6: 47356 | V6: -0.2742760351 | W6: 1.654770005e+13 | X6: -0.7602986836 | Y6: 4.130559232 | Z6: SOAPdenovo I + 454 | AA6: 1.457112404 | AB6: 0.7602986836 | AC6: 3.665983339 | AD6: 3.330693816 | AE6: 2.673446828 | AF6: 3.750132056 | AG6: 3.460056586 | AH6: 3.91310939 | AI6: 3.802048093 | AJ6: 3.283869796 | AK6: 4.404835267 | AL6: 4.890857915
A7: MERAC | B7: 6C | C7: meraculous | D7: 393 | E7: 0.05940478626 | F7: 0.301993 | G7: -0.506318679 | H7: 0.000291719 | I7: 0.09067753828 | J7: 835668000 | K7: 1.072310671 | L7: 912484 | M7: 0.6550807708 | N7: 772.59 | O7: -0.1016675235 | P7: 1068014254 | Q7: 131985746 | R7: 0.07687936383 | S7: 7539259 | T7: -0.04071266658 | U7: 32067 | V7: -0.6029625709 | W7: 1.410733547e+15 | X7: 2.797983443 | Y7: 3.500675133 | Z7: meraculous | AA7: 2.797983443 | AB7: 0.6029625709 | AC7: 3.441270346 | AD7: 4.006993812 | AE7: 3.409997594 | AF7: 2.428364462 | AG7: 2.845594362 | AH7: 3.602342656 | AI7: 3.423795769 | AJ7: 3.541387799 | AK7: 4.103637704 | AL7: 0.7026916897
A8: CBCB | B8: 9C | C8: CBCB | D8: 403 | E8: 0.2726527369 | F8: 0.341271 | G8: 0.1387019885 | H8: 0.000293445 | I8: 0.1257508025 | J8: 703651000 | K8: 0.5333244179 | L8: 851733 | M8: 0.4232336196 | N8: 835.8077 | O8: 0.8079452835 | P8: 1116443664 | Q8: 83556336 | R8: 0.2475112325 | S8: 1758729 | T8: -0.9606045019 | U8: 101602 | V8: 0.8919172947 | W8: 4.494387798e+14 | X8: 0.3445386632 | Y8: 2.824971537 | Z8: CBCB | AA8: 0.8919172947 | AB8: 0.9606045019 | AC8: 2.5523188 | AD8: 2.686269549 | AE8: 2.699220735 | AF8: 2.291647119 | AG8: 2.401737918 | AH8: 2.017026254 | AI8: 2.577460305 | AJ8: 3.785576039 | AK8: 1.933054243 | AL8: 2.480432874
A9: SOAP* | B9: 13E | C9: SOAPdenovo | D9: 415 | E9: 0.5285502777 | F9: 0.291943 | G9: -0.6713591013 | H9: 0.000276139 | I9: -0.2259165848 | J9: 667070000 | K9: 0.3839750454 | L9: 912992 | M9: 0.6570194772 | N9: 796.785 | O9: 0.246464121 | P9: 1139369769 | Q9: 60630231 | R9: 0.3282870283 | S9: 13114357 | T9: 0.8464874918 | U9: 48709 | V9: -0.2451889213 | W9: 2.154270712e+13 | X9: -0.7475502796 | Y9: 1.100768554 | Z9: SOAPdenovo I | AA9: 0.8464874918 | AB9: 0.7475502796 | AC9: 0.5722182767 | AD9: 1.772127656 | AE9: 1.326685139 | AF9: 0.716793509 | AG9: 0.4437490773 | AH9: 0.8543044334 | AI9: 0.7724815261 | AJ9: 0.2542810626 | AK9: 1.345957476 | AL9: 1.848318834
A10: SOAP | B10: 12C | C10: SOAPdenovo | D10: 416 | E10: 0.5498750728 | F10: 0.292512 | G10: -0.6620150216 | H10: 0.000276327 | I10: -0.2220963219 | J10: 660526000 | K10: 0.3572578345 | L10: 914721 | M10: 0.6636179484 | N10: 789.276 | O10: 0.1384202889 | P10: 1142533623 | Q10: 57466377 | R10: 0.3394342697 | S10: 13157455 | T10: 0.8533459457 | U10: 34710 | V10: -0.5461427322 | W10: 1.465084894e+13 | X10: -0.7651398828 | Y10: 0.7065574012 | Z10: SOAPdenovo | AA10: 0.8533459457 | AB10: 0.7651398828 | AC10: 0.1566823284 | AD10: 1.368572423 | AE10: 0.9286537232 | AF10: 0.3492995668 | AG10: 0.04293945286 | AH10: 0.5681371124 | AI10: 0.3671231316 | AJ10: -0.1467885444 | AK10: 1.252700133 | AL10: 1.471697284
A11: SGA | B11: 10C | C11: SGA | D11: 371 | E11: -0.4097407052 | F11: 0.295288 | G11: -0.6164277368 | H11: 0.00026683 | I11: -0.4150805573 | J11: 746803000 | K11: 0.7095012343 | L11: 792152 | M11: 0.1958515993 | N11: 737.50316 | O11: -0.6065172574 | P11: 1045597539 | Q11: 154402461 | R11: -0.002101692708 | S11: 2518389 | T11: -0.8397150624 | U11: 15382 | V11: -0.9616606447 | W11: 5.343497803e+14 | X11: 0.561251016 | Y11: -2.384639807 | Z11: SGA | AA11: 0.7095012343 | AB11: 0.9616606447 | AC11: -1.974899102 | AD11: -1.76821207 | AE11: -1.96955925 | AF11: -3.094141041 | AG11: -2.580491406 | AH11: -1.778122549 | AI11: -2.382538114 | AJ11: -1.544924744 | AK11: -1.422979162 | AL11: -2.945890823
A12: PHUS | B12: 1C | C12: Phusion | D12: 391 | E12: 0.01675519612 | F12: 0.375555 | G12: 0.7017115246 | H12: 0.000287662 | I12: 0.008237078894 | J12: 387603000 | K12: -0.7570058212 | L12: 629951 | M12: -0.4231643801 | N12: 746.41712 | O12: -0.4782580487 | P12: 1089206827 | Q12: 110793173 | R12: 0.1515473875 | S12: 1223532 | T12: -1.045773743 | U12: 61840 | V12: 0.03710442038 | W12: 5.726507497e+13 | X12: -0.6563786017 | Y12: -2.445224987 | Z12: Phusion | AA12: 0.7017115246 | AB12: 1.045773743 | AC12: -2.461980183 | AD12: -3.146936511 | AE12: -2.453462066 | AF12: -1.688219166 | AG12: -2.022060607 | AH12: -1.966966938 | AI12: -2.596772374 | AJ12: -1.399451244 | AK12: -2.482329407 | AL12: -1.788846385
A13: RAY | B13: 4C | C13: Ray | D13: 404 | E13: 0.293977532 | F13: 0.301658 | G13: -0.5118200264 | H13: 0.000249868 | I13: -0.7597576763 | J13: 139999000 | K13: -1.76789951 | L13: 549939 | M13: -0.7285182715 | N13: 827.03478 | O13: 0.6817154398 | P13: 1190704701 | Q13: 9295299 | R13: 0.5091559543 | S13: 609121 | T13: -1.143548802 | U13: 39832 | V13: -0.4360287655 | W13: 357324157014994 | X13: 0.1094410134 | Y13: -3.753283112 | Z13: Ray | AA13: 0.6817154398 | AB13: 1.76789951 | AC13: -4.047260644 | AD13: -3.241463085 | AE13: -2.993525435 | AF13: -1.985383602 | AG13: -3.02476484 | AH13: -4.434998552 | AI13: -4.262439066 | AJ13: -2.60973431 | AK13: -3.317254346 | AL13: -3.862724125
A14: MLK | B14: 5C | C14: MLK Group | D14: 401 | E14: 0.2300031468 | F14: 0.36499 | G14: 0.5282138071 | H14: 0.000225669 | I14: -1.251494594 | J14: 336108000 | K14: -0.9672446319 | L14: 357365 | M14: -1.463448286 | N14: 816.7647 | O14: 0.5339435928 | P14: 1180972764 | Q14: 19027236 | R14: 0.4748673145 | S14: 113799 | T14: -1.222372485 | U14: 35883 | V14: -0.520925301 | W14: 0 | X14: -0.8025322104 | Y14: -4.460989647 | Z14: MLK Group | AA14: 0.5339435928 | AB14: 1.463448286 | AC14: -4.690992794 | AD14: -4.989203454 | AE14: -3.209495052 | AF14: -3.493745015 | AG14: -2.997541361 | AH14: -4.99493324 | AI14: -4.935856961 | AJ14: -3.238617162 | AK14: -3.940064346 | AL14: -3.658457436
A15: ABL | B15: 15C | C15: ABL | D15: 229 | E15: -3.437861605 | F15: 0.201308 | G15: -2.15976096 | H15: 0.000208964 | I15: -1.590949333 | J15: 0 | K15: -2.339473901 | L15: 0 | M15: -2.827278629 | N15: 551.99859 | O15: -3.275664231 | P15: 32652633 | Q15: 1167347367 | R15: -3.571021532 | S15: 2611 | T15: -1.240066525 | U15: 2611 | V15: -1.236214621 | W15: 0 | X15: -0.8025322104 | Y15: -22.48082355 | Z15: ABL | AA15: 0 | AB15: 3.571021532 | AC15: -19.04296194 | AD15: -20.32106259 | AE15: -20.88987421 | AF15: -20.14134965 | AG15: -19.65354492 | AH15: -19.20515932 | AI15: -18.90980201 | AJ15: -21.24075702 | AK15: -21.24460893 | AL15: -21.67829134
A17: Mean | D17: =AVERAGE(D2:D15) -> 390.2142857 | F17: =AVERAGE(F2:F15) -> 0.3328248571 | H17: =AVERAGE(H2:H15) -> 0.0002872566429 | J17: =AVERAGE(J2:J15) -> 573020785.7 | L17: =AVERAGE(L2:L15) -> 740832.9286 | N17: =AVERAGE(N2:N15) -> 779.6558493 | Q17: =AVERAGE(Q2:Q15) -> 153805950.3 | S17: =AVERAGE(S2:S15) -> 7795094.286 | U17: =AVERAGE(U2:U15) -> 60114.07143 | W17: =AVERAGE(W2:W15) -> 3.144436022e+14
A18: STDEVP | D18: =STDEVP(D2:D15) -> 46.89376835 | F18: =STDEVP(F2:F15) -> 0.06089417283 | H18: =STDEVP(H2:H15) -> 4.921127357e-05 | J18: =STDEVP(J2:J15) -> 244935746.2 | L18: =STDEVP(L2:L15) -> 262030.3924 | N18: =STDEVP(N2:N15) -> 69.49957115 | Q18: =STDEVP(Q2:Q15) -> 283823944.4 | S18: =STDEVP(S2:S15) -> 6283923.585 | U18: =STDEVP(U2:U15) -> 46515.44355 | W18: =STDEVP(W2:W15) -> 3.918143074e+14
A22: Fish Assembly | B22: Assembly ID | C22: Team name | D22: Number of 458 CEGs present in assembly | E22: z-score | F22: COMPASS - coverage | G22: z-score | H22: COMPASS - validity | I22: z-score | J22: Level 1: sum length of alignments | K22: z-score | L22: Levels 1-3: Sum length of all alignments | M22: z-score | N22: VFRT scaffold summary score | O22: z-score | P22: Useful amount of scaffold sequence (scaffolds >= 25K nt) | Q22: Difference from estimated genome size | R22: z-score | S22: NG50 scaffold length | T22: z-score | U22: NG50 contig length | V22: z-score | W22: REAPR Summary score | X22: z-score | Y22: Sum z-score | Z22: Team | AA22: Min error bar | AB22: Max error bar | AC22: No CEGMA | AD22: No Coverage | AE22: No Validity | AF22: No Level1 | AG22: No Level1-3 | AH22: No VFRTs | AI22: No scaffolds >=25 kbp | AJ22: no scaffold NG50 | AK22: no contig NG50 | AL22: no REAPR
A23: BCM | B23: 1C | C23: BCM-HGSC | D23: 434 | E23: =(D23-AVERAGE(D$23:D$38))/STDEVP(D$23:D$38) -> 0.6434966543 | J23: 2554000 | K23: =(J23-AVERAGE(J$23:J$38))/STDEVP(J$23:J$38) -> 0.1323892361 | L23: 289355000 | M23: =(L23-AVERAGE(L$23:L$38))/STDEVP(L$23:L$38) -> 1.455044158 | P23: 848881124 | Q23: =ABS(1000000000-P23) -> 151118876 | R23: =-((Q23-AVERAGE(Q$23:Q$38))/STDEVP(Q$23:Q$38)) -> 0.7000279359 | S23: 4373261 | T23: =(S23-AVERAGE(S$23:S$38))/STDEVP(S$23:S$38) -> 2.332868366 | U23: 19381 | V23: =(U23-AVERAGE(U$23:U$38))/STDEVP(U$23:U$38) -> 1.654469718 | W23: 2.037624456e+13 | X23: =(W23-AVERAGE(W$23:W$38))/STDEVP(W$23:W$38) -> 0.6187904548 | Y23: =E23+G23+I23+K23+M23+O23+R23+V23+X23+T23 -> 7.537086523 | Z23: BCM-HGSC | AA23: =IF(Y23-MIN(AC23:AL23)<0,0,(Y23-MIN(AC23:AL23))) -> 2.332868366 | AB23: =IF(MAX(AC23:AL23)-Y23 < 0, 0, MAX(AC23:AL23)-Y23) -> 0 | AC23: =$G23+$I23+$K23+$M23+$O23+$R23+$T23+$V23+$X23 -> 6.893589868 | AF23: =$E23+$G23+$I23+$M23+$O23+$R23+$T23+$V23+$X23 -> 7.404697286 | AG23: =$E23+$G23+$I23+$K23+$O23+$R23+$T23+$V23+$X23 -> 6.082042365 | AI23: =$E23+$G23+$I23+$K23+$M23+$O23+$T23+$V23+$X23 -> 6.837058587 | AJ23: =$E23+$G23+$I23+$K23+$M23+$O23+$R23+$V23+$X23 -> 5.204218157 | AK23: =$E23+$G23+$I23+$K23+$M23+$O23+$R23+$T23+$X23 -> 5.882616805 | AL23: =$E23+$G23+$I23+$K23+$M23+$O23+$R23+$T23+$V23 -> 6.918296068
A24: CSHL | B24: 12C | C24: CSHL | D24: 436 | E24: 0.6617843035 | J24: 3087000 | K24: 0.2762861779 | L24: 286453000 | M24: 1.430717672 | P24: 835721259 | Q24: 164278741 | R24: 0.6633180475 | S24: 2945418 | T24: 1.304119852 | U24: 14402 | V24: 0.9773413856 | W24: 2.208199671e+13 | X24: 0.7713865261 | Y24: 6.084953965 | Z24: CSHL - metassembler | AA24: 1.430717672 | AB24: 0 | AC24: 5.423169662 | AF24: 5.808667788 | AG24: 4.654236293 | AI24: 5.421635918 | AJ24: 4.780834113 | AK24: 5.10761258 | AL24: 5.313567439
A25: CSHL* | B25: 14E | C25: CSHL | D25: 436 | E25: 0.6617843035 | J25: 3088000 | K25: 0.2765561534 | L25: 286087000 | M25: 1.427649618 | P25: 835818738 | Q25: 164181262 | R25: 0.6635899685 | S25: 2946467 | T25: 1.304875648 | U25: 14238 | V25: 0.9550379016 | W25: 2.141110252e+13 | X25: 0.7113685347 | Y25: 6.000862128 | Z25: CSHL - allpaths | AA25: 1.427649618 | AB25: 0 | AC25: 5.339077824 | AF25: 5.724305974 | AG25: 4.57321251 | AI25: 5.337272159 | AJ25: 4.69598648 | AK25: 5.045824226 | AL25: 5.289493593
A26: SYM | B26: 5C | C26: Symbiose | D26: 428 | E26: 0.5886337069 | J26: 0 | K26: -0.5571281925 | L26: 146204000 | M26: 0.2550576893 | P26: 881017133 | Q26: 118982867 | R26: 0.7896724194 | S26: 1532535 | T26: 0.2861498895 | U26: 25525 | V26: 2.490034384 | W26: 3.629412472e+13 | X26: 2.042799203 | Y26: 5.8952191 | Z26: Symbiose | AA26: 2.490034384 | AB26: 0.5571281925 | AC26: 5.306585393 | AF26: 6.452347292 | AG26: 5.64016141 | AI26: 5.10554668 | AJ26: 5.60906921 | AK26: 3.405184716 | AL26: 3.852419896
A27: ALLP | B27: 6C | C27: Allpaths | D27: 430 | E27: 0.6069213561 | J27: 2559000 | K27: 0.1337391136 | L27: 287138000 | M27: 1.436459796 | P27: 837139691 | Q27: 162860309 | R27: 0.6672748116 | S27: 3050429 | T27: 1.379779368 | U27: 11902 | V27: 0.6373492525 | W27: 1.957583034e+13 | X27: 0.5471856404 | Y27: 5.408709339 | Z27: Allpaths | AA27: 1.436459796 | AB27: 0 | AC27: 4.801787982 | AF27: 5.274970225 | AG27: 3.972249543 | AI27: 4.741434527 | AJ27: 4.02892997 | AK27: 4.771360086 | AL27: 4.861523698
A28: SGA | B28: 3C | C28: SGA | D28: 423 | E28: 0.542914584 | J28: 15378000 | K28: 3.594555056 | L28: 76491000 | M28: -0.3293228367 | P28: 663780109 | Q28: 336219891 | R28: 0.1836823967 | S28: 73332 | T28: -0.7651932323 | U28: 3755 | V28: -0.4706171105 | W28: 2.934375626e+13 | X28: 1.421021342 | Y28: 4.177040199 | Z28: SGA | AA28: 3.594555056 | AB28: 0.7651932323 | AC28: 3.634125615 | AF28: 0.5824851428 | AG28: 4.506363036 | AI28: 3.993357802 | AJ28: 4.942233431 | AK28: 4.647657309 | AL28: 2.756018857
A29: SOAP* | B29: 11E | C29: SOAPdenovo | D29: 436 | E29: 0.6617843035 | J29: 0 | K29: -0.5571281925 | L29: 67721000 | M29: -0.4028387838 | P29: 988908263 | Q29: 11091737 | R29: 1.090638374 | S29: 1468157 | T29: 0.2397660981 | U29: 6001 | V29: -0.1651681782 | W29: 1.593262125e+13 | X29: 0.2212652564 | Y29: 1.088318878 | Z29: SOAPdenovo | AA29: 1.090638374 | AB29: 0.5571281925 | AC29: 0.4265345741 | AF29: 1.64544707 | AG29: 1.491157661 | AI29: -0.002319496446 | AJ29: 0.8485527795 | AK29: 1.253487056 | AL29: 0.8670536213
A30: MERAC | B30: 8C | C30: meraculous | D30: 426 | E30: 0.5703460578 | J30: 3895000 | K30: 0.4944263824 | L30: 200886000 | M30: 0.7134384207 | P30: 729158110 | Q30: 270841890 | R30: 0.3660565408 | S30: 613236 | T30: -0.376197077 | U30: 3056 | V30: -0.5656789109 | W30: 1.079239888e+13 | X30: -0.2385774842 | Y30: 0.9638139295 | Z30: meraculous | AA30: 0.7134384207 | AB30: 0.5656789109 | AC30: 0.3934678718 | AF30: 0.4693875471 | AG30: 0.2503755088 | AI30: 0.5977573888 | AJ30: 1.340011007 | AK30: 1.52949284 | AL30: 1.202391414
A31: ABYSS | B31: 7C | C31: ABySS | D31: 431 | E31: 0.6160651806 | J31: 578000 | K31: -0.4010823531 | L31: 199611000 | M31: 0.7027505265 | P31: 757370463 | Q31: 242629537 | R31: 0.4447558533 | S31: 847430 | T31: -0.2074623286 | U31: 3333 | V31: -0.5280077826 | W31: 9.180816456e+12 | X31: -0.3827491606 | Y31: 0.2442699355 | Z31: ABySS | AA31: 0.7027505265 | AB31: 0.5280077826 | AC31: -0.3717952451 | AF31: 0.6453522886 | AG31: -0.458480591 | AI31: -0.2004859178 | AJ31: 0.4517322641 | AK31: 0.7722777181 | AL31: 0.6270190961
A32: RAY | B32: 4C | C32: Ray | D32: 435 | E32: 0.6526404789 | J32: 1879000 | K32: -0.0498442268 | L32: 6442000 | M32: -0.9165199373 | P32: 536091861 | Q32: 463908139 | R32: -0.1725082879 | S32: 30463 | T32: -0.7960799755 | U32: 5860 | V32: -0.1843437345 | W32: 2.225927559e+13 | X32: 0.7872458416 | Y32: -0.6794098415 | Z32: Ray | AA32: 0.7872458416 | AB32: 0.9165199373 | AC32: -1.33205032 | AF32: -0.6295656147 | AG32: 0.2371100958 | AI32: -0.5069015536 | AJ32: 0.116670134 | AK32: -0.495066107 | AL32: -1.466655683
A33: IOB | B33: 13C | C33: IOBUGA | D33: 387 | E33: 0.2137368994 | J33: 0 | K33: -0.5571281925 | L33: 6047000 | M33: -0.9198310888 | P33: 777006592 | Q33: 222993408 | R33: 0.4995314989 | S33: 229222 | T33: -0.6528758376 | U33: 1180 | V33: -0.8208090075 | W33: 3.735390997e+12 | X33: -0.8698952765 | Y33: -3.107271005 | Z33: IOBUGA | AA33: 0.4995314989 | AB33: 0.9198310888 | AC33: -3.321007904 | AF33: -2.550142812 | AG33: -2.187439916 | AI33: -3.606802504 | AJ33: -2.454395167 | AK33: -2.286461997 | AL33: -2.237375728
A34: CTD | B34: 9C | C34: CTD | D34: 350 | E34: -0.1245846098 | J34: 0 | K34: -0.5571281925 | L34: 0 | M34: -0.9705210468 | P34: 0 | Q34: 1000000000 | R34: -1.667954658 | S34: 2954 | T34: -0.8158999717 | U34: 2954 | V34: -0.5795505899 | W34: 0 | X34: -1.204062226 | Y34: -5.919701295 | Z34: CTD | AA34: 0 | AB34: 1.667954658 | AC34: -5.795116685 | AF34: -5.362573103 | AG34: -4.949180248 | AI34: -4.251746637 | AJ34: -5.103801323 | AK34: -5.340150705 | AL34: -4.715639069
A35: IOB* | B35: 16E | C35: IOBUGA | D35: 83 | E35: -2.565985771 | J35: 0 | K35: -0.5571281925 | L35: 0 | M35: -0.9705210468 | P35: 1124232749 | Q35: =ABS(1000000000-P35) -> 124232749 | R35: 0.7750276961 | S35: 49719 | T35: -0.7822061943 | U35: 474 | V35: -0.9168227859 | W35: 2.998605838e+12 | X35: -0.9358078542 | Y35: -5.953444148 | Z35: IOBUGA | AA35: 0.7750276961 | AB35: 2.565985771 | AC35: -3.387458378 | AF35: -5.396315956 | AG35: -4.982923102 | AI35: -6.728471845 | AJ35: -5.171237954 | AK35: -5.036621363 | AL35: -5.017636294
A36: CSHL** | B36: 15E | C36: CSHL | D36: 307 | E36: -0.5177690665 | J36: 0 | K36: -0.5571281925 | L36: 0 | M36: -0.9705210468 | P36: 269356 | Q36: =ABS(1000000000-P36) -> 999730644 | R36: -1.66720328 | S36: 1301 | T36: -0.8170909439 | U36: 1301 | V36: -0.8043533883 | W36: 1366155764868 | X36: -1.081846344 | Y36: -6.415912263 | Z36: CSHL - soapdenovo | AA36: 0 | AB36: 1.66720328 | AC36: -5.898143196 | AF36: -5.85878407 | AG36: -5.445391216 | AI36: -4.748708982 | AJ36: -5.598821319 | AK36: -5.611558875 | AL36: -5.334065918
A37: CTD** | B37: 10E | C37: CTD | D37: 207 | E37: -1.432151524 | J37: 0 | K37: -0.5571281925 | L37: 0 | M37: -0.9705210468 | P37: 0 | Q37: 1000000000 | R37: -1.667954658 | S37: 1203 | T37: -0.817161552 | U37: 1203 | V37: -0.8176810799 | W37: 0 | X37: -1.204062226 | Y37: -7.466660279 | Z37: CTD | AA37: 0 | AB37: 1.667954658 | AC37: -6.034508756 | AF37: -6.909532087 | AG37: -6.496139233 | AI37: -5.798705621 | AJ37: -6.649498727 | AK37: -6.6489792 | AL37: -6.262598053
A38: CTD* | B38: 2E | C38: CTD | D38: 169 | E38: -1.779616858 | J38: 0 | K38: -0.5571281925 | L38: 0 | M38: -0.9705210468 | P38: 0 | Q38: 1000000000 | R38: -1.667954658 | S38: 883 | T38: -0.8173921093 | U38: 883 | V38: -0.8612000729 | W38: 0 | X38: -1.204062226 | Y38: -7.857875163 | Z38: CTD | AA38: 0 | AB38: 1.779616858 | AC38: -6.078258306 | AF38: -7.300746971 | AG38: -6.887354117 | AI38: -6.189920505 | AJ38: -7.040483054 | AK38: -6.996675091 | AL38: -6.653812937
A40: Mean | D40: =AVERAGE(D23:D38) -> 363.625 | J40: =AVERAGE(J23:J38) -> 2063625 | L40: =AVERAGE(L23:L38) -> 115777187.5 | Q40: =AVERAGE(Q23:Q38) -> 402066878.1 | S40: =AVERAGE(S23:S38) -> 1135375.625 | U40: =AVERAGE(U23:U38) -> 7215.5 | W40: =AVERAGE(W23:W38) -> 1.345926999e+13
A41: STDEVP | D41: =STDEVP(D23:D38) -> 109.363428 | J41: =STDEVP(J23:J38) -> 3704039.803 | L41: =STDEVP(L23:L38) -> 119293845.2 | Q41: =STDEVP(Q23:Q38) -> 358482839.4 | S41: =STDEVP(S23:S38) -> 1387941.738 | U41: =STDEVP(U23:U38) -> 7353.111314 | W41: =STDEVP(W23:W38) -> 1.117821795e+13
A45: Snake Assembly | B45: Assembly ID | C45: Team name | D45: Number of 458 CEGs present in assembly | E45: z-score | F45: COMPASS - coverage | G45: z-score | H45: COMPASS - validity | I45: z-score | J45: Level 1: sum length of alignments | K45: z-score | L45: Levels 1-3: Sum length of all alignments | M45: z-score | N45: VFRT scaffold summary score | O45: z-score | P45: Useful amount of scaffold sequence (scaffolds >= 25K nt) | Q45: Difference from estimated genome size | R45: z-score | S45: NG50 scaffold length | T45: z-score | U45: NG50 contig length | V45: z-score | W45: REAPR Summary score | X45: z-score | Y45: Sum z-score | Z45: Team | AA45: Min error bar | AB45: Max error bar | AC45: No CEGMA | AD45: No Coverage | AE45: No Validity | AF45: No Level1 | AG45: No Level1-3 | AH45: No VFRTs | AI45: No scaffolds >=25 kbp | AJ45: no scaffold NG50 | AK45: no contig NG50 | AL45: no REAPR
A46: SGA | B46: 7C | C46: SGA | D46: 433 | E46: =(D46-AVERAGE(D$46:D$56))/STDEVP(D$46:D$56) -> 0.4437182699 | F46: 0.539414 | G46: =(F46-AVERAGE(F$46:F$56))/STDEVP(F$46:F$56) -> 1.222531512 | H46: 0.000144114 | I46: =(H46-AVERAGE(H$46:H$56))/STDEVP(H$46:H$56) -> 1.456359292 | J46: 226840000 | K46: =(J46-AVERAGE(J$46:J$56))/STDEVP(J$46:J$56) -> 1.414461905 | L46: 861300000 | M46: =(L46-AVERAGE(L$46:L$56))/STDEVP(L$46:L$56) -> 1.126646708 | N46: 304.60838 | O46: =(N46-AVERAGE(N$46:N$56))/STDEVP(N$46:N$56) -> 0.8455344153 | P46: 1420775968 | Q46: =ABS(1600000000-P46) -> 179224032 | R46: =-((Q46-AVERAGE(Q$46:Q$56))/STDEVP(Q$46:Q$56)) -> 0.2456394092 | S46: 3803459 | T46: =(S46-AVERAGE(S$46:S$56))/STDEVP(S$46:S$56) -> 1.874598651 | U46: 24787 | V46: =(U46-AVERAGE(U$46:U$56))/STDEVP(U$46:U$56) -> -0.1426664208 | W46: 4.926783351e+14 | X46: =(W46-AVERAGE(W$46:W$56))/STDEVP(W$46:W$56) -> 1.543342505 | Y46: =E46+G46+I46+K46+M46+O46+R46+V46+X46+T46 -> 10.03016625 | Z46: SGA | AA46: =Y46-MIN(AC46:AL46) -> 1.874598651 | AB46: =IF(MAX(AC46:AL46)-Y46 < 0, 0, MAX(AC46:AL46)-Y46) -> 0.1426664208 | AC46: =$G46+$I46+$K46+$M46+$O46+$R46+$T46+$V46+$X46 -> 9.586447977 | AD46: =$E46+$I46+$K46+$M46+$O46+$R46+$T46+$V46+$X46 -> 8.807634735 | AE46: =$E46+$G46+$K46+$M46+$O46+$R46+$T46+$V46+$X46 -> 8.573806955 | AF46: =$E46+$G46+$I46+$M46+$O46+$R46+$T46+$V46+$X46 -> 8.615704342 | AG46: =$E46+$G46+$I46+$K46+$O46+$R46+$T46+$V46+$X46 -> 8.903519538 | AH46: =$E46+$G46+$I46+$K46+$M46+$R46+$T46+$V46+$X46 -> 9.184631832 | AI46: =$E46+$G46+$I46+$K46+$M46+$O46+$T46+$V46+$X46 -> 9.784526838 | AJ46: =$E46+$G46+$I46+$K46+$M46+$O46+$R46+$V46+$X46 -> 8.155567596 | AK46: =$E46+$G46+$I46+$K46+$M46+$O46+$R46+$T46+$X46 -> 10.17283267 | AL46: =$E46+$G46+$I46+$K46+$M46+$O46+$R46+$T46+$V46 -> 8.486823742
A47: PHUS | B47: 5C | C47: Phusion | D47: 435 | E47: 0.538493046 | F47: 0.419587 | G47: -0.155342268 | H47: 0.000110122 | I47: 0.009751041511 | J47: 114725000 | K47: 0.2175397202 | L47: 843423000 | M47: 1.072808752 | N47: 304.42272 | O47: 0.8389948406 | P47: 1443267172 | Q47: 156732828 | R47: 0.3301972617 | S47: 3846246 | T47: 1.907262451 | U47: 67973 | V47: 1.858606649 | W47: 1.31799226e+14 | X47: -0.3409245292 | Y47: 6.277386966 | Z47: Phusion | AA47: =IF(Y47-MIN(AC47:AL47)<0,0,(Y47-MIN(AC47:AL47))) -> 1.907262451 | AB47: 0.3409245292 | AC47: 5.73889392 | AD47: 6.432729234 | AE47: 6.267635924 | AF47: 6.059847245 | AG47: 5.204578213 | AH47: 5.438392125 | AI47: 5.947189704 | AJ47: 4.370124515 | AK47: 4.418780316 | AL47: 6.618311495
A48: MERAC | B48: 6C | C48: meraculous | D48: 430 | E48: 0.3015561058 | F48: 0.323923 | G48: -1.255369118 | H48: 8.6546e-05 | I48: -0.9935802159 | J48: 279552000 | K48: 1.977206963 | L48: 804469000 | M48: 0.9554957952 | N48: 304.9824 | O48: 0.8587086678 | P48: 1404357245 | Q48: 195642755 | R48: 0.1839116352 | S48: 1058023 | T48: -0.2212802998 | U48: 29995 | V48: 0.09867637896 | W48: 635265025113520 | X48: 2.287833923 | Y48: 4.193159835 | Z48: meraculous | AA48: 2.287833923 | AB48: 1.255369118 | AC48: 3.89160373 | AD48: 5.448528953 | AE48: 5.186740051 | AF48: 2.215952872 | AG48: 3.23766404 | AH48: 3.334451168 | AI48: 4.0092482 | AJ48: 4.414440135 | AK48: 4.094483456 | AL48: 1.905325913
A49: SYMB | B49: 8C | C49: Symbiose | D49: 436 | E49: 0.5858804341 | F49: 0.414381 | G49: -0.215205328 | H49: 8.12028e-05 | I49: -1.220972461 | J49: 52316000 | K49: -0.4487289916 | L49: 709369000 | M49: 0.6690948546 | N49: 266 | O49: -0.5143836306 | P49: 1515599019 | Q49: 84400981 | R49: 0.6021358228 | S49: 1615595 | T49: 0.2043728272 | U49: 75015 | V49: 2.184938446 | W49: 2.91672424e+14 | X49: 0.493825361 | Y49: 2.340957334 | Z49: Symbiose | AA49: 2.184938446 | AB49: 1.220972461 | AC49: 1.7550769 | AD49: 2.556162662 | AE49: 3.561929795 | AF49: 2.789686325 | AG49: 1.671862479 | AH49: 2.855340965 | AI49: 1.738821511 | AJ49: 2.136584507 | AK49: 0.1560188881 | AL49: 1.847131973
A50: ABYSS | B50: 9C | C50: ABySS | D50: 429 | E50: 0.2541687177 | F50: 0.417712 | G50: -0.1769026286 | H50: 0.000104487 | I50: -0.2300594283 | J50: 191799000 | K50: 1.040369676 | L50: 603602000 | M50: 0.3505694258 | N50: 305.75826 | O50: 0.8860370876 | P50: 1447039703 | Q50: 152960297 | R50: 0.3443804562 | S50: 448896 | T50: -0.6862907599 | U50: 25646 | V50: -0.1028596879 | W50: 2.109801685e+14 | X50: 0.0725048878 | Y50: 1.751917746 | Z50: ABySS | AA50: 1.040369676 | AB50: 0.6862907599 | AC50: 1.497749029 | AD50: 1.928820375 | AE50: 1.981977175 | AF50: 0.7115480705 | AG50: 1.40134832 | AH50: 0.8658806586 | AI50: 1.40753729 | AJ50: 2.438208506 | AK50: 1.854777434 | AL50: 1.679412858
A51: CRACS | B51: 10C | C51: CRACS | D51: 438 | E51: 0.6806552102 | F51: 0.491319 | G51: 0.6694938876 | H51: 0.000122577 | I51: 0.5398023993 | J51: 89879000 | K51: -0.04771228529 | L51: 588784000 | M51: 0.3059438828 | N51: 278.57934 | O51: -0.07129662538 | P51: 1430445129 | Q51: 169554871 | R51: 0.2819915533 | S51: 647986 | T51: -0.5343045033 | U51: 18533 | V51: -0.4324816799 | W51: 6.077324444e+13 | X51: -0.7117742465 | Y51: 0.6803175928 | Z51: CRACS | AA51: 0.6806552102 | AB51: 0.7117742465 | AC51: -0.0003376173175 | AD51: 0.01082370525 | AE51: 0.1405151935 | AF51: 0.7280298781 | AG51: 0.37437371 | AH51: 0.7516142182 | AI51: 0.3983260395 | AJ51: 1.214622096 | AK51: 1.112799273 | AL51: 1.392091839
A52: BCM | B52: 1C | C52: BCM-HGSC | D52: 434 | E52: 0.491105658 | F52: 0.495555 | G52: 0.7182030544 | H52: 0.000130506 | I52: 0.8772393496 | J52: 61989000 | K52: -0.3454615582 | L52: 680789000 | M52: 0.5830239936 | N52: 250.82828 | O52: -1.048783049 | P52: 1430432433 | Q52: 169567567 | R52: 0.2819438215 | S52: 1403225 | T52: 0.04224855524 | U52: 14038 | V52: -0.6407835011 | W52: 7.270230564e+13 | X52: -0.6494887437 | Y52: 0.3092475803 | Z52: BCM-HGSC | AA52: 0.8772393496 | AB52: 1.048783049 | AC52: -0.1818580776 | AD52: -0.4089554741 | AE52: -0.5679917693 | AF52: 0.6547091385 | AG52: -0.2737764133 | AH52: 1.358030629 | AI52: 0.02730375883 | AJ52: 0.2669990251 | AK52: 0.9500310814 | AL52: 0.958736324
A53: RAY | B53: 2C | C53: Ray | D53: 422 | E53: -0.07754299862 | F53: 0.584228 | G53: 1.737841381 | H53: 0.00014615 | I53: 1.543005985 | J53: 7988000 | K53: -0.9219677786 | L53: 62609000 | M53: -1.278672467 | N53: 302.80474 | O53: 0.7820040992 | P53: 1388131192 | Q53: 211868808 | R53: 0.1229082226 | S53: 127253 | T53: -0.9318345618 | U53: 16009 | V53: -0.5494458171 | W53: 1.240097078e+14 | X53: -0.3815961337 | Y53: 0.04469993029 | Z53: Ray | AA53: 1.737841381 | AB53: 1.278672467 | AC53: 0.1222429289 | AD53: -1.69314145 | AE53: -1.498306054 | AF53: 0.9666677089 | AG53: 1.323372398 | AH53: -0.7373041689 | AI53: -0.07820829229 | AJ53: 0.9765344921 | AK53: 0.5941457474 | AL53: 0.426296064
A54: SOAP | B54: 11C | C54: SOAPdenovo | D54: 428 | E54: 0.2067813297 | F54: 0.44645 | G54: 0.153551582 | H54: 0.00011587 | I54: 0.2543704879 | J54: 12442000 | K54: -0.874417572 | L54: 204497000 | M54: -0.8513658778 | N54: 300.7336 | O54: 0.7090515262 | P54: 1597838711 | Q54: 2161289 | R54: 0.9113238835 | S54: 1805615 | T54: 0.3494350025 | U54: 16821 | V54: -0.511817101 | W54: 1.112558181e+14 | X54: -0.4481883337 | Y54: -0.1012750728 | Z54: SOAPdenovo | AA54: 0.9113238835 | AB54: 0.874417572 | AC54: -0.3080564024 | AD54: -0.2548266548 | AE54: -0.3556455606 | AF54: 0.7731424992 | AG54: 0.7500908051 | AH54: -0.810326599 | AI54: -1.012598956 | AJ54: -0.4507100752 | AK54: 0.4105420282 | AL54: 0.346913261
A55: GAM | B55: 4C | C55: GAM | D55: 415 | E55: -0.409254715 | F55: 0.341708 | G55: -1.05086191 | H55: 9.33381e-05 | I55: -0.704526677 | J55: 300000 | K55: -1.004043663 | L55: 300000 | M55: -1.466320797 | N55: 225.52992 | O55: -1.939877063 | P55: 546866427 | Q55: 1053133573 | R55: -3.039907869 | S55: 16883 | T55: -1.016091547 | U55: 6872 | V55: -0.9728615546 | W55: 1.043225979e+13 | X55: -0.974620877 | Y55: -12.57836667 | Z55: GAM | AA55: 0 | AB55: 3.039907869 | AC55: -12.16911196 | AD55: -11.52750476 | AE55: -11.87384 | AF55: -11.57432301 | AG55: -11.11204588 | AH55: -10.63848961 | AI55: -9.538458803 | AJ55: -11.56227513 | AK55: -11.60550512 | AL55: -11.6037458
A56: CURT | B56: 3C | C56: Curtain | D56: 360 | E56: -3.015561058 | F56: 0.289783 | G56: -1.647940165 | H56: 7.39087e-05 | I56: -1.531389772 | J56: 0 | K56: -1.007246416 | L56: 0 | M56: -1.46722427 | N56: 242.3905 | O56: -1.345990269 | P56: 1285079597 | Q56: 314920403 | R56: -0.2645241965 | S56: 53529 | T56: -0.9881158154 | U56: 10833 | V56: -0.7893057117 | W56: 2.646402718e+13 | X56: -0.8909138127 | Y56: -12.94821149 | Z56: Curtain | AA56: 0 | AB56: 3.015561058 | AC56: -9.932650429 | AD56: -11.30027132 | AE56: -11.41682171 | AF56: -11.94096507 | AG56: -11.48098722 | AH56: -11.60222122 | AI56: -12.68368729 | AJ56: -11.96009567 | AK56: -12.15890577 | AL56: -12.05729767
A58: Mean | D58: =AVERAGE(D46:D56) -> 423.6363636 | F58: =AVERAGE(F46:F56) -> 0.4330963636 | H58: =AVERAGE(H46:H56) -> 0.0001098928727 | J58: =AVERAGE(J46:J56) -> 94348181.82 | L58: =AVERAGE(L46:L56) -> 487194727.3 | N58: =AVERAGE(N46:N56) -> 280.6034673 | Q58: =AVERAGE(Q46:Q56) -> 244560673.1 | S58: =AVERAGE(S46:S56) -> 1347882.727 | U58: =AVERAGE(U42:U56) -> 27865.63636 | W58: =AVERAGE(W46:W56) -> 1.970938674e+14
A59: STDEVP | D59: =STDEVP(D46:D56) -> 21.1026613 | F59: =STDEVP(F46:F56) -> 0.08696515001 | H59: =STDEVP(H46:H56) -> 2.349772304e-05 | J59: =STDEVP(J46:J56) -> 93669414.3 | L59: =STDEVP(L46:L56) -> 332051982.2 | N59: =STDEVP(N46:N56) -> 28.39022551 | Q59: =STDEVP(Q46:Q56) -> 265985988.6 | S59: =STDEVP(S46:S56) -> 1309921.071 | U59: =STDEVP(U42:U56) -> 21579.26404 | W59: =STDEVP(W46:W56) -> 1.91522275e+14

Sheet average ranks
A1: Bird Assembly | B1: Assembly ID | C1: Team name | D1: Number of 458 CEGs present in assembly | E1: rank | F1: COMPASS - coverage | G1: rank | H1: COMPASS - validity | I1: rank | J1: Level 1: sum length of alignments | K1: rank | L1: Levels 1-3: Sum length of all alignments | M1: rank | N1: VFRT scaffold summary score | O1: rank | P1: Useful amount of scaffold sequence (scaffolds >= 25K nt) | Q1: Difference from estimated genome size | R1: rank | S1: NG50 scaffold length | T1: rank | U1: NG50 contig length | V1: rank | W1: REAPR Summary score | X1: rank | Y1: Average rank | Z1: Team | AA1: Min error bar | AB1: Max error bar | AC1: No CEGMA | AD1: No Coverage | AE1: No Validity | AF1: No Level1 | AG1: No Level1-3 | AH1: No VFRTs | AI1: No scaffolds >=25 kbp | AJ1: no scaffold NG50 | AK1: no contig NG50 | AL1: no REAPR
A2: BCM* | B2: 3E | C2: BCM-HGSC | D2: 420 | E2: 1.5 | F2: 0.454888 | G2: 1 | H2: 0.000356643 | I2: 3 | J2: 684353000 | K2: 6 | L2: 883012 | M2: 6 | N2: 824.72536 | O2: 3.5 | P2: 1255741347 | Q2: =ABS(1200000000-P2) -> 55741347 | R2: 4 | S2: 16248487 | T2: 1 | U2: 129582 | V2: 2 | W2: 2.04420857e+14 | X2: 7 | Y2: =(E2+G2+I2+K2+M2+O2+R2+V2+X2+T2)/10 -> 3.5 | Z2: BCM-HGSC | AA2: =IF(Y2-MIN(AC2:AL2)<0,0,(Y2-MIN(AC2:AL2))) -> 0.3888888889 | AB2: =IF(MAX(AC2:AL2)-Y2 < 0, 0, MAX(AC2:AL2)-Y2) -> 0.2777777778 | AC2: =($G2+$I2+$K2+$M2+$O2+$R2+$T2+$V2+$X2)/9 -> 3.722222222 | AD2: =($E2+$I2+$K2+$M2+$O2+$R2+$T2+$V2+$X2)/9 -> 3.777777778 | AE2: =($E2+$G2+$K2+$M2+$O2+$R2+$T2+$V2+$X2)/9 -> 3.555555556 | AF2: =($E2+$G2+$I2+$M2+$O2+$R2+$T2+$V2+$X2)/9 -> 3.222222222 | AG2: =($E2+$G2+$I2+$K2+$O2+$R2+$T2+$V2+$X2)/9 -> 3.222222222 | AH2: =($E2+$G2+$I2+$K2+$M2+$R2+$T2+$V2+$X2)/9 -> 3.5 | AI2: =($E2+$G2+$I2+$K2+$M2+$O2+$T2+$V2+$X2)/9 -> 3.444444444 | AJ2: =($E2+$G2+$I2+$K2+$M2+$O2+$R2+$V2+$X2)/9 -> 3.777777778 | AK2: =($E2+$G2+$I2+$K2+$M2+$O2+$R2+$T2+$X2)/9 -> 3.666666667 | AL2: =($E2+$G2+$I2+$K2+$M2+$O2+$R2+$T2+$V2)/9 -> 3.111111111
A3: ALLP | B3: 11C | C3: Allpaths | D3: 408 | E3: 6 | F3: 0.321648 | G3: 7 | H3: 0.000291962 | I3: 5 | J3: 773652000 | K3: 2 | L3: 892087 | M3: 5 | N3: 817.22592 | O3: 5 | P3: 1127619690 | Q3: 72380310 | R3: 8 | S3: 14454701 | T3: 3 | U3: 49570 | V3: 6 | W3: 8.795186322e+14 | X3: 2 | Y3: 4.9 | Z3: Allpaths | AA3: 0.3444444444 | AB3: 0.3222222222 | AC3: 4.777777778 | AD3: 4.666666667 | AE3: 4.888888889 | AF3: 5.222222222 | AG3: 4.888888889 | AH3: 4.888888889 | AI3: 4.555555556 | AJ3: 5.111111111 | AK3: 4.777777778 | AL3: 5.222222222
A4: BCM | B4: 2C | C4: BCM-HGSC | D4: 420 | E4: 1.5 | F4: 0.316204 | G4: 8 | H4: 0.000248312 | I4: 12 | J4: 680718000 | K4: 7 | L4: 882168 | M4: 7 | N4: 824.72536 | O4: 3.5 | P4: 1254643149 | Q4: 54643149 | R4: 3 | S4: 16233753 | T4: 2 | U4: 184984 | V4: 1 | W4: 2.751080654e+14 | X4: 6 | Y4: 5.1 | Z4: BCM-HGSC + PacBio | AA4: 0.7666666667 | AB4: 0.4555555556 | AC4: 5.5 | AD4: 4.777777778 | AE4: 4.333333333 | AF4: 4.888888889 | AG4: 4.888888889 | AH4: 5.277777778 | AI4: 5.333333333 | AJ4: 5.444444444 | AK4: 5.555555556 | AL4: 5
A5: SOAP** | B5: 14E | C5: SOAPdenovo | D5: 412 | E5: 5 | F5: 0.381532 | G5: 3 | H5: 0.000358963 | I5: 2 | J5: 666201000 | K5: 9 | L5: 916525 | M5: 1 | N5: 794.76852 | O5: 8 | P5: 1139433377 | Q5: 60566623 | R5: 6 | S5: 13115626 | T5: 5 | U5: 47356 | V5: 8 | W5: 1.654770005e+13 | X5: 11 | Y5: 5.8 | Z5: SOAPdenovo | AA5: 0.5777777778 | AB5: 0.5333333333 | AC5: 5.888888889 | AD5: 6.111111111 | AE5: 6.222222222 | AF5: 5.444444444 | AG5: 6.333333333 | AH5: 5.555555556 | AI5: 5.777777778 | AJ5: 5.888888889 | AK5: 5.555555556 | AL5: 5.222222222
A6: CBCB | B6: 9C | C6: CBCB | D6: 403 | E6: 8 | F6: 0.341271 | G6: 6 | H6: 0.000293445 | I6: 4 | J6: 703651000 | K6: 5 | L6: 851733 | M6: 9 | N6: 835.8077 | O6: 1 | P6: 1116443664 | Q6: 83556336 | R6: 9 | S6: 1758729 | T6: 10 | U6: 101602 | V6: 3 | W6: 4.494387798e+14 | X6: 4 | Y6: 5.9 | Z6: CBCB | AA6: 0.4555555556 | AB6: 0.5444444444 | AC6: 5.666666667 | AD6: 5.888888889 | AE6: 6.111111111 | AF6: 6 | AG6: 5.555555556 | AH6: 6.444444444 | AI6: 5.555555556 | AJ6: 5.444444444 | AK6: 6.222222222 | AL6: 6.111111111
A7: NEWB | B7: 7C | C7: Newbler-454 | D7: 380 | E7: 12 | F7: 0.418758 | G7: 2 | H7: 0.00038909 | I7: 1 | J7: 739939000 | K7: 4 | L7: 876532 | M7: 8 | N7: 779.55968 | O7: 10 | P7: 1084552351 | Q7: 115447649 | R7: 11 | S7: 9041501 | T7: 7 | U7: 57469 | V7: 5 | W7: 1.813102804e+14 | X7: 8 | Y7: 6.8 | Z7: Newbler-454 | AA7: 0.5777777778 | AB7: 0.6444444444 | AC7: 6.222222222 | AD7: 7.333333333 | AE7: 7.444444444 | AF7: 7.111111111 | AG7: 6.666666667 | AH7: 6.444444444 | AI7: 6.333333333 | AJ7: 6.777777778 | AK7: 7 | AL7: 6.666666667
A8: SOAP* | B8: 13E | C8: SOAPdenovo | D8: 415 | E8: 4 | F8: 0.291943 | G8: 13 | H8: 0.000276139 | I8: 9 | J8: 667070000 | K8: 8 | L8: 912992 | M8: 3 | N8: 796.785 | O8: 7 | P8: 1139369769 | Q8: 60630231 | R8: 7 | S8: 13114357 | T8: 6 | U8: 48709 | V8: 7 | W8: 2.154270712e+13 | X8: 10 | Y8: 7.4 | Z8: SOAPdenovo | AA8: 0.6222222222 | AB8: 0.4888888889 | AC8: 7.777777778 | AD8: 6.777777778 | AE8: 7.222222222 | AF8: 7.333333333 | AG8: 7.888888889 | AH8: 7.444444444 | AI8: 7.444444444 | AJ8: 7.555555556 | AK8: 7.444444444 | AL8: 7.111111111
A9: MERAC | B9: 6C | C9: meraculous | D9: 393 | E9: 10 | F9: 0.301993 | G9: 9 | H9: 0.000291719 | I9: 6 | J9: 835668000 | K9: 1 | L9: 912484 | M9: 4 | N9: 772.59 | O9: 11 | P9: 1068014254 | Q9: 131985746 | R9: 12 | S9: 7539259 | T9: 8 | U9: 32067 | V9: 12 | W9: 1.410733547e+15 | X9: 1 | Y9: 7.4 | Z9: meraculous | AA9: 0.5111111111 | AB9: 0.7111111111 | AC9: 7.111111111 | AD9: 7.222222222 | AE9: 7.555555556 | AF9: 8.111111111 | AG9: 7.777777778 | AH9: 7 | AI9: 6.888888889 | AJ9: 7.333333333 | AK9: 6.888888889 | AL9: 8.111111111
A10: SOAP | B10: 12C | C10: SOAPdenovo | D10: 416 | E10: 3 | F10: 0.292512 | G10: 12 | H10: 0.000276327 | I10: 8 | J10: 660526000 | K10: 10 | L10: 914721 | M10: 2 | N10: 789.276 | O10: 9 | P10: 1142533623 | Q10: 57466377 | R10: 5 | S10: 13157455 | T10: 4 | U10: 34710 | V10: 11 | W10: 1.465084894e+13 | X10: 12 | Y10: 7.6 | Z10: SOAPdenovo | AA10: 0.4888888889 | AB10: 0.6222222222 | AC10: 8.111111111 | AD10: 7.111111111 | AE10: 7.555555556 | AF10: 7.333333333 | AG10: 8.222222222 | AH10: 7.444444444 | AI10: 7.888888889 | AJ10: 8 | AK10: 7.222222222 | AL10: 7.111111111
A11: RAY | B11: 4C | C11: Ray | D11: 404 | E11: 7 | F11: 0.301658 | G11: 10 | H11: 0.000249868 | I11: 11 | J11: 139999000 | K11: 13 | L11: 549939 | M11: 12 | N11: 827.03478 | O11: 2 | P11: 1190704701 | Q11: 9295299 | R11: 1 | S11: 609121 | T11: 12 | U11: 39832 | V11: 9 | W11: 357324157014994 | X11: 5 | Y11: 8.2 | Z11: Ray | AA11: 0.5333333333 | AB11: 0.8 | AC11: 8.333333333 | AD11: 8 | AE11: 7.888888889 | AF11: 7.666666667 | AG11: 7.777777778 | AH11: 8.888888889 | AI11: 9 | AJ11: 7.777777778 | AK11: 8.111111111 | AL11: 8.555555556
A12: PHUS | B12: 1C | C12: Phusion | D12: 391 | E12: 11 | F12: 0.375555 | G12: 4 | H12: 0.000287662 | I12: 7 | J12: 387603000 | K12: 11 | L12: 629951 | M12: 11 | N12: 746.41712 | O12: 12 | P12: 1089206827 | Q12: 110793173 | R12: 10 | S12: 1223532 | T12: 11 | U12: 61840 | V12: 4 | W12: 5.726507497e+13 | X12: 9 | Y12: 9 | Z12: Phusion | AA12: 0.3333333333 | AB12: 0.5555555556 | AC12: 8.777777778 | AD12: 9.555555556 | AE12: 9.222222222 | AF12: 8.777777778 | AG12: 8.777777778 | AH12: 8.666666667 | AI12: 8.888888889 | AJ12: 8.777777778 | AK12: 9.555555556 | AL12: 9
A13: MLK | B13: 5C | C13: MLK Group | D13: 401 | E13: 9 | F13: 0.36499 | G13: 5 | H13: 0.000225669 | I13: 13 | J13: 336108000 | K13: 12 | L13: 357365 | M13: 13 | N13: 816.7647 | O13: 6 | P13: 1180972764 | Q13: 19027236 | R13: 2 | S13: 113799 | T13: 13 | U13: 35883 | V13: 10 | W13: 0 | X13: 13.5 | Y13: 9.65 | Z13: MLK Group | AA13: 0.4277777778 | AB13: 0.85 | AC13: 9.722222222 | AD13: 10.16666667 | AE13: 9.277777778 | AF13: 9.388888889 | AG13: 9.277777778 | AH13: 10.05555556 | AI13: 10.5 | AJ13: 9.277777778 | AK13: 9.611111111 | AL13: 9.222222222
A14: SGA | B14: 10C | C14: SGA | D14: 371 | E14: 13 | F14: 0.295288 | G14: 11 | H14: 0.00026683 | I14: 10 | J14: 746803000 | K14: 3 | L14: 792152 | M14: 10 | N14: 737.50316 | O14: 13 | P14: 1045597539 | Q14: 154402461 | R14: 13 | S14: 2518389 | T14: 9 | U14: 15382 | V14: 13 | W14: 5.343497803e+14 | X14: 3 | Y14: 9.8 | Z14: SGA | AA14: 0.3555555556 | AB14: 0.7555555556 | AC14: 9.444444444 | AD14: 9.666666667 | AE14: 9.777777778 | AF14: 10.55555556 | AG14: 9.777777778 | AH14: 9.444444444 | AI14: 9.444444444 | AJ14: 9.888888889 | AK14: 9.444444444 | AL14: 10.55555556
A15: ABL | B15: 15C | C15: ABL | D15: 229 | E15: 14 | F15: 0.201308 | G15: 14 | H15: 0.000208964 | I15: 14 | J15: 0 | K15: 14 | L15: 0 | M15: 14 | N15: 551.99859 | O15: 14 | P15: 32652633 | Q15: 1167347367 | R15: 14 | S15: 2611 | T15: 14 | U15: 2611 | V15: 14 | W15: 0 | X15: 13.5 | Y15: 13.95 | Z15: ABL | AA15: 0.005555555556 | AB15: 0.05 | AC15: 13.94444444 | AD15: 13.94444444 | AE15: 13.94444444 | AF15: 13.94444444 | AG15: 13.94444444 | AH15: 13.94444444 | AI15: 13.94444444 | AJ15: 13.94444444 | AK15: 13.94444444 | AL15: 14
A17: Mean | D17: =AVERAGE(D2:D15) -> 390.2142857 | F17: =AVERAGE(F2:F15) -> 0.3328248571 | H17: =AVERAGE(H2:H15) -> 0.0002872566429 | J17: =AVERAGE(J2:J15) -> 573020785.7 | L17: =AVERAGE(L2:L15) -> 740832.9286 | N17: =AVERAGE(N2:N15) -> 779.6558493 | Q17: =AVERAGE(Q2:Q15) -> 153805950.3 | S17: =AVERAGE(S2:S15) -> 7795094.286 | U17: =AVERAGE(U2:U15) -> 60114.07143 | W17: =AVERAGE(W2:W15) -> 3.144436022e+14
A18: STDEVP | D18: =STDEVP(D2:D15) -> 46.89376835 | F18: =STDEVP(F2:F15) -> 0.06089417283 | H18: =STDEVP(H2:H15) -> 4.921127357e-05 | J18: =STDEVP(J2:J15) -> 244935746.2 | L18: =STDEVP(L2:L15) -> 262030.3924 | N18: =STDEVP(N2:N15) -> 69.49957115 | Q18: =STDEVP(Q2:Q15) -> 283823944.4 | S18: =STDEVP(S2:S15) -> 6283923.585 | U18: =STDEVP(U2:U15) -> 46515.44355 | W18: =STDEVP(W2:W15) -> 3.918143074e+14
A22: Fish Assembly | B22: Assembly ID | C22: Team name | D22: Number of 458 CEGs present in assembly | E22: rank | F22: COMPASS - coverage | G22: rank | H22: COMPASS - validity | I22: rank | J22: Level 1: sum length of alignments | K22: rank | L22: Levels 1-3: Sum length of all alignments | M22: rank | N22: VFRT scaffold summary score | O22: rank | P22: Useful amount of scaffold sequence (scaffolds >= 25K nt) | Q22: Difference from estimated genome size | R22: rank | S22: NG50 scaffold length | T22: rank | U22: NG50 contig length | V22: rank | W22: REAPR Summary score | X22: rank | Y22: Average rank | Z22: Team | AA22: Min error bar | AB22: Max error bar | AC22: No CEGMA | AD22: No Coverage | AE22: No Validity | AF22: No Level1 | AG22: No Level1-3 | AH22: No VFRTs | AI22: No scaffolds >=25 kbp | AJ22: no scaffold NG50 | AK22: no contig NG50 | AL22: no REAPR
A23: BCM | B23: 1C | C23: BCM-HGSC | D23: 434 | E23: 5 | J23: 2554000 | K23: 6 | L23: 289355000 | M23: 1 | P23: 848881124 | Q23: =ABS(1000000000-P23) -> 151118876 | R23: 4 | S23: 4373261 | T23: 1 | U23: 19381 | V23: 2 | W23: 2.037624456e+13 | X23: 6 | Y23: =(E23+G23+I23+K23+M23+O23+R23+V23+X23+T23)/7 -> 3.571428571 | Z23: BCM-HGSC | AA23: =IF(Y23-MIN(AC23:AL23)<0,0,(Y23-MIN(AC23:AL23))) -> 0.4047619048 | AB23: =IF(MAX(AC23:AL23)-Y23 < 0, 0, MAX(AC23:AL23)-Y23) -> 0.4285714286 | AC23: =($G23+$I23+$K23+$M23+$R23+$T23+$V23+$X23)/6 -> 3.333333333 | AF23: =($E23+$G23+$I23+$M23+$O23+$R23+$T23+$V23+$X23)/6 -> 3.166666667 | AG23: =($E23+$G23+$I23+$K23+$O23+$R23+$T23+$V23+$X23)/6 -> 4 | AI23: =($E23+$G23+$I23+$K23+$M23+$O23+$T23+$V23+$X23)/6 -> 3.5 | AJ23: =($E23+$G23+$I23+$K23+$M23+$O23+$R23+$V23+$X23)/6 -> 4 | AK23: =($E23+$G23+$I23+$K23+$M23+$O23+$R23+$T23+$X23)/6 -> 3.833333333 | AL23: =($E23+$G23+$I23+$K23+$M23+$O23+$R23+$T23+$V23)/6 -> 3.166666667
A24: CSHL | B24: 12C | C24: CSHL | D24: 436 | E24: 2 | J24: 3087000 | K24: 4 | L24: 286453000 | M24: 3 | P24: 835721259 | Q24: 164278741 | R24: 7 | S24: 2945418 | T24: 4 | U24: 14402 | V24: 3 | W24: 2.208199671e+13 | X24: 4 | Y24: 3.857142857 | Z24: CSHL - metassembler | AA24: 0.5238095238 | AB24: 0.3095238095 | AC24: =($G24+$I24+$K24+$M24+$O24+$R24+$T24+$V24+$X24)/6 -> 4.166666667 | AF24: 3.833333333 | AG24: 4 | AI24: 3.333333333 | AJ24: 3.833333333 | AK24: 4 | AL24: 3.833333333
A25: CSHL* | B25: 14E | C25: CSHL | D25: 436 | E25: 2 | J25: 3088000 | K25: 3 | L25: 286087000 | M25: 4 | P25: 835818738 | Q25: 164181262 | R25: 6 | S25: 2946467 | T25: 3 | U25: 14238 | V25: 4 | W25: 2.141110252e+13 | X25: 5 | Y25: 3.857142857 | Z25: CSHL - allpaths | AA25: 0.3571428571 | AB25: 0.3095238095 | AC25: 4.166666667 | AF25: 4 | AG25: 3.833333333 | AI25: 3.5 | AJ25: 4 | AK25: 3.833333333 | AL25: 3.666666667
A26: ALLP | B26: 6C | C26: Allpaths | D26: 430 | E26: 7 | J26: 2559000 | K26: 5 | L26: 287138000 | M26: 2 | P26: 837139691 | Q26: 162860309 | R26: 5 | S26: 3050429 | T26: 2 | U26: 11902 | V26: 5 | W26: 1.957583034e+13 | X26: 7 | Y26: 4.714285714 | Z26: Allpaths | AA26: 0.380952381 | AB26: 0.4523809524 | AC26: 4.333333333 | AF26: 4.666666667 | AG26: 5.166666667 | AI26: 4.666666667 | AJ26: 5.166666667 | AK26: 4.666666667 | AL26: 4.333333333
A27: SYM | B27: 5C | C27: Symbiose | D27: 428 | E27: 8 | J27: 0 | K27: 12.5 | L27: 146204000 | M27: 7 | P27: 881017133 | Q27: 118982867 | R27: 2 | S27: 1532535 | T27: 5 | U27: 25525 | V27: 1 | W27: 3.629412472e+13 | X27: 1 | Y27: 5.214285714 | Z27: Symbiose | AA27: 1.214285714 | AB27: 0.7023809524 | AC27: 4.75 | AF27: 4 | AG27: 4.916666667 | AI27: 5.75 | AJ27: 5.25 | AK27: 5.916666667 | AL27: 5.916666667
A28: SOAP* | B28: 11E | C28: SOAPdenovo | D28: 436 | E28: 2 | J28: 0 | K28: 12.5 | L28: 67721000 | M28: 9 | P28: 988908263 | Q28: 11091737 | R28: 1 | S28: 1468157 | T28: 6 | U28: 6001 | V28: 6 | W28: 1.593262125e+13 | X28: 8 | Y28: 6.357142857 | Z28: SOAPdenovo | AA28: 1.023809524 | AB28: 0.8928571429 | AC28: 7.083333333 | AF28: 5.333333333 | AG28: 5.916666667 | AI28: 7.25 | AJ28: 6.416666667 | AK28: 6.416666667 | AL28: 6.083333333
A29: SGA | B29: 3C | C29: SGA | D29: 423 | E29: 10 | J29: 15378000 | K29: 1 | L29: 76491000 | M29: 8 | P29: 663780109 | Q29: 336219891 | R29: 11 | S29: 73332 | T29: 10 | U29: 3755 | V29: 8 | W29: 2.934375626e+13 | X29: 2 | Y29: 7.142857143 | Z29: SGA | AA29: 0.6428571429 | AB29: 1.023809524 | AC29: 6.666666667 | AF29: 8.166666667 | AG29: 7 | AI29: 6.5 | AJ29: 6.666666667 | AK29: 7 | AL29: 8
A30: MERAC | B30: 8C | C30: meraculous | D30: 426 | E30: 9 | J30: 3895000 | K30: 2 | L30: 200886000 | M30: 5 | P30: 729158110 | Q30: 270841890 | R30: 10 | S30: 613236 | T30: 8 | U30: 3056 | V30: 10 | W30: 1.079239888e+13 | X30: 9 | Y30: 7.571428571 | Z30: meraculous | AA30: 0.4047619048 | AB30: 0.9285714286 | AC30: 7.333333333 | AF30: 8.5 | AG30: 8 | AI30: 7.166666667 | AJ30: 7.5 | AK30: 7.166666667 | AL30: 7.333333333
A31: RAY | B31: 4C | C31: Ray | D31: 435 | E31: 4 | J31: 1879000 | K31: 7 | L31: 6442000 | M31: 10 | P31: 536091861 | Q31: 463908139 | R31: 12 | S31: 30463 | T31: 12 | U31: 5860 | V31: 7 | W31: 2.225927559e+13 | X31: 3 | Y31: 7.857142857 | Z31: Ray | AA31: 0.6904761905 | AB31: 0.8095238095 | AC31: 8.5 | AF31: 8 | AG31: 7.5 | AI31: 7.166666667 | AJ31: 7.166666667 | AK31: 8 | AL31: 8.666666667
A32: ABYSS | B32: 7C | C32: ABySS | D32: 431 | E32: 6 | J32: 578000 | K32: 8 | L32: 199611000 | M32: 6 | P32: 757370463 | Q32: 242629537 | R32: 9 | S32: 847430 | T32: 7 | U32: 3333 | V32: 9 | W32: 9.180816456e+12 | X32: 10 | Y32: 7.857142857 | Z32: ABySS | AA32: 0.3571428571 | AB32: 0.3095238095 | AC32: 8.166666667 | AF32: 7.833333333 | AG32: 8.166666667 | AI32: 7.666666667 | AJ32: 8 | AK32: 7.666666667 | AL32: 7.5
A33: IOB | B33: 13C | C33: IOBUGA | D33: 387 | E33: 11 | J33: 0 | K33: 12.5 | L33: 6047000 | M33: 11 | P33: 777006592 | Q33: 222993408 | R33: 8 | S33: 229222 | T33: 9 | U33: 1180 | V33: 14 | W33: 3.735390997e+12 | X33: 11 | Y33: 10.92857143 | Z33: IOBUGA | AA33: 0.5119047619 | AB33: 0.4880952381 | AC33: 10.91666667 | AF33: 10.66666667 | AG33: 10.91666667 | AI33: 11.41666667 | AJ33: 11.25 | AK33: 10.41666667 | AL33: 10.91666667
A34: IOB* | B34: 16E | C34: IOBUGA | D34: 83 | E34: 16 | J34: 0 | K34: 12.5 | L34: 0 | M34: 14 | P34: 1124232749 | Q34: 124232749 | R34: 3 | S34: 49719 | T34: 11 | U34: 474 | V34: 16 | W34: 2.998605838e+12 | X34: 12 | Y34: 12.07142857 | Z34: IOBUGA | AA34: 0.6547619048 | AB34: 1.511904762 | AC34: 11.41666667 | AF34: 12 | AG34: 11.75 | AI34: 13.58333333 | AJ34: 12.25 | AK34: 11.41666667 | AL34: 12.08333333
A35: CSHL** | B35: 15E | C35: CSHL | D35: 307 | E35: 13 | J35: 0 | K35: 12.5 | L35: 0 | M35: 14 | P35: 269356 | Q35: 999730644 | R35: 13 | S35: 1301 | T35: 14 | U35: 1301 | V35: 12 | W35: 1366155764868 | X35: 13 | Y35: 13.07142857 | Z35: CSHL - soapdenovo | AA35: 0.1547619048 | AB35: 0.1785714286 | AC35: 13.08333333 | AF35: 13.16666667 | AG35: 12.91666667 | AI35: 13.08333333 | AJ35: 12.91666667 | AK35: 13.25 | AL35: 13.08333333
A36: CTD | B36: 9C | C36: CTD | D36: 350 | E36: 12 | J36: 0 | K36: 12.5 | L36: 0 | M36: 14 | P36: 0 | Q36: 1000000000 | R36: 15 | S36: 2954 | T36: 13 | U36: 2954 | V36: 11 | W36: 0 | X36: 15 | Y36: 13.21428571 | Z36: CTD | AA36: 0.2976190476 | AB36: 0.369047619 | AC36: 13.41666667 | AF36: 13.33333333 | AG36: 13.08333333 | AI36: 12.91666667 | AJ36: 13.25 | AK36: 13.58333333 | AL36: 12.91666667
A37: CTD** | B37: 10E | C37: CTD | D37: 207 | E37: 14 | J37: 0 | K37: 12.5 | L37: 0 | M37: 14 | P37: 0 | Q37: 1000000000 | R37: 15 | S37: 1203 | T37: 15 | U37: 1203 | V37: 13 | W37: 0 | X37: 15 | Y37: 14.07142857 | Z37: CTD | AA37: 0.1547619048 | AB37: 0.2619047619 | AC37: 14.08333333 | AF37: 14.33333333 | AG37: 14.08333333 | AI37: 13.91666667 | AJ37: 13.91666667 | AK37: 14.25 | AL37: 13.91666667
A38: CTD* | B38: 2E | C38: CTD | D38: 169 | E38: 15 | J38: 0 | K38: 12.5 | L38: 0 | M38: 14 | P38: 0 | Q38: 1000000000 | R38: 15 | S38: 883 | T38: 16 | U38: 883 | V38: 15 | W38: 0 | X38: 15 | Y38: 14.64285714 | Z38: CTD | AA38: 0.2261904762 | AB38: 0.3571428571 | AC38: 14.58333333 | AF38: 15 | AG38: 14.75 | AI38: 14.58333333 | AJ38: 14.41666667 | AK38: 14.58333333 | AL38: 14.58333333
A40: Mean | D40: =AVERAGE(D23:D38) -> 363.625 | J40: =AVERAGE(J23:J38) -> 2063625 | L40: =AVERAGE(L23:L38) -> 115777187.5 | Q40: =AVERAGE(Q23:Q38) -> 402066878.1 | S40: =AVERAGE(S23:S38) -> 1135375.625 | U40: =AVERAGE(U23:U38) -> 7215.5 | W40: =AVERAGE(W23:W38) -> 1.345926999e+13
A41: STDEVP | D41: =STDEVP(D23:D38) -> 109.363428 | J41: =STDEVP(J23:J38) -> 3704039.803 | L41: =STDEVP(L23:L38) -> 119293845.2 | Q41: =STDEVP(Q23:Q38) -> 358482839.4 | S41: =STDEVP(S23:S38) -> 1387941.738 | U41: =STDEVP(U23:U38) -> 7353.111314 | W41: =STDEVP(W23:W38) -> 1.117821795e+13
A45: Snake Assembly | B45: Assembly ID | C45: Team name | D45: Number of 458 CEGs present in assembly | E45: rank | F45: COMPASS - coverage | G45: rank | H45: COMPASS - validity | I45: rank | J45: Level 1: sum length of alignments | K45: rank | L45: Levels 1-3: Sum length of all alignments | M45: rank | N45: VFRT scaffold summary score | O45: rank | P45: Useful amount of scaffold sequence (scaffolds >= 25K nt) | Q45: Difference from estimated genome size | R45: rank | S45: NG50 scaffold length | T45: rank | U45: NG50 contig length | V45: rank | W45: REAPR Summary score | X45: rank | Y45: Average rank | Z45: Team | AA45: Min error bar | AB45: Max error bar | AC45: No CEGMA | AD45: No Coverage | AE45: No Validity | AF45: No Level1 | AG45: No Level1-3 | AH45: No VFRTs | AI45: No scaffolds >=25 kbp | AJ45: no scaffold NG50 | AK45: no contig NG50 | AL45: no REAPR
A46: SGA | B46: 7C | C46: SGA | D46: 433 | E46: 5 | F46: 0.539414 | G46: 2 | H46: 0.000144114 | I46: 2 | J46: 226840000 | K46: 2 | L46: 861300000 | M46: 1 | N46: 304.60838 | O46: 3 | P46: 1420775968 | Q46: =ABS(1600000000-P46) -> 179224032 | R46: 7 | S46: 3803459 | T46: 2 | U46: 24787 | V46: 5 | W46: 4.926783351e+14 | X46: 2 | Y46: =(E46+G46+I46+K46+M46+O46+R46+V46+X46+T46)/10 -> 3.1 | Z46: SGA | AA46: =IF(Y46-MIN(AC46:AL46)<0,0,(Y46-MIN(AC46:AL46))) -> 0.4333333333 | AB46: =IF(MAX(AC46:AL46)-Y46 < 0, 0, MAX(AC46:AL46)-Y46) -> 0.2333333333 | AC46: =($G46+$I46+$K46+$M46+$O46+$R46+$T46+$V46+$X46)/9 -> 2.888888889 | AD46: =($E46+$I46+$K46+$M46+$O46+$R46+$T46+$V46+$X46)/9 -> 3.222222222 | AE46: =($E46+$G46+$K46+$M46+$O46+$R46+$T46+$V46+$X46)/9 -> 3.222222222 | AF46: =($E46+$G46+$I46+$M46+$O46+$R46+$T46+$V46+$X46)/9 -> 3.222222222 | AG46: =($E46+$G46+$I46+$K46+$O46+$R46+$T46+$V46+$X46)/9 -> 3.333333333 | AH46: =($E46+$G46+$I46+$K46+$M46+$R46+$T46+$V46+$X46)/9 -> 3.111111111 | AI46: =($E46+$G46+$I46+$K46+$M46+$O46+$T46+$V46+$X46)/9 -> 2.666666667 | AJ46: =($E46+$G46+$I46+$K46+$M46+$O46+$R46+$V46+$X46)/9 -> 3.222222222 | AK46: =($E46+$G46+$I46+$K46+$M46+$O46+$R46+$T46+$X46)/9 -> 2.888888889 | AL46: =($E46+$G46+$I46+$K46+$M46+$O46+$R46+$T46+$V46)/9 -> 3.222222222
A47: PHUS | B47: 5C | C47: Phusion | D47: 435 | E47: 3 | F47: 0.419587 | G47: 6 | H47: 0.000110122 | I47: 6 | J47: 114725000 | K47: 4 | L47: 843423000 | M47: 2 | N47: 304.42272 | O47: 4 | P47: 1443267172 | Q47: 156732828 | R47: 4 | S47: 3846246 | T47: 1 | U47: 67973 | V47: 2 | W47: 1.31799226e+14 | X47: 5 | Y47: 3.7 | Z47: Phusion | AA47: 0.2555555556 | AB47: 0.3 | AC47: 3.777777778 | AD47: 3.444444444 | AE47: 3.444444444 | AF47: 3.666666667 | AG47: 3.888888889 | AH47: 3.666666667 | AI47: 3.666666667 | AJ47: 4 | AK47: 3.888888889 | AL47: 3.555555556
A48: MERAC | B48: 6C | C48: meraculous | D48: 430 | E48: 6 | F48: 0.323923 | G48: 10 | H48: 8.6546e-05 | I48: 9 | J48: 279552000 | K48: 1 | L48: 804469000 | M48: 3 | N48: 304.9824 | O48: 2 | P48: 1404357245 | Q48: 195642755 | R48: 8 | S48: 1058023 | T48: 6 | U48: 29995 | V48: 3 | W48: 635265025113520 | X48: 1 | Y48: 4.9 | Z48: meraculous | AA48: 0.5666666667 | AB48: 0.4333333333 | AC48: 4.777777778 | AD48: 4.333333333 | AE48: 4.444444444 | AF48: 5.333333333 | AG48: 5.111111111 | AH48: 5.222222222 | AI48: 4.555555556 | AJ48: 4.777777778 | AK48: 5.111111111 | AL48: 5.333333333
A49: SYMB | B49: 8C | C49: Symbiose | D49: 436 | E49: 2 | F49: 0.414381 | G49: 8 | H49: 8.12028e-05 | I49: 10 | J49: 52316000 | K49: 7 | L49: 709369000 | M49: 4 | N49: 266 | O49: 8 | P49: 1515599019 | Q49: 84400981 | R49: 2 | S49: 1615595 | T49: 4 | U49: 75015 | V49: 1 | W49: 2.91672424e+14 | X49: 3 | Y49: 4.9 | Z49: Symbiose | AA49: 0.5666666667 | AB49: 0.4333333333 | AC49: 5.222222222 | AD49: 4.555555556 | AE49: 4.333333333 | AF49: 4.666666667 | AG49: 5 | AH49: 4.555555556 | AI49: 5.222222222 | AJ49: 5 | AK49: 5.333333333 | AL49: 5.111111111
A50: ABYSS | B50: 9C | C50: ABySS | D50: 429 | E50: 7 | F50: 0.417712 | G50: 7 | H50: 0.000104487 | I50: 7 | J50: 191799000 | K50: 3 | L50: 603602000 | M50: 6 | N50: 305.75826 | O50: 1 | P50: 1447039703 | Q50: 152960297 | R50: 3 | S50: 448896 | T50: 8 | U50: 25646 | V50: 4 | W50: 2.109801685e+14 | X50: 4 | Y50: 5 | Z50: ABySS | AA50: 0.3333333333 | AB50: 0.4444444444 | AC50: 4.777777778 | AD50: 4.777777778 | AE50: 4.777777778 | AF50: 5.222222222 | AG50: 4.888888889 | AH50: 5.444444444 | AI50: 5.222222222 | AJ50: 4.666666667 | AK50: 5.111111111 | AL50: 5.111111111
A51: CRACS | B51: 10C | C51: CRACS | D51: 438 | E51: 1 | F51: 0.491319 | G51: 4 | H51: 0.000122577 | I51: 4 | J51: 89879000 | K51: 5 | L51: 588784000 | M51: 7 | N51: 278.57934 | O51: 7 | P51: 1430445129 | Q51: 169554871 | R51: 5 | S51: 647986 | T51: 7 | U51: 18533 | V51: 6 | W51: 6.077324444e+13 | X51: 9 | Y51: 5.5 | Z51: CRACS | AA51: 0.3888888889 | AB51: 0.5 | AC51: 6 | AD51: 5.666666667 | AE51: 5.666666667 | AF51: 5.555555556 | AG51: 5.333333333 | AH51: 5.333333333 | AI51: 5.555555556 | AJ51: 5.333333333 | AK51: 5.444444444 | AL51: 5.111111111
A52: SOAP | B52: 11C | C52: SOAPdenovo | D52: 428 | E52: 8 | F52: 0.44645 | G52: 5 | H52: 0.00011587 | I52: 5 | J52: 12442000 | K52: 8 | L52: 204497000 | M52: 8 | N52: 300.7336 | O52: 6 | P52: 1597838711 | Q52: 2161289 | R52: 1 | S52: 1805615 | T52: 3 | U52: 16821 | V52: 7 | W52: 1.112558181e+14 | X52: 7 | Y52: 5.8 | Z52: SOAPdenovo | AA52: 0.2444444444 | AB52: 0.5333333333 | AC52: 5.555555556 | AD52: 5.888888889 | AE52: 5.888888889 | AF52: 5.555555556 | AG52: 5.555555556 | AH52: 5.777777778 | AI52: 6.333333333 | AJ52: 6.111111111 | AK52: 5.666666667 | AL52: 5.666666667
A53: BCM | B53: 1C | C53: BCM-HGSC | D53: 434 | E53: 4 | F53: 0.495555 | G53: 3 | H53: 0.000130506 | I53: 3 | J53: 61989000 | K53: 6 | L53: 680789000 | M53: 5 | N53: 250.82828 | O53: 9 | P53: 1430432433 | Q53: 169567567 | R53: 6 | S53: 1403225 | T53: 5 | U53: 14038 | V53: 9 | W53: 7.270230564e+13 | X53: 8 | Y53: 5.8 | Z53: BCM-HGSC | AA53: 0.3555555556 | AB53: 0.3111111111 | AC53: 6 | AD53: 6.111111111 | AE53: 6.111111111 | AF53: 5.777777778 | AG53: 5.888888889 | AH53: 5.444444444 | AI53: 5.777777778 | AJ53: 5.888888889 | AK53: 5.444444444 | AL53: 5.555555556
A54: RAY | B54: 2C | C54: Ray | D54: 422 | E54: 9 | F54: 0.584228 | G54: 1 | H54: 0.00014615 | I54: 1 | J54: 7988000 | K54: 9 | L54: 62609000 | M54: 9 | N54: 302.80474 | O54: 5 | P54: 1388131192 | Q54: 211868808 | R54: 9 | S54: 127253 | T54: 9 | U54: 16009 | V54: 8 | W54: 1.240097078e+14 | X54: 6 | Y54: 6.6 | Z54: Ray | AA54: 0.2666666667 | AB54: 0.6222222222 | AC54: 6.333333333 | AD54: 7.222222222 | AE54: 7.222222222 | AF54: 6.333333333 | AG54: 6.333333333 | AH54: 6.777777778 | AI54: 6.333333333 | AJ54: 6.333333333 | AK54: 6.444444444 | AL54: 6.666666667
A55: GAM | B55: 4C | C55: GAM | D55: 415 | E55: 10 | F55: 0.341708 | G55: 9 | H55: 9.33381e-05 | I55: 8 | J55: 300000 | K55: 10 | L55: 300000 | M55: 10 | N55: 225.52992 | O55: 11 | P55: 546866427 | Q55: 1053133573 | R55: 11 | S55: 16883 | T55: 11 | U55: 6872 | V55: 11 | W55: 1.043225979e+13 | X55: 11 | Y55: 10.2 | Z55: GAM | AA55: 0.08888888889 | AB55: 0.2444444444 | AC55: 10.22222222 | AD55: 10.33333333 | AE55: 10.44444444 | AF55: 10.22222222 | AG55: 10.22222222 | AH55: 10.11111111 | AI55: 10.11111111 | AJ55: 10.11111111 | AK55: 10.11111111 | AL55: 10.11111111
A56: CURT | B56: 3C | C56: Curtain | D56: 360 | E56: 11 | F56: 0.289783 | G56: 11 | H56: 7.39087e-05 | I56: 11 | J56: 0 | K56: 11 | L56: 0 | M56: 11 | N56: 242.3905 | O56: 10 | P56: 1285079597 | Q56: 314920403 | R56: 10 | S56: 53529 | T56: 10 | U56: 10833 | V56: 10 | W56: 2.646402718e+13 | X56: 10 | Y56: 10.5 | Z56: Curtain | AA56: 0.05555555556 | AB56: 0.05555555556 | AC56: 10.44444444 | AD56: 10.44444444 | AE56: 10.44444444 | AF56: 10.44444444 | AG56: 10.44444444 | AH56: 10.55555556 | AI56: 10.55555556 | AJ56: 10.55555556 | AK56: 10.55555556 | AL56: 10.55555556
A58: Mean | D58: =AVERAGE(D46:D56) -> 423.6363636 | F58: =AVERAGE(F46:F56) -> 0.4330963636 | H58: =AVERAGE(H46:H56) -> 0.0001098928727 | J58: =AVERAGE(J46:J56) -> 94348181.82 | L58: =AVERAGE(L46:L56) -> 487194727.3 | N58: =AVERAGE(N46:N56) -> 280.6034673 | Q58: =AVERAGE(Q46:Q56) -> 244560673.1 | S58: =AVERAGE(S46:S56) -> 1347882.727 | U58: =AVERAGE(U42:U56) -> 27865.63636 | W58: =AVERAGE(W46:W56) -> 1.970938674e+14
A59: STDEVP | D59: =STDEVP(D46:D56) -> 21.1026613 | F59: =STDEVP(F46:F56) -> 0.08696515001 | H59: =STDEVP(H46:H56) -> 2.349772304e-05 | J59: =STDEVP(J46:J56) -> 93669414.3 | L59: =STDEVP(L46:L56) -> 332051982.2 | N59: =STDEVP(N46:N56) -> 28.39022551 | Q59: =STDEVP(Q46:Q56) -> 265985988.6 | S59: =STDEVP(S46:S56) -> 1309921.071 | U59: =STDEVP(U42:U56) -> 21579.26404 | W59: =STDEVP(W46:W56) -> 1.91522275e+14
